Workbook

Sheet Tool (hidden)
D2: Park & Ride Right-Sizing Tool
D5: Park and Ride Facility
D6: Crescent View Station
D9: Parking Supply | F9: Land Use Context | H9: Low Income % | J9: Walk Score
L10: Typologies
L11: 1 Suburban: Mid-corridor
D12: Parking Utilization | F12: Population Density | H12: No Vehicle Ownership % | J12: Bike Score | L12: 2 Suburban: Transfer Location
L13: 3 Suburban: Terminus
L14: 4 Emerging Urban
D15: Current Boardings | F15: Job Density (Jobs/sq mi) | H15: Transit Dependency Index | J15: Transit Access Score | L15: 5 TOD
L16: 6 Urban
L17: Assigned Typology
D18: Boardings Per Parked Car
D19: =_xlfn.IFS(L18 = "1 Suburban: Mid-corridor",SUMIF('Existing Only'!W:W,"1 Suburban: Mid-corridor",'Existing Only'!I:I)/COUNTIF('Existing Only'!W:W,"1 Suburban: Mid-corridor"),L18 = "2 Suburban: Transfer Location",SUMIF('Existing Only'!W:W,"2 Suburban: Transfer Location",'Existing Only'!I:I)/COUNTIF('Existing Only'!W:W,"2 Suburban: Transfer Location"),L18 = "3 Suburban: Terminus",SUMIF('Existing Only'!W:W,"3 Suburban: Terminus",'Existing Only'!I:I)/COUNTIF('Existing Only'!W:W,"3 Suburban: Terminus"),L18 = "4 Emerging Urban",SUMIF('Existing Only'!W:W,"4 Emerging Urban",'Existing Only'!I:I)/COUNTIF('Existing Only'!W:W,"4 Emerging Urban"),L18 = "5 TOD",SUMIF('Existing Only'!W:W,"5 TOD",'Existing Only'!I:I)/COUNTIF('Existing Only'!W:W,"5 TOD"),L18 = "6 Urban",SUMIF('Existing Only'!W:W,"6 Urban",'Existing Only'!I:I)/COUNTIF('Existing Only'!W:W,"6 Urban")) -> 
D22: Choose Target Parking Supply Range
D24: Target Ratio (boardings per parking space) | H24: Comparison of Current Supply to Target Supply
D26: High Parking Demand (or low boarding per parking) | F26: High Target Parking Supply | H26: Above or Below Target
D27: =ROUND(_xlfn.PERCENTILE.INC(D38:D137,0.165),0) -> 0 | F27: =ROUND(D16/D27,0)*1.1 ->  | H27: =ROUND(D10-F27,0)&" "&IF((D10-F27)>0,"Spaces Above Target","Spaces Below Target") -> 
D29: Medium Parking Demand (or medium boardings per parking) | F29: Medium Target Parking Supply | H29: Above or Below Target
D30: =ROUND(_xlfn.PERCENTILE.INC(D38:D137,0.75),1) -> 3.1 | F30: =ROUND(D16/D30,0)*1.1 -> 0 | H30: =ROUND(D10-F30,0)&" "&IF((D10-F30)>0,"Spaces Above Target","Spaces Below Target") -> 0 Spaces Below Target
D32: Low Parking Demand (or high boardings per parking) | F32: Low Target Parking Supply | H32: Above or Below Target
D33: =ROUND(_xlfn.PERCENTILE.INC(D38:D137,0.85),1) -> 5.3 | F33: =ROUND(D16/D33,1.1) -> 0 | H33: =ROUND(D10-F33,0)&" "&IF((D10-F33)>0,"Spaces Above Target","Spaces Below Target") -> 0 Spaces Below Target
D37: Background typology searching for boardings per parked car, automatically updated
D38: =_xlfn._xlws.FILTER(GIS_Exports[Boardings/parked car],IF(L18="",1,GIS_Exports[Reassigned Typologies]=L18)) -> 1.712538 | E38: If more than 100 rows are needed adjust formulas in choosing parking supply range cells accordingly
D39: 0
D40: 1.995638
D41: 1.104859
D42: 0
D43: 0
D44: 1.42379
D45: 0
D46: 2.771147
D47: 0
D48: 0
D49: 3.544751
D50: 18.722826
D51: 2.290796
D52: 1.405361
D53: 3.079242
D54: 0
D55: 0
D56: 1.944444
D57: 3.889734
D58: 1.269287
D59: 2.700148
D60: 0
D61: 0
D62: 3.053613
D63: 3.346307
D64: 0
D65: 2.839851
D66: 0
D67: 0
D68: 1.240079
D69: 0
D70: 1.721962
D71: 2.902187
D72: 0
D73: 3.820617
D74: 5.654076
D75: 13.658182
D76: 14.415094
D77: 0
D78: 0
D79: 14.57281
D80: 3.491254
D81: 0
D82: 0
D83: 5.432047
D84: 0
D85: 5.356491
D86: 0
D87: 0
D88: 6.891016
D89: 0
D90: 0
D91: 0
D92: 0
D93: 1.707945
D94: 0
D95: 108.26087
D96: 3.408138
D97: 1.819505
D98: 2.425739
D99: 0
D100: 0
D101: 0
D102: 0
D103: 6.084656
D104: 19.916345
D105: 2.257757

Sheet Info
Y2: Typologies
Y3: 1 Suburban: Mid-corridor
Y4: 2 Suburban: Transfer Location
Y5: 3 Suburban: Terminus
Y6: 4 Emerging Urban
Y7: 5 TOD
Y8: 6 Urban

Sheet Existing P&R Tool
B2: Park & Ride Right-Sizing Tool
C5: Tool to Right-Size Existing Park & Ride Facilities
C7: Select Park and Ride Facility:*
C8: Kimballs Lane Station
C10: Parking Supply | E10: Land Use Context | G10: Low Income % | I10: Walk Score
C11: =INDEX('Existing Only'!G:G,MATCH('Existing P&R Tool'!C8,'Existing Only'!A:A,0),1) -> 315 | E11: =INDEX('Existing Only'!F:F,MATCH('Existing P&R Tool'!C8,'Existing Only'!A:A,0),1) -> Mid density houses | G11: =INDEX('Existing Only'!M:M,MATCH('Existing P&R Tool'!C8,'Existing Only'!A:A,0),1) -> 0.020532 | I11: =INDEX('Existing Only'!S:S,MATCH('Existing P&R Tool'!C8,'Existing Only'!A:A,0),1) -> 76.013878
C13: Parking Utilization | E13: Population Density | G13: No Vehicle Ownership % | I13: Bike Score
C14: =INDEX('Existing Only'!D:D,MATCH('Existing P&R Tool'!C8,'Existing Only'!A:A,0),1) -> 0.32 | E14: =INDEX('Existing Only'!J:J,MATCH('Existing P&R Tool'!C8,'Existing Only'!A:A,0),1) -> 3805.7041 | G14: =INDEX('Existing Only'!P:P,MATCH('Existing P&R Tool'!C8,'Existing Only'!A:A,0),1) -> 0.010175 | I14: =INDEX('Existing Only'!T:T,MATCH('Existing P&R Tool'!C8,'Existing Only'!A:A,0),1) -> 83.637459
C16: Current Boardings | E16: Job Density (Jobs/sq mi) | G16: Transit Dependency Index | I16: Transit Access Score
C17: =INDEX('Existing Only'!H:H,MATCH('Existing P&R Tool'!C8,'Existing Only'!A:A,0),1) -> 125 | E17: =INDEX('Existing Only'!K:K,MATCH('Existing P&R Tool'!C8,'Existing Only'!A:A,0),1) -> 2964.107 | G17: =INDEX('Existing Only'!R:R,MATCH('Existing P&R Tool'!C8,'Existing Only'!A:A,0),1) -> 0 | I17: =INDEX('Existing Only'!U:U,MATCH('Existing P&R Tool'!C8,'Existing Only'!A:A,0),1) -> 7.692308
C19: Boardings Per Parked Car | E19: Assigned Typology
C20: =INDEX('Existing Only'!I:I,MATCH('Existing P&R Tool'!C8,'Existing Only'!A:A,0),1) -> 1.240079 | E20: =INDEX('Existing Only'!Z:Z,MATCH('Existing P&R Tool'!C8,'Existing Only'!A:A,0),1) -> 1 Suburban: Mid-corridor
C24: Target Ratio (boardings per parking space) | G24: Comparison of Current Supply to Target Supply
C26: High Parking Demand (or low boarding per parking) | E26: High Target Parking Supply | G26: Above or Below Target
C27: =ROUND(_xlfn.PERCENTILE.INC(C38:C137,0.165),0) -> 1 | E27: =ROUND(C17/C27,0)*1.1 -> 137.5 | G27: =ROUND(C11-E27,0)&" "&IF((C11-E27)>0,"Spaces Above Target","Spaces Below Target") -> 178 Spaces Above Target
C29: Medium Parking Demand (or medium boardings per parking) | E29: Medium Target Parking Supply | G29: Above or Below Target
C30: =ROUND(_xlfn.PERCENTILE.INC(C38:C137,0.75),1) -> 2.4 | E30: =ROUND(C17/C30,0)*1.1 -> 57.2 | G30: =ROUND(C11-E30,0)&" "&IF((C11-E30)>0,"Spaces Above Target","Spaces Below Target") -> 258 Spaces Above Target
C32: Low Parking Demand (or high boardings per parking) | E32: Low Target Parking Supply | G32: Above or Below Target
C33: =ROUND(_xlfn.PERCENTILE.INC(C38:C137,0.85),1) -> 2.8 | E33: =ROUND(C17/C33,0)*1.1 -> 49.5 | G33: =ROUND(C11-E33,0)&" "&IF((C11-E33)>0,"Spaces Above Target","Spaces Below Target") -> 266 Spaces Above Target
C37: Background typology searching for boardings per parked car, automatically updated
C38: =_xlfn._xlws.FILTER(GIS_Exports[Boardings/parked car],IF(E20="",1,GIS_Exports[Reassigned Typologies]=E20)) -> 1.712538 | D38: If more than 100 rows are needed adjust formulas in choosing parking supply range cells accordingly
C39: 1.995638
C40: 1.104859 | E40: Typologies
C41: 1.42379 | E41: 1 Suburban: Mid-corridor
C42: 2.290796 | E42: 2 Suburban: Transfer Location
C43: 1.405361 | E43: 3 Suburban: Terminus
C44: 1.944444 | E44: 4 Emerging Urban
C45: 1.269287 | E45: 5 TOD
C46: 2.700148 | E46: 6 Urban
C47: 3.053613
C48: 3.346307
C49: 1.240079
C50: 1.721962
C51: 2.902187
C52: 1.707945
C53: 1.819505
C54: 2.425739
C55: 2.257757

Sheet P&R Planning Tool
A2: Park & Ride Right-Sizing Tool
C5: Park and Ride Planner Tool for New Facilities
C7: Note: Please input information in cell marked with astrix (*).
C8: 1. Prosposed Park and Ride* | E8: 3. Assigned Typology*
C9: ABC location | E9: 1 Suburban: Mid-corridor
C11: 1.1 Parking Supply* | E11: 4. Land Use Context (Add brief description) | G11: 7. Low Income % * | I11: 10. Walk Score *
C12: 400 | E12: Majority single/MF units with some retail | G12: Medium | I12: Medium - 30 - 80
C14: 2. Projected Boardings* | E14: 5. Population Density * | G14: 8. No Vehicle Ownership * | I14: 11. Bike Score *
C15: 600 | E15: Medium - 2,500 – 5,000/sq mi | G15: Medium - 11% - 30% | I15: High - Above 80
E17: 6. Job Density (Jobs/sq mi) * | G17: 9. Transit Dependency Index * | I17: 12. Transit Access Score *
E18: Medium - 50 - 250 / sq mile | G18: Medium - 10 - 30% | I18: Medium - 20 - 40
C25: Target Ratio (boardings per parking space) | G25: Comparison of Current Supply to Target Supply
C27: High Parking Demand (or low boarding per parking) | E27: High Target Parking Supply | G27: Above or Below Target
C28: =ROUND(_xlfn.PERCENTILE.INC(C39:C136,0.165),0) -> 1 | E28: =ROUND(C15/C28,0)*1.1 -> 660 | G28: =IF(C12=FALSE,"N/A",ROUND(C12-E28,0)&" "&IF((C12-E28)>0,"Spaces Above Target","Spaces Below Target")) -> -260 Spaces Below Target
C30: Medium Parking Demand (or medium boardings per parking) | E30: Medium Target Parking Supply | G30: Above or Below Target
C31: =ROUND(_xlfn.PERCENTILE.INC(C39:C136,0.75),1) -> 2.4 | E31: =ROUND(C15/C31,0)*1.1 -> 275 | G31: =IF(C12=FALSE,"N/A",ROUND(C12-E31,0)&" "&IF((C12-E31)>0,"Spaces Above Target","Spaces Below Target")) -> 125 Spaces Above Target
C33: Low Parking Demand (or high boardings per parking) | E33: Low Target Parking Supply | G33: Above or Below Target
C34: =ROUND(_xlfn.PERCENTILE.INC(C39:C136,0.85),1) -> 2.8 | E34: =ROUND(C15/C34,0)*1.1 -> 235.4 | G34: =IF(C12=FALSE,"N/A",ROUND(C12-E34,0)&" "&IF((C12-E34)>0,"Spaces Above Target","Spaces Below Target")) -> 165 Spaces Above Target
C38: Background typology searching for boardings per parked car, automatically updated
C39: =_xlfn._xlws.FILTER(GIS_Exports[Boardings/parked car],IF(E9="",1,GIS_Exports[Reassigned Typologies]=E9)) -> 1.712538 | D39: If more than 100 rows are needed adjust formulas in choosing parking supply range cells accordingly
C40: 1.995638
C41: 1.104859
C42: 1.42379
C43: 2.290796
C44: 1.405361
C45: 1.944444
C46: 1.269287
C47: 2.700148
C48: 3.053613
C49: 3.346307
C50: 1.240079
C51: 1.721962
C52: 2.902187
C53: 1.707945
C54: 1.819505
C55: 2.425739
C56: 2.257757

Sheet GIS Exports
B1: Station Name | C1: Population (1/2 mile radius) | D1: Pop density (pop/sq mile) | E1: Parking Utilization | F1: Land use transit friendlyness notes | G1: Land use context notes | H1: Current Parking Spaces | I1: Current Boardings | J1: Boardings/parked car | K1: Pop Density | L1: Employment Density (sq mile) | M1: Job Density | N1: Percent Poverty | O1: Low Income Percentage | P1: EFA | Q1: No vehicle households percentage | R1: Vehicle Ownership | S1: TDI | T1: Walk Score | U1: Bike Score | V1: Transit Access Score | W1: PandR | X1: Option Buttom Existing | Y1: Initally Assigned Typology | Z1: Column3 | AA1: Reassigned Typologies | AB1: Typology notes
A2: 1 | B2: 2700 West Station | C2: 3635 | D2: =C2/0.7854 -> 4628.214922 | E2: 0.6 | F2: very low | G2: Suburban single family houses | H2: 218 | I2: 224 | J2: 1.712538 | K2: =GIS_Exports[[#This Row],[Pop density (pop/sq mile)]] -> 4628.214922 | L2: 1533.455 | M2: 1533.455 | N2: 0.022492 | O2: low | P2: no | Q2: 0.019364 | R2: medium | S2: 10 | T2: 49.728229 | U2: 94.754122 | V2: 15.384615 | W2: y | X2: 2 | Y2: 1 Suburban: Mid-corridor | AA2: 1 Suburban: Mid-corridor
B3: 3500 E + Wasatch Blvd | C3: 2478 | D3: 3155.080214 | H3: 168 | K3: =GIS_Exports[[#This Row],[Pop density (pop/sq mile)]] -> 3155.080214 | L3: 655.2394 | M3: 655.2394 | N3: 0.02183 | Q3: 0.002864 | Z3: 504.117602
A4: 2 | B4: 4800 West Station | C4: 3452 | D4: 4395.212631 | E4: 0.7 | F4: very low | G4: Suburban single family houses | H4: 262 | I4: 366 | J4: 1.995638 | K4: =GIS_Exports[[#This Row],[Pop density (pop/sq mile)]] -> 4395.212631 | L4: 379.653 | M4: 379.653 | N4: 0.008073 | O4: low | P4: no | Q4: 0.001914 | R4: high | S4: 0 | T4: 90.005262 | U4: 77.898857 | V4: 15.384615 | W4: y | Y4: 1 Suburban: Mid-corridor | AA4: 1 Suburban: Mid-corridor
A5: 3 | B5: 5600 West Station | C5: 1694 | D5: 2156.862745 | E5: 0.23 | F5: low | G5: Low density industrial area | H5: 425 | I5: 108 | J5: 1.104859 | K5: =GIS_Exports[[#This Row],[Pop density (pop/sq mile)]] -> 2156.862745 | L5: 1070.843 | M5: 1070.843 | N5: 0.006483 | O5: low | P5: no | Q5: 0.013198 | R5: high | S5: 10 | T5: 0 | U5: 31.518423 | V5: 7.692308 | W5: y | Y5: 1 Suburban: Mid-corridor | AA5: 1 Suburban: Mid-corridor
B6: 6200 S Wasatch Blvd | C6: 877 | D6: 1116.62847 | H6: 419 | K6: =GIS_Exports[[#This Row],[Pop density (pop/sq mile)]] -> 1116.62847 | L6: 7944.453 | M6: 7944.453 | N6: 0.000739 | Q6: 0 | Z6: 6220.764975
B7: 6600 S Union Park Ave | C7: 3808 | D7: 4848.484848 | H7: 199 | K7: =GIS_Exports[[#This Row],[Pop density (pop/sq mile)]] -> 4848.484848 | L7: 5380.677 | M7: 5380.677 | N7: 0.047584 | Q7: 0.027648 | Z7: 4184.458877
A8: 4 | B8: American Fork Station | C8: 860 | D8: 1094.983448 | E8: 0.74 | F8: low | G8: Mid density houses, open land | H8: 541 | I8: 570 | J8: 1.42379 | K8: =GIS_Exports[[#This Row],[Pop density (pop/sq mile)]] -> 1094.983448 | L8: 1916.369 | M8: 1916.369 | N8: 0.009218 | O8: low | P8: no | Q8: 0.000303 | R8: high | S8: 0 | T8: 45.956653 | U8: 56.491897 | V8: 15.384615 | W8: y | Y8: 1 Suburban: Mid-corridor | AA8: 1 Suburban: Mid-corridor
B9: Antelope Dr | C9: 1624 | D9: 2067.736185 | H9: 905 | K9: =GIS_Exports[[#This Row],[Pop density (pop/sq mile)]] -> 2067.736185 | L9: 176.5836 | M9: 176.5836 | N9: 0.006035 | Q9: 0.003208 | Z9: 127.756939
A10: 5 | B10: Ballpark Station | C10: 3346 | D10: 4260.249554 | E10: 0.89 | F10: high potential | G10: Mix big box, housing, apartments, potential future development | H10: 193 | I10: 476 | J10: 2.771147 | K10: =GIS_Exports[[#This Row],[Pop density (pop/sq mile)]] -> 4260.249554 | L10: 11514.95 | M10: 11514.95 | N10: 0.210723 | O10: medium-high | P10: yes | Q10: 0.161962 | R10: low | S10: 45 | T10: 100 | U10: 99.400161 | V10: 30.769231 | W10: y | Y10: 1 Suburban: Mid-corridor | AA10: 5 TOD | AB10: Higher potential
B11: Benson Grist Mill | C11: 1093 | D11: 1391.647568 | H11: 378 | K11: =GIS_Exports[[#This Row],[Pop density (pop/sq mile)]] -> 1391.647568 | L11: 451.3524 | M11: 451.3524 | N11: 9e-05 | Q11: 0.002292 | Z11: 352.459593
B12: Big Cottonwood Canyon | C12: 1192 | D12: 1517.697988 | H12: 600 | K12: =GIS_Exports[[#This Row],[Pop density (pop/sq mile)]] -> 1517.697988 | L12: 477.5923 | M12: 477.5923 | N12: 0.009692 | Q12: 0 | Z12: 365.731661
A13: 6 | B13: Bingham Junction Station | C13: 4860 | D13: 6187.929717 | E13: 0.37 | F13: mid | G13: Mid density houses, large employers | H13: 199 | I13: 261 | J13: 3.544751 | K13: =GIS_Exports[[#This Row],[Pop density (pop/sq mile)]] -> 6187.929717 | L13: 10504.06 | M13: 10504.06 | N13: 0.066027 | O13: medium | P13: no | Q13: 0.03408 | R13: high | S13: 35 | T13: 65.571197 | U13: 78.968784 | V13: 15.384615 | W13: y | Y13: 1 Suburban: Mid-corridor | AA13: 5 TOD | AB13: Medium potential
A14: 7 | B14: Central Pointe Station | C14: 1389 | D14: 1768.525592 | E14: 0.92 | F14: high potential | G14: Mix big box, housing, apartments, possible future development | H14: 80 | I14: 1378 | J14: 18.722826 | K14: =GIS_Exports[[#This Row],[Pop density (pop/sq mile)]] -> 1768.525592 | L14: 14591.37 | M14: 14591.37 | N14: 0.058315 | O14: medium-high | P14: yes | Q14: 0.066001 | R14: low | S14: 40 | T14: 73.119172 | U14: 82.417548 | V14: 46.153846 | W14: y | Y14: 4 Emerging Urban | AA14: 4 Emerging Urban | AB14: Very high potential with 300West infill
A15: 8 | B15: Clearfield Station | C15: 2729 | D15: 3474.662592 | E15: 0.41 | F15: very low | G15: Open land, large industry | H15: 905 | I15: 850 | J15: 2.290796 | K15: =GIS_Exports[[#This Row],[Pop density (pop/sq mile)]] -> 3474.662592 | L15: 5618.985 | M15: 5618.985 | N15: 0.047451 | O15: medium | P15: yes | Q15: 0.02431 | R15: high | S15: 20 | T15: 13.72618 | U15: 47.108159 | V15: 46.153846 | W15: y | Y15: 1 Suburban: Mid-corridor | AA15: 1 Suburban: Mid-corridor
A16: 9 | B16: Crescent View Station | C16: 4900 | D16: 6238.85918 | E16: 0.68 | F16: low | G16: Suburban single family houses | H16: 248 | I16: 237 | J16: 1.405361 | K16: =GIS_Exports[[#This Row],[Pop density (pop/sq mile)]] -> 6238.85918 | L16: 3509.587 | M16: 3509.587 | N16: 0.019706 | O16: low | P16: yes | Q16: 0.012617 | R16: high | S16: 10 | T16: 68.362158 | U16: 91.620521 | V16: 7.692308 | W16: y | Y16: 1 Suburban: Mid-corridor | AA16: 1 Suburban: Mid-corridor
A17: 10 | B17: Daybreak Parkway Station | C17: 3373 | D17: 4294.626942 | E17: 0.86 | F17: high potential | G17: High density housing, future development | H17: 378 | I17: 1001 | J17: 3.079242 | K17: =GIS_Exports[[#This Row],[Pop density (pop/sq mile)]] -> 4294.626942 | L17: 4961.346 | M17: 4961.346 | N17: 0.001995 | O17: low | P17: no | Q17: 0.010781 | R17: high | S17: 0 | T17: 83.096708 | U17: 92.115408 | V17: 7.692308 | W17: y | Y17: 3 Suburban: Terminus | AA17: 5 TOD | AB17: Could be TOD once more infill has occurred
B18: Decker Lake Station | C18: 3980 | D18: 5067.481538 | H18: 271 | K18: =GIS_Exports[[#This Row],[Pop density (pop/sq mile)]] -> 5067.481538 | L18: 8115.615 | M18: 8115.615 | N18: 0.112659 | Q18: 0.033162 | Z18: 6346.596023
B19: Draper Peaks | C19: 1739 | D19: 2214.158391 | H19: 716 | K19: =GIS_Exports[[#This Row],[Pop density (pop/sq mile)]] -> 2214.158391 | L19: 8966.353 | M19: 8966.353 | N19: 0.014313 | Q19: 0.003885 | Z19: 7013.472078
A20: 11 | B20: Draper Station | C20: 769 | D20: 979.1189203 | E20: 0.48 | F20: low | G20: Large employers | H20: 600 | I20: 560 | J20: 1.944444 | K20: =GIS_Exports[[#This Row],[Pop density (pop/sq mile)]] -> 979.1189203 | L20: 7243.42 | M20: 7243.42 | N20: 0.022938 | O20: medium | P20: no | Q20: 0 | R20: high | S20: 0 | T20: 27.362724 | U20: 30.365302 | V20: 15.384615 | W20: y | Y20: 1 Suburban: Mid-corridor | AA20: 1 Suburban: Mid-corridor
A21: 12 | B21: Draper Town Center Station | C21: 2134 | D21: 2717.086835 | E21: 0.27 | F21: low | G21: Big box, some housing, lowish density | H21: 438 | I21: 460 | J21: 3.889734 | K21: =GIS_Exports[[#This Row],[Pop density (pop/sq mile)]] -> 2717.086835 | L21: 5065.683 | M21: 5065.683 | N21: 0.009601 | O21: low | P21: no | Q21: 0.000242 | R21: high | S21: 0 | T21: 73.582262 | U21: 66.321493 | V21: 15.384615 | W21: y | Y21: 3 Suburban: Terminus | AA21: 3 Suburban: Terminus
A22: 13 | B22: Farmington Station | C22: 1497 | D22: 1906.035141 | E22: 0.44 | F22: mid | G22: Big box, mall, apartments | H22: 872 | I22: 487 | J22: 1.269287 | K22: =GIS_Exports[[#This Row],[Pop density (pop/sq mile)]] -> 1906.035141 | L22: 7910.037 | M22: 7910.037 | N22: 0.002034 | O22: low | P22: no | Q22: 0.003135 | R22: high | S22: 0 | T22: 32.041121 | U22: 42.53284 | V22: 46.153846 | W22: y | Y22: 1 Suburban: Mid-corridor | AA22: 1 Suburban: Mid-corridor
A23: 14 | B23: Fashion Place West Station | C23: 2528 | D23: 3218.742042 | E23: 0.77 | F23: low | G23: Suburban single family houses, some retail | H23: 316 | I23: 657 | J23: 2.700148 | K23: =GIS_Exports[[#This Row],[Pop density (pop/sq mile)]] -> 3218.742042 | L23: 4345.225 | M23: 4345.225 | N23: 0.046772 | O23: medium | P23: no | Q23: 0.000667 | R23: high | S23: 10 | T23: 58.606831 | U23: 87.939667 | V23: 46.153846 | W23: y | Y23: 1 Suburban: Mid-corridor | AA23: 1 Suburban: Mid-corridor
B24: Fruit Heights | C24: 1983 | D24: 2524.828113 | H24: 334 | K24: =GIS_Exports[[#This Row],[Pop density (pop/sq mile)]] -> 2524.828113 | L24: 159.8426 | M24: 159.8426 | N24: 0.003605 | Q24: 0.008662 | Z24: 116.949998
B25: Hill AFB • south gate | C25: 3142 | D25: 4000.509295 | K25: =GIS_Exports[[#This Row],[Pop density (pop/sq mile)]] -> 4000.509295 | L25: 8554.338 | M25: 8554.338 | N25: 0.063587 | Q25: 0.013146 | Z25: 6678.635081
A26: 15 | B26: Historic Gardner Station | C26: 3143 | D26: 4001.782531 | E26: 0.33 | F26: mid | G26: Open land, apartments | H26: 130 | I26: 131 | J26: 3.053613 | K26: =GIS_Exports[[#This Row],[Pop density (pop/sq mile)]] -> 4001.782531 | L26: 3159.277 | M26: 3159.277 | N26: 0.01869 | O26: low | P26: no | Q26: 0.004547 | R26: high | S26: 20 | T26: 41.096832 | U26: 95.048505 | V26: 15.384615 | W26: y | Y26: 1 Suburban: Mid-corridor | AA26: 1 Suburban: Mid-corridor
A27: 16 | B27: Historic Sandy Station | C27: 4037 | D27: 5140.056022 | E27: 0.73 | F27: low | G27: Suburban single family houses | H27: 271 | I27: 662 | J27: 3.346307 | K27: =GIS_Exports[[#This Row],[Pop density (pop/sq mile)]] -> 5140.056022 | L27: 5194.194 | M27: 5194.194 | N27: 0.035388 | O27: low | P27: yes | Q27: 0.038412 | R27: high | S27: 25 | T27: 92.585013 | U27: 87.617455 | V27: 30.769231 | W27: y | Y27: 1 Suburban: Mid-corridor | AA27: 1 Suburban: Mid-corridor
B28: Jeremy Ranch | C28: 677 | D28: 861.9811561 | K28: =GIS_Exports[[#This Row],[Pop density (pop/sq mile)]] -> 861.9811561 | L28: 1257.595 | M28: 1257.595 | N28: 0.003181 | Q28: 0 | Z28: 978.724621
A29: 17 | B29: Jordan Valley Station | C29: 4299 | D29: 5473.644003 | E29: 0.21 | F29: mid | G29: Apartments, industry | H29: 716 | I29: 427 | J29: 2.839851 | K29: =GIS_Exports[[#This Row],[Pop density (pop/sq mile)]] -> 5473.644003 | L29: 3419.509 | M29: 3419.509 | N29: 0.024692 | O29: low | P29: yes | Q29: 0.016247 | R29: medium | S29: 20 | T29: 60.739967 | U29: 83.757001 | V29: 30.769231 | W29: y | Y29: 1 Suburban: Mid-corridor | AA29: 5 TOD | AB29: Medium potential
B30: Kaysville | C30: 2014 | D30: 2564.298447 | K30: =GIS_Exports[[#This Row],[Pop density (pop/sq mile)]] -> 2564.298447 | L30: 3846.435 | M30: 3846.435 | N30: 0.017374 | Q30: 0.008707 | Z30: 3015.364239
B31: Kimball Junction Transit Center | C31: 239 | D31: 304.3035396 | K31: =GIS_Exports[[#This Row],[Pop density (pop/sq mile)]] -> 304.3035396 | L31: 7737.89 | M31: 7737.89 | N31: 0.007031 | Q31: 0.00808 | Z31: 5934.686153
A32: 18 | B32: Kimballs Lane Station | C32: 2989 | D32: 3805.7041 | E32: 0.32 | F32: low | G32: Mid density houses | H32: 315 | I32: 125 | J32: 1.240079 | K32: =GIS_Exports[[#This Row],[Pop density (pop/sq mile)]] -> 3805.7041 | L32: 2964.107 | M32: 2964.107 | N32: 0.020532 | O32: low | P32: no | Q32: 0.010175 | R32: high | S32: 0 | T32: 76.013878 | U32: 83.637459 | V32: 7.692308 | W32: y | Y32: 1 Suburban: Mid-corridor | AA32: 1 Suburban: Mid-corridor
B33: Layton Hills Mall | C33: 3992 | D33: 5082.760377 | K33: =GIS_Exports[[#This Row],[Pop density (pop/sq mile)]] -> 5082.760377 | L33: 5852.486 | M33: 5852.486 | N33: 0.022959 | Q33: 0.010996 | Z33: 4558.708222
A34: 19 | B34: Layton Station | C34: 2513 | D34: =C34/0.7854 -> 3199.643494 | E34: 0.91 | F34: low | G34: Some apartments | H34: 418 | I34: 655 | J34: 1.721962 | K34: =GIS_Exports[[#This Row],[Pop density (pop/sq mile)]] -> 3199.643494 | L34: 4200.974 | M34: 4200.974 | N34: 0.031945 | O34: medium | P34: yes | Q34: 0.016357 | R34: high-medium | S34: 15 | T34: 36.0104 | U34: 95.274101 | V34: 38.461538 | W34: y | Y34: 1 Suburban: Mid-corridor | AA34: 1 Suburban: Mid-corridor
A35: 20 | B35: Lehi Station | C35: 738 | D35: 939.6485867 | E35: 0.59 | F35: mid | G35: Large employers | H35: 716 | I35: 1226 | J35: 2.902187 | K35: =GIS_Exports[[#This Row],[Pop density (pop/sq mile)]] -> 939.6485867 | L35: 11147.19 | M35: 11147.19 | N35: 0.006157 | O35: low | P35: no | Q35: 0.000239 | R35: high | S35: 5 | T35: 62.712058 | U35: 41.092876 | V35: 38.461538 | W35: y | Y35: 1 Suburban: Mid-corridor | AA35: 1 Suburban: Mid-corridor
B36: Little Cottonwood Canyon | C36: 100 | D36: 127.3236567 | K36: =GIS_Exports[[#This Row],[Pop density (pop/sq mile)]] -> 127.3236567 | L36: 96.09817 | M36: 96.09817 | N36: 0.001479 | Q36: 7.7e-05 | Z36: 77.244673
A37: 21 | B37: Meadowbrook Station | C37: 2194 | D37: 2793.481029 | E37: 0.34 | F37: mid high | G37: Apartments, retail | H37: 505 | I37: 656 | J37: 3.820617 | K37: =GIS_Exports[[#This Row],[Pop density (pop/sq mile)]] -> 2793.481029 | L37: 10531.24 | M37: 10531.24 | N37: 0.091483 | O37: medium-high | P37: yes | Q37: 0.067085 | R37: low | S37: 40 | T37: 76.546026 | U37: 87.947918 | V37: 30.769231 | W37: y | Y37: 1 Suburban: Mid-corridor | AA37: 5 TOD | AB37: maybe suburban transfer or medium potential
A38: 22 | B38: Midvale Center Station | C38: 4457 | D38: 5674.815381 | E38: 0.26 | F38: low | G38: Suburban single family houses, some retail | H38: 334 | I38: 491 | J38: 5.654076 | K38: =GIS_Exports[[#This Row],[Pop density (pop/sq mile)]] -> 5674.815381 | L38: 3215.248 | M38: 3215.248 | N38: 0.031774 | O38: low | P38: yes | Q38: 0.038123 | R38: medium | S38: 20 | T38: 89.183678 | U38: 79.684189 | V38: 46.153846 | W38: y | Y38: 1 Suburban: Mid-corridor | AA38: 2 Suburban: Transfer Location
A39: 23 | B39: Midvale Fort Union Station | C39: 2945 | D39: 3749.681691 | E39: 0.25 | F39: mid high | G39: Apartments, retail | H39: 275 | I39: 939 | J39: 13.658182 | K39: =GIS_Exports[[#This Row],[Pop density (pop/sq mile)]] -> 3749.681691 | L39: 6638.781 | M39: 6638.781 | N39: 0.090148 | O39: medium | P39: yes | Q39: 0.10592 | R39: medium | S39: 35 | T39: 55.71554 | U39: 78.536013 | V39: 23.076923 | W39: y | Y39: 2 Suburban: Transfer Location | AA39: 2 Suburban: Transfer Location
A40: 24 | B40: Millcreek Station | C40: 1850 | D40: 2355.48765 | E40: 1 | F40: low | G40: some retail | H40: 106 | I40: 1528 | J40: 14.415094 | K40: =GIS_Exports[[#This Row],[Pop density (pop/sq mile)]] -> 2355.48765 | L40: 12655.22 | M40: 12655.22 | N40: 0.053658 | O40: medium | P40: no | Q40: 0.033493 | R40: medium | S40: 35 | T40: 68.286478 | U40: 83.634387 | V40: 30.769231 | W40: y | Y40: 2 Suburban: Transfer Location | AA40: 2 Suburban: Transfer Location
B41: Monarch Meadows Park | C41: 4186 | D41: 5329.768271 | K41: =GIS_Exports[[#This Row],[Pop density (pop/sq mile)]] -> 5329.768271 | L41: 889.8319 | M41: 889.8319 | N41: 0.00528 | Q41: 0.0058 | Z41: 733.430296
B42: Murray Central Station | C42: <Null> | K42: =GIS_Exports[[#This Row],[Pop density (pop/sq mile)]] ->  | L42: 18020.77 | M42: 18020.77 | N42: 0.009482 | Q42: 0.050129 | Z42: 13871.95534
A43: 25 | B43: Murray Central Station2 | C43: 1567 | D43: 1995.161701 | E43: 0.82 | F43: low | G43: Hospital | H43: 338 | I43: 4039 | J43: 14.57281 | K43: =GIS_Exports[[#This Row],[Pop density (pop/sq mile)]] -> 1995.161701 | L43: 18084.57 | M43: 18084.57 | N43: 0.009353 | O43: low-medium | P43: no | Q43: 0.049726 | R43: high-medium | S43: 10 | T43: 62.367835 | U43: 78.989094 | V43: 61.538462 | W43: y | Y43: 2 Suburban: Transfer Location | AA43: 2 Suburban: Transfer Location
A44: 26 | B44: Murray North Station | C44: 3828 | D44: 4873.94958 | E44: 0.56 | F44: mid | G44: Apartments, retail | H44: 245 | I44: 479 | J44: 3.491254 | K44: =GIS_Exports[[#This Row],[Pop density (pop/sq mile)]] -> 4873.94958 | L44: 8087.826 | M44: 8087.826 | N44: 0.067914 | O44: medium | P44: yes | Q44: 0.162363 | R44: low | S44: 30 | T44: 40.442072 | U44: 74.443235 | V44: 30.769231 | W44: y | Y44: 1 Suburban: Mid-corridor | AA44: 2 Suburban: Transfer Location
B45: North Tooele | C45: 53 | D45: 67.48153807 | K45: =GIS_Exports[[#This Row],[Pop density (pop/sq mile)]] -> 67.48153807 | L45: 1026.482 | M45: 1026.482 | N45: 0.001062 | Q45: 0 | Z45: 794.417316
B46: Oak Hills | C46: 774 | D46: 985.4851031 | K46: =GIS_Exports[[#This Row],[Pop density (pop/sq mile)]] -> 985.4851031 | L46: 263.7953 | M46: 263.7953 | N46: 0.000322 | Q46: 0 | Z46: 252.536165
A47: 27 | B47: Ogden Station and Transit Center | C47: 1268 | D47: 1614.463967 | E47: 0.56 | F47: mid | G47: Some offices | H47: 596 | I47: 1813 | J47: 5.432047 | K47: =GIS_Exports[[#This Row],[Pop density (pop/sq mile)]] -> 1614.463967 | L47: 11136.3 | M47: 11136.3 | N47: 0.096776 | O47: medium-high | P47: no | Q47: 0.071271 | R47: low | S47: 40 | T47: 54.800457 | U47: 68.657165 | V47: 100 | W47: y | Y47: 4 Emerging Urban | AA47: 4 Emerging Urban | AB47: Urban downtown few blocks from station
B48: Olympus Cove P+R | C48: 3133 | D48: 3989.050166 | K48: =GIS_Exports[[#This Row],[Pop density (pop/sq mile)]] -> 3989.050166 | L48: 1025.707 | M48: 1025.707 | N48: 0.015291 | Q48: 0.004262 | Z48: 794.991811
A49: 28 | B49: Orem Central Station | C49: 3185 | D49: 4055.258467 | E49: 0.77 | F49: mid high | G49: Some apartments, university | H49: 498 | I49: 2054 | J49: 5.356491 | K49: =GIS_Exports[[#This Row],[Pop density (pop/sq mile)]] -> 4055.258467 | L49: 7502.544 | M49: 7502.544 | N49: 0.13162 | O49: medium-high | P49: yes | Q49: 0.001157 | R49: high | S49: 20 | T49: 62.588013 | U49: 44.017191 | V49: 46.153846 | W49: y | Y49: 2 Suburban: Transfer Location | AA49: 5 TOD
B50: Palisade Park | C50: 1541 | D50: 1962.05755 | K50: =GIS_Exports[[#This Row],[Pop density (pop/sq mile)]] -> 1962.05755 | L50: 3355.27 | M50: 3355.27 | N50: 0.01374 | Q50: 7e-06 | Z50: 2607.003758
B51: Pleasant View Station | C51: 1067 | D51: 1358.543417 | K51: =GIS_Exports[[#This Row],[Pop density (pop/sq mile)]] -> 1358.543417 | L51: 2219.034 | M51: 2219.034 | N51: 0.026859 | Q51: 0.000656 | Z51: 1722.09709
A52: 29 | B52: Provo Central Station | C52: 4008 | D52: 5103.132162 | E52: 0.63 | F52: mid | G52: Some mix | H52: 791 | I52: 3434 | J52: 6.891016 | K52: =GIS_Exports[[#This Row],[Pop density (pop/sq mile)]] -> 5103.132162 | L52: 16886.76 | M52: 16886.76 | N52: 0.062232 | O52: medium-high | P52: no | Q52: 0.031111 | R52: high-medium | S52: 30 | T52: 79.102141 | U52: 68.319263 | V52: 61.538462 | W52: y | Y52: 4 Emerging Urban | AA52: 4 Emerging Urban | AB52: Urban downtown many blocks from station
B53: Rainbow Gardens | C53: 1329 | D53: 1692.131398 | K53: =GIS_Exports[[#This Row],[Pop density (pop/sq mile)]] -> 1692.131398 | L53: 352.7657 | M53: 352.7657 | N53: 0.044262 | Q53: 0.005942 | Z53: 276.103629
B54: River Trail Station [except Sundays] | C54: 2253 | D54: 2868.601986 | K54: =GIS_Exports[[#This Row],[Pop density (pop/sq mile)]] -> 2868.601986 | L54: 5879.976 | M54: 5879.976 | N54: 0.141499 | Q54: 0.017318 | Z54: 4601.02108
B55: Riverdale | C55: 1682 | D55: 2141.583906 | K55: =GIS_Exports[[#This Row],[Pop density (pop/sq mile)]] -> 2141.583906 | L55: 5696.665 | M55: 5696.665 | N55: 0.07805 | Q55: 0.006178 | Z55: 4261.713058
B56: Rose Park | C56: 3471 | D56: 4419.404125 | K56: =GIS_Exports[[#This Row],[Pop density (pop/sq mile)]] -> 4419.404125 | L56: 2436.599 | M56: 2436.599 | N56: 0.076226 | Q56: 0.056641 | Z56: 1898.045654
A57: 30 | B57: Roy Station | C57: 2665 | D57: 3393.175452 | E57: 0.47 | F57: very low | G57: Suburban single family houses | H57: 512 | I57: 411 | J57: 1.707945 | K57: =GIS_Exports[[#This Row],[Pop density (pop/sq mile)]] -> 3393.175452 | L57: 1345.214 | M57: 1345.214 | N57: 0.012467 | O57: low | P57: no | Q57: 4e-05 | R57: high | S57: 5 | T57: 42.210417 | U57: 46.742376 | V57: 23.076923 | W57: y | Y57: 1 Suburban: Mid-corridor | AA57: 1 Suburban: Mid-corridor
B58: Salt Lake Central Station | C58: 2695 | D58: 3431.372549 | K58: =GIS_Exports[[#This Row],[Pop density (pop/sq mile)]] -> 3431.372549 | L58: 20092.66 | M58: 20092.66 | N58: 0.077188 | Q58: 0.071932 | Z58: 14916.10871
A59: 31 | B59: Salt Lake Central Station2 | C59: 2695 | D59: 3431.372549 | E59: 1 | F59: high | G59: close-est to downtown | H59: 23 | I59: 2490 | J59: 108.26087 | K59: =GIS_Exports[[#This Row],[Pop density (pop/sq mile)]] -> 3431.372549 | L59: 20092.29 | M59: 20092.29 | N59: 0.077188 | O59: medium-high | P59: no | Q59: 0.07193 | R59: low | S59: 20 | T59: 71.924974 | U59: 95.015214 | V59: 61.538462 | W59: y | Y59: 6 Urban | AA59: 6 Urban
A60: 32 | B60: Sandy Civic Center Station | C60: 2762 | D60: 3516.679399 | E60: 0.08 | F60: high potential | G60: Apartments | H60: 1192 | I60: 325 | J60: 3.408138 | K60: =GIS_Exports[[#This Row],[Pop density (pop/sq mile)]] -> 3516.679399 | L60: 6670.794 | M60: 6670.794 | N60: 0.016202 | O60: low | P60: no | Q60: 0.005982 | R60: high | S60: 0 | T60: 70.887237 | U60: 89.599054 | V60: 30.769231 | W60: y | Y60: 1 Suburban: Mid-corridor | AA60: 2 Suburban: Transfer Location | AB60: With more mixed use development has high potential
A61: 33 | B61: South Jordan Parkway Station | C61: 2043 | D61: 2601.222307 | E61: 0.3 | F61: mid | G61: Potential apartments | H61: 229 | I61: 125 | J61: 1.819505 | K61: =GIS_Exports[[#This Row],[Pop density (pop/sq mile)]] -> 2601.222307 | L61: 285.3983 | M61: 285.3983 | N61: 0.003985 | O61: low | P61: no | Q61: 0.021805 | R61: high | S61: 10 | T61: 37.072562 | U61: 60.998519 | V61: 7.692308 | W61: y | Y61: 1 Suburban: Mid-corridor | AA61: 1 Suburban: Mid-corridor
A62: 34 | B62: South Jordan Station | C62: 1406 | D62: 1790.170614 | E62: 0.49 | F62: mid | G62: Employers | H62: 562 | I62: 668 | J62: 2.425739 | K62: =GIS_Exports[[#This Row],[Pop density (pop/sq mile)]] -> 1790.170614 | L62: 12523.01 | M62: 12523.01 | N62: 0.024208 | O62: low | P62: no | Q62: 0.0002 | R62: high | S62: 0 | T62: 23.995665 | U62: 76.309085 | V62: 38.461538 | W62: y | Y62: 1 Suburban: Mid-corridor | AA62: 1 Suburban: Mid-corridor
B63: South Payson | C63: 1123 | D63: 1429.844665 | K63: =GIS_Exports[[#This Row],[Pop density (pop/sq mile)]] -> 1429.844665 | L63: 3507 | M63: 3507 | N63: 0.046684 | Q63: 0.020657 | Z63: 2996.36134
B64: South Weber | C64: 1142 | D64: 1454.03616 | K64: =GIS_Exports[[#This Row],[Pop density (pop/sq mile)]] -> 1454.03616 | L64: 299.4524 | M64: 299.4524 | N64: 0.004129 | Q64: 0 | Z64: 233.642993
B65: Spanish Fork (VASA) | C65: 4323 | D65: 5504.201681 | K65: =GIS_Exports[[#This Row],[Pop density (pop/sq mile)]] -> 5504.201681 | L65: 3519.932 | M65: 3519.932 | N65: 0.037701 | Q65: 0.013423 | Z65: 2825.296381
B66: Vineyard Station | C66: 1721 | D66: =C66/0.7854 -> 2191.240132 | K66: =GIS_Exports[[#This Row],[Pop density (pop/sq mile)]] -> 2191.240132 | L66: 7931.211 | M66: 7931.211 | N66: 0.037893 | Q66: 0.011905 | Z66: 2010.812427
A67: 35 | B67: West Jordan City Center Station | C67: 3812 | D67: =C67/0.7854 -> 4853.577795 | E67: 0.36 | F67: low | G67: Industry offices | H67: 336 | I67: 736 | J67: 6.084656 | K67: =GIS_Exports[[#This Row],[Pop density (pop/sq mile)]] -> 4853.577795 | L67: 4421.976 | M67: 4421.976 | N67: 0.035334 | O67: low | P67: yes | Q67: 0.00557 | R67: high | S67: 40 | T67: 38.732083 | U67: 67.43118 | V67: 23.076923 | W67: y | Y67: 2 Suburban: Transfer Location | AA67: 2 Suburban: Transfer Location
A68: 36 | B68: West Valley Central Station | C68: 5083 | D68: =C68/0.7854 -> 6471.861472 | E68: 0.74 | F68: mid | G68: Offices, mall, some apartments | H68: 168 | I68: 2476 | J68: 19.916345 | K68: =GIS_Exports[[#This Row],[Pop density (pop/sq mile)]] -> 6471.861472 | L68: 5413.344 | M68: 5413.344 | N68: 0.096077 | O68: medium | P68: yes | Q68: 0.055244 | R68: medium | S68: 40 | T68: 91.88513 | U68: 89.126304 | V68: 76.923077 | W68: y | Y68: 3 Suburban: Terminus | AA68: 5 TOD | AB68: Mainly mall and small residential
A69: 37 | B69: Woods Cross Station | C69: 2053 | D69: =C69/0.7854 -> 2613.954673 | E69: 0.5 | F69: very low | G69: Suburban single family houses | H69: 419 | I69: 473 | J69: 2.257757 | K69: =GIS_Exports[[#This Row],[Pop density (pop/sq mile)]] -> 2613.954673 | L69: 3293.135 | M69: 3293.135 | N69: 0.086972 | O69: medium | P69: no | Q69: 0.01533 | R69: high | S69: 10 | T69: 30.312588 | U69: 74.32526 | V69: 7.692308 | W69: y | Y69: 1 Suburban: Mid-corridor | AA69: 1 Suburban: Mid-corridor
A70: Notes | L70: Employment density was calculated from a half mile buffer around P&R stations and using apportion polygon tool in ArcGIS to calculate the employment within the half mile buffer from TAZ 2024 job projections. | M70: Job density was estimated from the GIS maps created showing job density at TAZs near P&R stations | N70: Poverty percentage was calculated using apportion polygon of a half mile buffer around P&R stations and poverty percentage of surrounding blockgroup polygons | O70: Low income was estimated using the produced low income GIS maps | P70: Equity focus area, if station is within the boundary of an EFA then classified as yes

Sheet Existing Only
A1: Station Name | B1: Population (1/2 mile radius) | C1: Pop density (pop/sq mile) | D1: Parking Utilization | E1: Land use transit friendlyness notes | F1: Land use context notes | G1: Current Parking Spaces | H1: Current Boardings | I1: Boardings/parked car | J1: Pop Density | K1: Employment Density (sq mile) | L1: Job Density | M1: Percent Poverty | N1: Low Income Percentage | O1: EFA | P1: No vehicle households percentage | Q1: Vehicle Ownership | R1: TDI | S1: Walk Score | T1: Bike Score | U1: Transit Access Score | V1: PandR | W1: Option Buttom Existing | X1: Initally Assigned Typology | Y1: Column3 | Z1: Reassigned Typologies | AA1: Typology notes | AB1: Weighted Pop. Density | AC1: Weighted Job Density | AD1: Weighted Income % | AE1: Weighted Vehicle Ownership | AF1: Weighted TDI | AG1: Weighted Walk Score | AH1: Weighted Bike Score | AI1: Weighted Transit Access Score | AJ1: Total
A2: 2700 West Station | B2: =_xlfn.XLOOKUP(Existing_PR_GIS[[#This Row],[Station Name]],'GIS Exports'!$B:$B,'GIS Exports'!C:C) -> 3635 | C2: =_xlfn.XLOOKUP(Existing_PR_GIS[[#This Row],[Station Name]],'GIS Exports'!$B:$B,'GIS Exports'!D:D) -> 4628.214922 | D2: =_xlfn.XLOOKUP(Existing_PR_GIS[[#This Row],[Station Name]],'GIS Exports'!$B:$B,'GIS Exports'!E:E) -> 0.6 | E2: =_xlfn.XLOOKUP(Existing_PR_GIS[[#This Row],[Station Name]],'GIS Exports'!$B:$B,'GIS Exports'!F:F) -> very low | F2: =_xlfn.XLOOKUP(Existing_PR_GIS[[#This Row],[Station Name]],'GIS Exports'!$B:$B,'GIS Exports'!G:G) -> Suburban single family houses | G2: =_xlfn.XLOOKUP(Existing_PR_GIS[[#This Row],[Station Name]],'GIS Exports'!$B:$B,'GIS Exports'!H:H) -> 218 | H2: =_xlfn.XLOOKUP(Existing_PR_GIS[[#This Row],[Station Name]],'GIS Exports'!$B:$B,'GIS Exports'!I:I) -> 224 | I2: =_xlfn.XLOOKUP(Existing_PR_GIS[[#This Row],[Station Name]],'GIS Exports'!$B:$B,'GIS Exports'!J:J) -> 1.712538 | J2: =_xlfn.XLOOKUP(Existing_PR_GIS[[#This Row],[Station Name]],'GIS Exports'!$B:$B,'GIS Exports'!K:K) -> 4628.214922 | K2: =_xlfn.XLOOKUP(Existing_PR_GIS[[#This Row],[Station Name]],'GIS Exports'!$B:$B,'GIS Exports'!L:L) -> 1533.455 | L2: =_xlfn.XLOOKUP(Existing_PR_GIS[[#This Row],[Station Name]],'GIS Exports'!$B:$B,'GIS Exports'!M:M) -> 1533.455 | M2: =_xlfn.XLOOKUP(Existing_PR_GIS[[#This Row],[Station Name]],'GIS Exports'!$B:$B,'GIS Exports'!N:N) -> 0.022492 | N2: =_xlfn.XLOOKUP(Existing_PR_GIS[[#This Row],[Station Name]],'GIS Exports'!$B:$B,'GIS Exports'!O:O) -> low | O2: =_xlfn.XLOOKUP(Existing_PR_GIS[[#This Row],[Station Name]],'GIS Exports'!$B:$B,'GIS Exports'!P:P) -> no | P2: =_xlfn.XLOOKUP(Existing_PR_GIS[[#This Row],[Station Name]],'GIS Exports'!$B:$B,'GIS Exports'!Q:Q) -> 0.019364 | Q2: =_xlfn.XLOOKUP(Existing_PR_GIS[[#This Row],[Station Name]],'GIS Exports'!$B:$B,'GIS Exports'!R:R) -> medium | R2: =_xlfn.XLOOKUP(Existing_PR_GIS[[#This Row],[Station Name]],'GIS Exports'!$B:$B,'GIS Exports'!S:S) -> 10 | S2: =_xlfn.XLOOKUP(Existing_PR_GIS[[#This Row],[Station Name]],'GIS Exports'!$B:$B,'GIS Exports'!T:T) -> 49.728229 | T2: =_xlfn.XLOOKUP(Existing_PR_GIS[[#This Row],[Station Name]],'GIS Exports'!$B:$B,'GIS Exports'!U:U) -> 94.754122 | U2: =_xlfn.XLOOKUP(Existing_PR_GIS[[#This Row],[Station Name]],'GIS Exports'!$B:$B,'GIS Exports'!V:V) -> 15.384615 | V2: =_xlfn.XLOOKUP(Existing_PR_GIS[[#This Row],[Station Name]],'GIS Exports'!$B:$B,'GIS Exports'!W:W) -> y | W2: =_xlfn.XLOOKUP(Existing_PR_GIS[[#This Row],[Station Name]],'GIS Exports'!$B:$B,'GIS Exports'!X:X) -> 2 | X2: =_xlfn.XLOOKUP(Existing_PR_GIS[[#This Row],[Station Name]],'GIS Exports'!$B:$B,'GIS Exports'!Y:Y) -> 1 Suburban: Mid-corridor | Y2: =_xlfn.XLOOKUP(Existing_PR_GIS[[#This Row],[Station Name]],'GIS Exports'!$B:$B,'GIS Exports'!Z:Z) -> 0 | Z2: =_xlfn.XLOOKUP(Existing_PR_GIS[[#This Row],[Station Name]],'GIS Exports'!$B:$B,'GIS Exports'!AA:AA) -> 1 Suburban: Mid-corridor | AA2: =_xlfn.XLOOKUP(Existing_PR_GIS[[#This Row],[Station Name]],'GIS Exports'!$B:$B,'GIS Exports'!AB:AB) -> 0 | AB2: =IF($C2>5000,1,IF(AND($C2>2501,$C2<5000),0.5,0)) -> 0.5 | AC2: =IF(($K2/640)>=51,1,IF(AND(($K2/640)<51,($K2/640)>=11),0.5,0)) -> 0 | AD2: =IF($M2>25%,1,IF(AND($M2<=25%,$M2>=11%),0.5,0)) -> 0 | AE2: =IF($P2>=20%,1,IF(AND($P2>=11%,$P2<20%),0.5,0)) -> 0 | AF2: =IF($R2>=41,1,IF(AND($R2<41,$R2>=20),0.5,0)) -> 0 | AG2: =IF($S2>=80,2,IF(AND($S2<80,$S2>=30),1,0)) -> 1 | AH2: =IF($T2>=80,2,IF(AND($T2>=30,$T2<80),1,0)) -> 2 | AI2: =IF($U2>=50,2,IF(AND($U2<50,$U2>=20),1,0)) -> 0 | AJ2: =SUM(Existing_PR_GIS[[#This Row],[Weighted Pop. Density]:[Weighted Transit Access Score]]) -> 3.5
A3: 4800 West Station | B3: =_xlfn.XLOOKUP(Existing_PR_GIS[[#This Row],[Station Name]],'GIS Exports'!$B:$B,'GIS Exports'!C:C) -> 3452 | C3: =_xlfn.XLOOKUP(Existing_PR_GIS[[#This Row],[Station Name]],'GIS Exports'!$B:$B,'GIS Exports'!D:D) -> 4395.212631 | D3: =_xlfn.XLOOKUP(Existing_PR_GIS[[#This Row],[Station Name]],'GIS Exports'!$B:$B,'GIS Exports'!E:E) -> 0.7 | E3: =_xlfn.XLOOKUP(Existing_PR_GIS[[#This Row],[Station Name]],'GIS Exports'!$B:$B,'GIS Exports'!F:F) -> very low | F3: =_xlfn.XLOOKUP(Existing_PR_GIS[[#This Row],[Station Name]],'GIS Exports'!$B:$B,'GIS Exports'!G:G) -> Suburban single family houses | G3: =_xlfn.XLOOKUP(Existing_PR_GIS[[#This Row],[Station Name]],'GIS Exports'!$B:$B,'GIS Exports'!H:H) -> 262 | H3: =_xlfn.XLOOKUP(Existing_PR_GIS[[#This Row],[Station Name]],'GIS Exports'!$B:$B,'GIS Exports'!I:I) -> 366 | I3: =_xlfn.XLOOKUP(Existing_PR_GIS[[#This Row],[Station Name]],'GIS Exports'!$B:$B,'GIS Exports'!J:J) -> 1.995638 | J3: =_xlfn.XLOOKUP(Existing_PR_GIS[[#This Row],[Station Name]],'GIS Exports'!$B:$B,'GIS Exports'!K:K) -> 4395.212631 | K3: =_xlfn.XLOOKUP(Existing_PR_GIS[[#This Row],[Station Name]],'GIS Exports'!$B:$B,'GIS Exports'!L:L) -> 379.653 | L3: =_xlfn.XLOOKUP(Existing_PR_GIS[[#This Row],[Station Name]],'GIS Exports'!$B:$B,'GIS Exports'!M:M) -> 379.653 | M3: =_xlfn.XLOOKUP(Existing_PR_GIS[[#This Row],[Station Name]],'GIS Exports'!$B:$B,'GIS Exports'!N:N) -> 0.008073 | N3: =_xlfn.XLOOKUP(Existing_PR_GIS[[#This Row],[Station Name]],'GIS Exports'!$B:$B,'GIS Exports'!O:O) -> low | O3: =_xlfn.XLOOKUP(Existing_PR_GIS[[#This Row],[Station Name]],'GIS Exports'!$B:$B,'GIS Exports'!P:P) -> no | P3: =_xlfn.XLOOKUP(Existing_PR_GIS[[#This Row],[Station Name]],'GIS Exports'!$B:$B,'GIS Exports'!Q:Q) -> 0.001914 | Q3: =_xlfn.XLOOKUP(Existing_PR_GIS[[#This Row],[Station Name]],'GIS Exports'!$B:$B,'GIS Exports'!R:R) -> high | R3: =_xlfn.XLOOKUP(Existing_PR_GIS[[#This Row],[Station Name]],'GIS Exports'!$B:$B,'GIS Exports'!S:S) -> 0 | S3: =_xlfn.XLOOKUP(Existing_PR_GIS[[#This Row],[Station Name]],'GIS Exports'!$B:$B,'GIS Exports'!T:T) -> 90.005262 | T3: =_xlfn.XLOOKUP(Existing_PR_GIS[[#This Row],[Station Name]],'GIS Exports'!$B:$B,'GIS Exports'!U:U) -> 77.898857 | U3: =_xlfn.XLOOKUP(Existing_PR_GIS[[#This Row],[Station Name]],'GIS Exports'!$B:$B,'GIS Exports'!V:V) -> 15.384615 | V3: =_xlfn.XLOOKUP(Existing_PR_GIS[[#This Row],[Station Name]],'GIS Exports'!$B:$B,'GIS Exports'!W:W) -> y | W3: =_xlfn.XLOOKUP(Existing_PR_GIS[[#This Row],[Station Name]],'GIS Exports'!$B:$B,'GIS Exports'!X:X) -> 0 | X3: =_xlfn.XLOOKUP(Existing_PR_GIS[[#This Row],[Station Name]],'GIS Exports'!$B:$B,'GIS Exports'!Y:Y) -> 1 Suburban: Mid-corridor | Y3: =_xlfn.XLOOKUP(Existing_PR_GIS[[#This Row],[Station Name]],'GIS Exports'!$B:$B,'GIS Exports'!Z:Z) -> 0 | Z3: =_xlfn.XLOOKUP(Existing_PR_GIS[[#This Row],[Station Name]],'GIS Exports'!$B:$B,'GIS Exports'!AA:AA) -> 1 Suburban: Mid-corridor | AA3: =_xlfn.XLOOKUP(Existing_PR_GIS[[#This Row],[Station Name]],'GIS Exports'!$B:$B,'GIS Exports'!AB:AB) -> 0 | AB3: 0.5 | AC3: 0 | AD3: 0 | AE3: 0 | AF3: 0 | AG3: 2 | AH3: 1 | AI3: 0 | AJ3: =SUM(Existing_PR_GIS[[#This Row],[Weighted Pop. Density]:[Weighted Transit Access Score]]) -> 3.5
A4: 5600 West Station | B4: =_xlfn.XLOOKUP(Existing_PR_GIS[[#This Row],[Station Name]],'GIS Exports'!$B:$B,'GIS Exports'!C:C) -> 1694 | C4: =_xlfn.XLOOKUP(Existing_PR_GIS[[#This Row],[Station Name]],'GIS Exports'!$B:$B,'GIS Exports'!D:D) -> 2156.862745 | D4: =_xlfn.XLOOKUP(Existing_PR_GIS[[#This Row],[Station Name]],'GIS Exports'!$B:$B,'GIS Exports'!E:E) -> 0.23 | E4: =_xlfn.XLOOKUP(Existing_PR_GIS[[#This Row],[Station Name]],'GIS Exports'!$B:$B,'GIS Exports'!F:F) -> low | F4: =_xlfn.XLOOKUP(Existing_PR_GIS[[#This Row],[Station Name]],'GIS Exports'!$B:$B,'GIS Exports'!G:G) -> Low density industrial area | G4: =_xlfn.XLOOKUP(Existing_PR_GIS[[#This Row],[Station Name]],'GIS Exports'!$B:$B,'GIS Exports'!H:H) -> 425 | H4: =_xlfn.XLOOKUP(Existing_PR_GIS[[#This Row],[Station Name]],'GIS Exports'!$B:$B,'GIS Exports'!I:I) -> 108 | I4: =_xlfn.XLOOKUP(Existing_PR_GIS[[#This Row],[Station Name]],'GIS Exports'!$B:$B,'GIS Exports'!J:J) -> 1.104859 | J4: =_xlfn.XLOOKUP(Existing_PR_GIS[[#This Row],[Station Name]],'GIS Exports'!$B:$B,'GIS Exports'!K:K) -> 2156.862745 | K4: =_xlfn.XLOOKUP(Existing_PR_GIS[[#This Row],[Station Name]],'GIS Exports'!$B:$B,'GIS Exports'!L:L) -> 1070.843 | L4: =_xlfn.XLOOKUP(Existing_PR_GIS[[#This Row],[Station Name]],'GIS Exports'!$B:$B,'GIS Exports'!M:M) -> 1070.843 | M4: =_xlfn.XLOOKUP(Existing_PR_GIS[[#This Row],[Station Name]],'GIS Exports'!$B:$B,'GIS Exports'!N:N) -> 0.006483 | N4: =_xlfn.XLOOKUP(Existing_PR_GIS[[#This Row],[Station Name]],'GIS Exports'!$B:$B,'GIS Exports'!O:O) -> low | O4: =_xlfn.XLOOKUP(Existing_PR_GIS[[#This Row],[Station Name]],'GIS Exports'!$B:$B,'GIS Exports'!P:P) -> no | P4: =_xlfn.XLOOKUP(Existing_PR_GIS[[#This Row],[Station Name]],'GIS Exports'!$B:$B,'GIS Exports'!Q:Q) -> 0.013198 | Q4: =_xlfn.XLOOKUP(Existing_PR_GIS[[#This Row],[Station Name]],'GIS Exports'!$B:$B,'GIS Exports'!R:R) -> high | R4: =_xlfn.XLOOKUP(Existing_PR_GIS[[#This Row],[Station Name]],'GIS Exports'!$B:$B,'GIS Exports'!S:S) -> 10 | S4: =_xlfn.XLOOKUP(Existing_PR_GIS[[#This Row],[Station Name]],'GIS Exports'!$B:$B,'GIS Exports'!T:T) -> 0 | T4: =_xlfn.XLOOKUP(Existing_PR_GIS[[#This Row],[Station Name]],'GIS Exports'!$B:$B,'GIS Exports'!U:U) -> 31.518423 | U4: =_xlfn.XLOOKUP(Existing_PR_GIS[[#This Row],[Station Name]],'GIS Exports'!$B:$B,'GIS Exports'!V:V) -> 7.692308 | V4: =_xlfn.XLOOKUP(Existing_PR_GIS[[#This Row],[Station Name]],'GIS Exports'!$B:$B,'GIS Exports'!W:W) -> y | W4: =_xlfn.XLOOKUP(Existing_PR_GIS[[#This Row],[Station Name]],'GIS Exports'!$B:$B,'GIS Exports'!X:X) -> 0 | X4: =_xlfn.XLOOKUP(Existing_PR_GIS[[#This Row],[Station Name]],'GIS Exports'!$B:$B,'GIS Exports'!Y:Y) -> 1 Suburban: Mid-corridor | Y4: =_xlfn.XLOOKUP(Existing_PR_GIS[[#This Row],[Station Name]],'GIS Exports'!$B:$B,'GIS Exports'!Z:Z) -> 0 | Z4: =_xlfn.XLOOKUP(Existing_PR_GIS[[#This Row],[Station Name]],'GIS Exports'!$B:$B,'GIS Exports'!AA:AA) -> 1 Suburban: Mid-corridor | AA4: =_xlfn.XLOOKUP(Existing_PR_GIS[[#This Row],[Station Name]],'GIS Exports'!$B:$B,'GIS Exports'!AB:AB) -> 0 | AB4: 0 | AC4: 0 | AD4: 0 | AE4: 0 | AF4: 0 | AG4: 0 | AH4: 1 | AI4: 0 | AJ4: =SUM(Existing_PR_GIS[[#This Row],[Weighted Pop. Density]:[Weighted Transit Access Score]]) -> 1
A5: American Fork Station | B5: =_xlfn.XLOOKUP(Existing_PR_GIS[[#This Row],[Station Name]],'GIS Exports'!$B:$B,'GIS Exports'!C:C) -> 860 | C5: =_xlfn.XLOOKUP(Existing_PR_GIS[[#This Row],[Station Name]],'GIS Exports'!$B:$B,'GIS Exports'!D:D) -> 1094.983448 | D5: =_xlfn.XLOOKUP(Existing_PR_GIS[[#This Row],[Station Name]],'GIS Exports'!$B:$B,'GIS Exports'!E:E) -> 0.74 | E5: =_xlfn.XLOOKUP(Existing_PR_GIS[[#This Row],[Station Name]],'GIS Exports'!$B:$B,'GIS Exports'!F:F) -> low | F5: =_xlfn.XLOOKUP(Existing_PR_GIS[[#This Row],[Station Name]],'GIS Exports'!$B:$B,'GIS Exports'!G:G) -> Mid density houses, open land | G5: =_xlfn.XLOOKUP(Existing_PR_GIS[[#This Row],[Station Name]],'GIS Exports'!$B:$B,'GIS Exports'!H:H) -> 541 | H5: =_xlfn.XLOOKUP(Existing_PR_GIS[[#This Row],[Station Name]],'GIS Exports'!$B:$B,'GIS Exports'!I:I) -> 570 | I5: =_xlfn.XLOOKUP(Existing_PR_GIS[[#This Row],[Station Name]],'GIS Exports'!$B:$B,'GIS Exports'!J:J) -> 1.42379 | J5: =_xlfn.XLOOKUP(Existing_PR_GIS[[#This Row],[Station Name]],'GIS Exports'!$B:$B,'GIS Exports'!K:K) -> 1094.983448 | K5: =_xlfn.XLOOKUP(Existing_PR_GIS[[#This Row],[Station Name]],'GIS Exports'!$B:$B,'GIS Exports'!L:L) -> 1916.369 | L5: =_xlfn.XLOOKUP(Existing_PR_GIS[[#This Row],[Station Name]],'GIS Exports'!$B:$B,'GIS Exports'!M:M) -> 1916.369 | M5: =_xlfn.XLOOKUP(Existing_PR_GIS[[#This Row],[Station Name]],'GIS Exports'!$B:$B,'GIS Exports'!N:N) -> 0.009218 | N5: =_xlfn.XLOOKUP(Existing_PR_GIS[[#This Row],[Station Name]],'GIS Exports'!$B:$B,'GIS Exports'!O:O) -> low | O5: =_xlfn.XLOOKUP(Existing_PR_GIS[[#This Row],[Station Name]],'GIS Exports'!$B:$B,'GIS Exports'!P:P) -> no | P5: =_xlfn.XLOOKUP(Existing_PR_GIS[[#This Row],[Station Name]],'GIS Exports'!$B:$B,'GIS Exports'!Q:Q) -> 0.000303 | Q5: =_xlfn.XLOOKUP(Existing_PR_GIS[[#This Row],[Station Name]],'GIS Exports'!$B:$B,'GIS Exports'!R:R) -> high | R5: =_xlfn.XLOOKUP(Existing_PR_GIS[[#This Row],[Station Name]],'GIS Exports'!$B:$B,'GIS Exports'!S:S) -> 0 | S5: =_xlfn.XLOOKUP(Existing_PR_GIS[[#This Row],[Station Name]],'GIS Exports'!$B:$B,'GIS Exports'!T:T) -> 45.956653 | T5: =_xlfn.XLOOKUP(Existing_PR_GIS[[#This Row],[Station Name]],'GIS Exports'!$B:$B,'GIS Exports'!U:U) -> 56.491897 | U5: =_xlfn.XLOOKUP(Existing_PR_GIS[[#This Row],[Station Name]],'GIS Exports'!$B:$B,'GIS Exports'!V:V) -> 15.384615 | V5: =_xlfn.XLOOKUP(Existing_PR_GIS[[#This Row],[Station Name]],'GIS Exports'!$B:$B,'GIS Exports'!W:W) -> y | W5: =_xlfn.XLOOKUP(Existing_PR_GIS[[#This Row],[Station Name]],'GIS Exports'!$B:$B,'GIS Exports'!X:X) -> 0 | X5: =_xlfn.XLOOKUP(Existing_PR_GIS[[#This Row],[Station Name]],'GIS Exports'!$B:$B,'GIS Exports'!Y:Y) -> 1 Suburban: Mid-corridor | Y5: =_xlfn.XLOOKUP(Existing_PR_GIS[[#This Row],[Station Name]],'GIS Exports'!$B:$B,'GIS Exports'!Z:Z) -> 0 | Z5: =_xlfn.XLOOKUP(Existing_PR_GIS[[#This Row],[Station Name]],'GIS Exports'!$B:$B,'GIS Exports'!AA:AA) -> 1 Suburban: Mid-corridor | AA5: =_xlfn.XLOOKUP(Existing_PR_GIS[[#This Row],[Station Name]],'GIS Exports'!$B:$B,'GIS Exports'!AB:AB) -> 0 | AB5: 0 | AC5: 0 | AD5: 0 | AE5: 0 | AF5: 0 | AG5: 1 | AH5: 1 | AI5: 0 | AJ5: =SUM(Existing_PR_GIS[[#This Row],[Weighted Pop. Density]:[Weighted Transit Access Score]]) -> 2
A6: Ballpark Station | B6: =_xlfn.XLOOKUP(Existing_PR_GIS[[#This Row],[Station Name]],'GIS Exports'!$B:$B,'GIS Exports'!C:C) -> 3346 | C6: =_xlfn.XLOOKUP(Existing_PR_GIS[[#This Row],[Station Name]],'GIS Exports'!$B:$B,'GIS Exports'!D:D) -> 4260.249554 | D6: =_xlfn.XLOOKUP(Existing_PR_GIS[[#This Row],[Station Name]],'GIS Exports'!$B:$B,'GIS Exports'!E:E) -> 0.89 | E6: =_xlfn.XLOOKUP(Existing_PR_GIS[[#This Row],[Station Name]],'GIS Exports'!$B:$B,'GIS Exports'!F:F) -> high potential | F6: =_xlfn.XLOOKUP(Existing_PR_GIS[[#This Row],[Station Name]],'GIS Exports'!$B:$B,'GIS Exports'!G:G) -> Mix big box, housing, apartments, potential future development | G6: =_xlfn.XLOOKUP(Existing_PR_GIS[[#This Row],[Station Name]],'GIS Exports'!$B:$B,'GIS Exports'!H:H) -> 193 | H6: =_xlfn.XLOOKUP(Existing_PR_GIS[[#This Row],[Station Name]],'GIS Exports'!$B:$B,'GIS Exports'!I:I) -> 476 | I6: =_xlfn.XLOOKUP(Existing_PR_GIS[[#This Row],[Station Name]],'GIS Exports'!$B:$B,'GIS Exports'!J:J) -> 2.771147 | J6: =_xlfn.XLOOKUP(Existing_PR_GIS[[#This Row],[Station Name]],'GIS Exports'!$B:$B,'GIS Exports'!K:K) -> 4260.249554 | K6: =_xlfn.XLOOKUP(Existing_PR_GIS[[#This Row],[Station Name]],'GIS Exports'!$B:$B,'GIS Exports'!L:L) -> 11514.95 | L6: =_xlfn.XLOOKUP(Existing_PR_GIS[[#This Row],[Station Name]],'GIS Exports'!$B:$B,'GIS Exports'!M:M) -> 11514.95 | M6: =_xlfn.XLOOKUP(Existing_PR_GIS[[#This Row],[Station Name]],'GIS Exports'!$B:$B,'GIS Exports'!N:N) -> 0.210723 | N6: =_xlfn.XLOOKUP(Existing_PR_GIS[[#This Row],[Station Name]],'GIS Exports'!$B:$B,'GIS Exports'!O:O) -> medium-high | O6: =_xlfn.XLOOKUP(Existing_PR_GIS[[#This Row],[Station Name]],'GIS Exports'!$B:$B,'GIS Exports'!P:P) -> yes | P6: =_xlfn.XLOOKUP(Existing_PR_GIS[[#This Row],[Station Name]],'GIS Exports'!$B:$B,'GIS Exports'!Q:Q) -> 0.161962 | Q6: =_xlfn.XLOOKUP(Existing_PR_GIS[[#This Row],[Station Name]],'GIS Exports'!$B:$B,'GIS Exports'!R:R) -> low | R6: =_xlfn.XLOOKUP(Existing_PR_GIS[[#This Row],[Station Name]],'GIS Exports'!$B:$B,'GIS Exports'!S:S) -> 45 | S6: =_xlfn.XLOOKUP(Existing_PR_GIS[[#This Row],[Station Name]],'GIS Exports'!$B:$B,'GIS Exports'!T:T) -> 100 | T6: =_xlfn.XLOOKUP(Existing_PR_GIS[[#This Row],[Station Name]],'GIS Exports'!$B:$B,'GIS Exports'!U:U) -> 99.400161 | U6: =_xlfn.XLOOKUP(Existing_PR_GIS[[#This Row],[Station Name]],'GIS Exports'!$B:$B,'GIS Exports'!V:V) -> 30.769231 | V6: =_xlfn.XLOOKUP(Existing_PR_GIS[[#This Row],[Station Name]],'GIS Exports'!$B:$B,'GIS Exports'!W:W) -> y | W6: =_xlfn.XLOOKUP(Existing_PR_GIS[[#This Row],[Station Name]],'GIS Exports'!$B:$B,'GIS Exports'!X:X) -> 0 | X6: =_xlfn.XLOOKUP(Existing_PR_GIS[[#This Row],[Station Name]],'GIS Exports'!$B:$B,'GIS Exports'!Y:Y) -> 1 Suburban: Mid-corridor | Y6: =_xlfn.XLOOKUP(Existing_PR_GIS[[#This Row],[Station Name]],'GIS Exports'!$B:$B,'GIS Exports'!Z:Z) -> 0 | Z6: =_xlfn.XLOOKUP(Existing_PR_GIS[[#This Row],[Station Name]],'GIS Exports'!$B:$B,'GIS Exports'!AA:AA) -> 5 TOD | AA6: =_xlfn.XLOOKUP(Existing_PR_GIS[[#This Row],[Station Name]],'GIS Exports'!$B:$B,'GIS Exports'!AB:AB) -> Higher potential | AB6: 0.5 | AC6: 0.5 | AD6: 0.5 | AE6: 0.5 | AF6: 1 | AG6: 2 | AH6: 2 | AI6: 1 | AJ6: =SUM(Existing_PR_GIS[[#This Row],[Weighted Pop. Density]:[Weighted Transit Access Score]]) -> 8
A7: Bingham Junction Station | B7: =_xlfn.XLOOKUP(Existing_PR_GIS[[#This Row],[Station Name]],'GIS Exports'!$B:$B,'GIS Exports'!C:C) -> 4860 | C7: =_xlfn.XLOOKUP(Existing_PR_GIS[[#This Row],[Station Name]],'GIS Exports'!$B:$B,'GIS Exports'!D:D) -> 6187.929717 | D7: =_xlfn.XLOOKUP(Existing_PR_GIS[[#This Row],[Station Name]],'GIS Exports'!$B:$B,'GIS Exports'!E:E) -> 0.37 | E7: =_xlfn.XLOOKUP(Existing_PR_GIS[[#This Row],[Station Name]],'GIS Exports'!$B:$B,'GIS Exports'!F:F) -> mid | F7: =_xlfn.XLOOKUP(Existing_PR_GIS[[#This Row],[Station Name]],'GIS Exports'!$B:$B,'GIS Exports'!G:G) -> Mid density houses, large employers | G7: =_xlfn.XLOOKUP(Existing_PR_GIS[[#This Row],[Station Name]],'GIS Exports'!$B:$B,'GIS Exports'!H:H) -> 199 | H7: =_xlfn.XLOOKUP(Existing_PR_GIS[[#This Row],[Station Name]],'GIS Exports'!$B:$B,'GIS Exports'!I:I) -> 261 | I7: =_xlfn.XLOOKUP(Existing_PR_GIS[[#This Row],[Station Name]],'GIS Exports'!$B:$B,'GIS Exports'!J:J) -> 3.544751 | J7: =_xlfn.XLOOKUP(Existing_PR_GIS[[#This Row],[Station Name]],'GIS Exports'!$B:$B,'GIS Exports'!K:K) -> 6187.929717 | K7: =_xlfn.XLOOKUP(Existing_PR_GIS[[#This Row],[Station Name]],'GIS Exports'!$B:$B,'GIS Exports'!L:L) -> 10504.06 | L7: =_xlfn.XLOOKUP(Existing_PR_GIS[[#This Row],[Station Name]],'GIS Exports'!$B:$B,'GIS Exports'!M:M) -> 10504.06 | M7: =_xlfn.XLOOKUP(Existing_PR_GIS[[#This Row],[Station Name]],'GIS Exports'!$B:$B,'GIS Exports'!N:N) -> 0.066027 | N7: =_xlfn.XLOOKUP(Existing_PR_GIS[[#This Row],[Station Name]],'GIS Exports'!$B:$B,'GIS Exports'!O:O) -> medium | O7: =_xlfn.XLOOKUP(Existing_PR_GIS[[#This Row],[Station Name]],'GIS Exports'!$B:$B,'GIS Exports'!P:P) -> no | P7: =_xlfn.XLOOKUP(Existing_PR_GIS[[#This Row],[Station Name]],'GIS Exports'!$B:$B,'GIS Exports'!Q:Q) -> 0.03408 | Q7: =_xlfn.XLOOKUP(Existing_PR_GIS[[#This Row],[Station Name]],'GIS Exports'!$B:$B,'GIS Exports'!R:R) -> high | R7: =_xlfn.XLOOKUP(Existing_PR_GIS[[#This Row],[Station Name]],'GIS Exports'!$B:$B,'GIS Exports'!S:S) -> 35 | S7: =_xlfn.XLOOKUP(Existing_PR_GIS[[#This Row],[Station Name]],'GIS Exports'!$B:$B,'GIS Exports'!T:T) -> 65.571197 | T7: =_xlfn.XLOOKUP(Existing_PR_GIS[[#This Row],[Station Name]],'GIS Exports'!$B:$B,'GIS Exports'!U:U) -> 78.968784 | U7: =_xlfn.XLOOKUP(Existing_PR_GIS[[#This Row],[Station Name]],'GIS Exports'!$B:$B,'GIS Exports'!V:V) -> 15.384615 | V7: =_xlfn.XLOOKUP(Existing_PR_GIS[[#This Row],[Station Name]],'GIS Exports'!$B:$B,'GIS Exports'!W:W) -> y | W7: =_xlfn.XLOOKUP(Existing_PR_GIS[[#This Row],[Station Name]],'GIS Exports'!$B:$B,'GIS Exports'!X:X) -> 0 | X7: =_xlfn.XLOOKUP(Existing_PR_GIS[[#This Row],[Station Name]],'GIS Exports'!$B:$B,'GIS Exports'!Y:Y) -> 1 Suburban: Mid-corridor | Y7: =_xlfn.XLOOKUP(Existing_PR_GIS[[#This Row],[Station Name]],'GIS Exports'!$B:$B,'GIS Exports'!Z:Z) -> 0 | Z7: =_xlfn.XLOOKUP(Existing_PR_GIS[[#This Row],[Station Name]],'GIS Exports'!$B:$B,'GIS Exports'!AA:AA) -> 5 TOD | AA7: =_xlfn.XLOOKUP(Existing_PR_GIS[[#This Row],[Station Name]],'GIS Exports'!$B:$B,'GIS Exports'!AB:AB) -> Medium potential | AB7: 1 | AC7: 0.5 | AD7: 0 | AE7: 0 | AF7: 0.5 | AG7: 1 | AH7: 1 | AI7: 0 | AJ7: =SUM(Existing_PR_GIS[[#This Row],[Weighted Pop. Density]:[Weighted Transit Access Score]]) -> 4
A8: Central Pointe Station | B8: =_xlfn.XLOOKUP(Existing_PR_GIS[[#This Row],[Station Name]],'GIS Exports'!$B:$B,'GIS Exports'!C:C) -> 1389 | C8: =_xlfn.XLOOKUP(Existing_PR_GIS[[#This Row],[Station Name]],'GIS Exports'!$B:$B,'GIS Exports'!D:D) -> 1768.525592 | D8: =_xlfn.XLOOKUP(Existing_PR_GIS[[#This Row],[Station Name]],'GIS Exports'!$B:$B,'GIS Exports'!E:E) -> 0.92 | E8: =_xlfn.XLOOKUP(Existing_PR_GIS[[#This Row],[Station Name]],'GIS Exports'!$B:$B,'GIS Exports'!F:F) -> high potential | F8: =_xlfn.XLOOKUP(Existing_PR_GIS[[#This Row],[Station Name]],'GIS Exports'!$B:$B,'GIS Exports'!G:G) -> Mix big box, housing, apartments, possible future development | G8: =_xlfn.XLOOKUP(Existing_PR_GIS[[#This Row],[Station Name]],'GIS Exports'!$B:$B,'GIS Exports'!H:H) -> 80 | H8: =_xlfn.XLOOKUP(Existing_PR_GIS[[#This Row],[Station Name]],'GIS Exports'!$B:$B,'GIS Exports'!I:I) -> 1378 | I8: =_xlfn.XLOOKUP(Existing_PR_GIS[[#This Row],[Station Name]],'GIS Exports'!$B:$B,'GIS Exports'!J:J) -> 18.722826 | J8: =_xlfn.XLOOKUP(Existing_PR_GIS[[#This Row],[Station Name]],'GIS Exports'!$B:$B,'GIS Exports'!K:K) -> 1768.525592 | K8: =_xlfn.XLOOKUP(Existing_PR_GIS[[#This Row],[Station Name]],'GIS Exports'!$B:$B,'GIS Exports'!L:L) -> 14591.37 | L8: =_xlfn.XLOOKUP(Existing_PR_GIS[[#This Row],[Station Name]],'GIS Exports'!$B:$B,'GIS Exports'!M:M) -> 14591.37 | M8: =_xlfn.XLOOKUP(Existing_PR_GIS[[#This Row],[Station Name]],'GIS Exports'!$B:$B,'GIS Exports'!N:N) -> 0.058315 | N8: =_xlfn.XLOOKUP(Existing_PR_GIS[[#This Row],[Station Name]],'GIS Exports'!$B:$B,'GIS Exports'!O:O) -> medium-high | O8: =_xlfn.XLOOKUP(Existing_PR_GIS[[#This Row],[Station Name]],'GIS Exports'!$B:$B,'GIS Exports'!P:P) -> yes | P8: =_xlfn.XLOOKUP(Existing_PR_GIS[[#This Row],[Station Name]],'GIS Exports'!$B:$B,'GIS Exports'!Q:Q) -> 0.066001 | Q8: =_xlfn.XLOOKUP(Existing_PR_GIS[[#This Row],[Station Name]],'GIS Exports'!$B:$B,'GIS Exports'!R:R) -> low | R8: =_xlfn.XLOOKUP(Existing_PR_GIS[[#This Row],[Station Name]],'GIS Exports'!$B:$B,'GIS Exports'!S:S) -> 40 | S8: =_xlfn.XLOOKUP(Existing_PR_GIS[[#This Row],[Station Name]],'GIS Exports'!$B:$B,'GIS Exports'!T:T) -> 73.119172 | T8: =_xlfn.XLOOKUP(Existing_PR_GIS[[#This Row],[Station Name]],'GIS Exports'!$B:$B,'GIS Exports'!U:U) -> 82.417548 | U8: =_xlfn.XLOOKUP(Existing_PR_GIS[[#This Row],[Station Name]],'GIS Exports'!$B:$B,'GIS Exports'!V:V) -> 46.153846 | V8: =_xlfn.XLOOKUP(Existing_PR_GIS[[#This Row],[Station Name]],'GIS Exports'!$B:$B,'GIS Exports'!W:W) -> y | W8: =_xlfn.XLOOKUP(Existing_PR_GIS[[#This Row],[Station Name]],'GIS Exports'!$B:$B,'GIS Exports'!X:X) -> 0 | X8: =_xlfn.XLOOKUP(Existing_PR_GIS[[#This Row],[Station Name]],'GIS Exports'!$B:$B,'GIS Exports'!Y:Y) -> 4 Emerging Urban | Y8: =_xlfn.XLOOKUP(Existing_PR_GIS[[#This Row],[Station Name]],'GIS Exports'!$B:$B,'GIS Exports'!Z:Z) -> 0 | Z8: =_xlfn.XLOOKUP(Existing_PR_GIS[[#This Row],[Station Name]],'GIS Exports'!$B:$B,'GIS Exports'!AA:AA) -> 4 Emerging Urban | AA8: =_xlfn.XLOOKUP(Existing_PR_GIS[[#This Row],[Station Name]],'GIS Exports'!$B:$B,'GIS Exports'!AB:AB) -> Very high potential with 300West infill | AB8: 0 | AC8: 0.5 | AD8: 0 | AE8: 0 | AF8: 0.5 | AG8: 1 | AH8: 2 | AI8: 1 | AJ8: =SUM(Existing_PR_GIS[[#This Row],[Weighted Pop. Density]:[Weighted Transit Access Score]]) -> 5
A9: Clearfield Station | B9: =_xlfn.XLOOKUP(Existing_PR_GIS[[#This Row],[Station Name]],'GIS Exports'!$B:$B,'GIS Exports'!C:C) -> 2729 | C9: =_xlfn.XLOOKUP(Existing_PR_GIS[[#This Row],[Station Name]],'GIS Exports'!$B:$B,'GIS Exports'!D:D) -> 3474.662592 | D9: =_xlfn.XLOOKUP(Existing_PR_GIS[[#This Row],[Station Name]],'GIS Exports'!$B:$B,'GIS Exports'!E:E) -> 0.41 | E9: =_xlfn.XLOOKUP(Existing_PR_GIS[[#This Row],[Station Name]],'GIS Exports'!$B:$B,'GIS Exports'!F:F) -> very low | F9: =_xlfn.XLOOKUP(Existing_PR_GIS[[#This Row],[Station Name]],'GIS Exports'!$B:$B,'GIS Exports'!G:G) -> Open land, large industry | G9: =_xlfn.XLOOKUP(Existing_PR_GIS[[#This Row],[Station Name]],'GIS Exports'!$B:$B,'GIS Exports'!H:H) -> 905 | H9: =_xlfn.XLOOKUP(Existing_PR_GIS[[#This Row],[Station Name]],'GIS Exports'!$B:$B,'GIS Exports'!I:I) -> 850 | I9: =_xlfn.XLOOKUP(Existing_PR_GIS[[#This Row],[Station Name]],'GIS Exports'!$B:$B,'GIS Exports'!J:J) -> 2.290796 | J9: =_xlfn.XLOOKUP(Existing_PR_GIS[[#This Row],[Station Name]],'GIS Exports'!$B:$B,'GIS Exports'!K:K) -> 3474.662592 | K9: =_xlfn.XLOOKUP(Existing_PR_GIS[[#This Row],[Station Name]],'GIS Exports'!$B:$B,'GIS Exports'!L:L) -> 5618.985 | L9: =_xlfn.XLOOKUP(Existing_PR_GIS[[#This Row],[Station Name]],'GIS Exports'!$B:$B,'GIS Exports'!M:M) -> 5618.985 | M9: =_xlfn.XLOOKUP(Existing_PR_GIS[[#This Row],[Station Name]],'GIS Exports'!$B:$B,'GIS Exports'!N:N) -> 0.047451 | N9: =_xlfn.XLOOKUP(Existing_PR_GIS[[#This Row],[Station Name]],'GIS Exports'!$B:$B,'GIS Exports'!O:O) -> medium | O9: =_xlfn.XLOOKUP(Existing_PR_GIS[[#This Row],[Station Name]],'GIS Exports'!$B:$B,'GIS Exports'!P:P) -> yes | P9: =_xlfn.XLOOKUP(Existing_PR_GIS[[#This Row],[Station Name]],'GIS Exports'!$B:$B,'GIS Exports'!Q:Q) -> 0.02431 | Q9: =_xlfn.XLOOKUP(Existing_PR_GIS[[#This Row],[Station Name]],'GIS Exports'!$B:$B,'GIS Exports'!R:R) -> high | R9: =_xlfn.XLOOKUP(Existing_PR_GIS[[#This Row],[Station Name]],'GIS Exports'!$B:$B,'GIS Exports'!S:S) -> 20 | S9: =_xlfn.XLOOKUP(Existing_PR_GIS[[#This Row],[Station Name]],'GIS Exports'!$B:$B,'GIS Exports'!T:T) -> 13.72618 | T9: =_xlfn.XLOOKUP(Existing_PR_GIS[[#This Row],[Station Name]],'GIS Exports'!$B:$B,'GIS Exports'!U:U) -> 47.108159 | U9: =_xlfn.XLOOKUP(Existing_PR_GIS[[#This Row],[Station Name]],'GIS Exports'!$B:$B,'GIS Exports'!V:V) -> 46.153846 | V9: =_xlfn.XLOOKUP(Existing_PR_GIS[[#This Row],[Station Name]],'GIS Exports'!$B:$B,'GIS Exports'!W:W) -> y | W9: =_xlfn.XLOOKUP(Existing_PR_GIS[[#This Row],[Station Name]],'GIS Exports'!$B:$B,'GIS Exports'!X:X) -> 0 | X9: =_xlfn.XLOOKUP(Existing_PR_GIS[[#This Row],[Station Name]],'GIS Exports'!$B:$B,'GIS Exports'!Y:Y) -> 1 Suburban: Mid-corridor | Y9: =_xlfn.XLOOKUP(Existing_PR_GIS[[#This Row],[Station Name]],'GIS Exports'!$B:$B,'GIS Exports'!Z:Z) -> 0 | Z9: =_xlfn.XLOOKUP(Existing_PR_GIS[[#This Row],[Station Name]],'GIS Exports'!$B:$B,'GIS Exports'!AA:AA) -> 1 Suburban: Mid-corridor | AA9: =_xlfn.XLOOKUP(Existing_PR_GIS[[#This Row],[Station Name]],'GIS Exports'!$B:$B,'GIS Exports'!AB:AB) -> 0 | AB9: 0.5 | AC9: 0 | AD9: 0 | AE9: 0 | AF9: 0.5 | AG9: 0 | AH9: 1 | AI9: 1 | AJ9: =SUM(Existing_PR_GIS[[#This Row],[Weighted Pop. Density]:[Weighted Transit Access Score]]) -> 3
A10: Crescent View Station | B10: =_xlfn.XLOOKUP(Existing_PR_GIS[[#This Row],[Station Name]],'GIS Exports'!$B:$B,'GIS Exports'!C:C) -> 4900 | C10: =_xlfn.XLOOKUP(Existing_PR_GIS[[#This Row],[Station Name]],'GIS Exports'!$B:$B,'GIS Exports'!D:D) -> 6238.85918 | D10: =_xlfn.XLOOKUP(Existing_PR_GIS[[#This Row],[Station Name]],'GIS Exports'!$B:$B,'GIS Exports'!E:E) -> 0.68 | E10: =_xlfn.XLOOKUP(Existing_PR_GIS[[#This Row],[Station Name]],'GIS Exports'!$B:$B,'GIS Exports'!F:F) -> low | F10: =_xlfn.XLOOKUP(Existing_PR_GIS[[#This Row],[Station Name]],'GIS Exports'!$B:$B,'GIS Exports'!G:G) -> Suburban single family houses | G10: =_xlfn.XLOOKUP(Existing_PR_GIS[[#This Row],[Station Name]],'GIS Exports'!$B:$B,'GIS Exports'!H:H) -> 248 | H10: =_xlfn.XLOOKUP(Existing_PR_GIS[[#This Row],[Station Name]],'GIS Exports'!$B:$B,'GIS Exports'!I:I) -> 237 | I10: =_xlfn.XLOOKUP(Existing_PR_GIS[[#This Row],[Station Name]],'GIS Exports'!$B:$B,'GIS Exports'!J:J) -> 1.405361 | J10: =_xlfn.XLOOKUP(Existing_PR_GIS[[#This Row],[Station Name]],'GIS Exports'!$B:$B,'GIS Exports'!K:K) -> 6238.85918 | K10: =_xlfn.XLOOKUP(Existing_PR_GIS[[#This Row],[Station Name]],'GIS Exports'!$B:$B,'GIS Exports'!L:L) -> 3509.587 | L10: =_xlfn.XLOOKUP(Existing_PR_GIS[[#This Row],[Station Name]],'GIS Exports'!$B:$B,'GIS Exports'!M:M) -> 3509.587 | M10: =_xlfn.XLOOKUP(Existing_PR_GIS[[#This Row],[Station Name]],'GIS Exports'!$B:$B,'GIS Exports'!N:N) -> 0.019706 | N10: =_xlfn.XLOOKUP(Existing_PR_GIS[[#This Row],[Station Name]],'GIS Exports'!$B:$B,'GIS Exports'!O:O) -> low | O10: =_xlfn.XLOOKUP(Existing_PR_GIS[[#This Row],[Station Name]],'GIS Exports'!$B:$B,'GIS Exports'!P:P) -> yes | P10: =_xlfn.XLOOKUP(Existing_PR_GIS[[#This Row],[Station Name]],'GIS Exports'!$B:$B,'GIS Exports'!Q:Q) -> 0.012617 | Q10: =_xlfn.XLOOKUP(Existing_PR_GIS[[#This Row],[Station Name]],'GIS Exports'!$B:$B,'GIS Exports'!R:R) -> high | R10: =_xlfn.XLOOKUP(Existing_PR_GIS[[#This Row],[Station Name]],'GIS Exports'!$B:$B,'GIS Exports'!S:S) -> 10 | S10: =_xlfn.XLOOKUP(Existing_PR_GIS[[#This Row],[Station Name]],'GIS Exports'!$B:$B,'GIS Exports'!T:T) -> 68.362158 | T10: =_xlfn.XLOOKUP(Existing_PR_GIS[[#This Row],[Station Name]],'GIS Exports'!$B:$B,'GIS Exports'!U:U) -> 91.620521 | U10: =_xlfn.XLOOKUP(Existing_PR_GIS[[#This Row],[Station Name]],'GIS Exports'!$B:$B,'GIS Exports'!V:V) -> 7.692308 | V10: =_xlfn.XLOOKUP(Existing_PR_GIS[[#This Row],[Station Name]],'GIS Exports'!$B:$B,'GIS Exports'!W:W) -> y | W10: =_xlfn.XLOOKUP(Existing_PR_GIS[[#This Row],[Station Name]],'GIS Exports'!$B:$B,'GIS Exports'!X:X) -> 0 | X10: =_xlfn.XLOOKUP(Existing_PR_GIS[[#This Row],[Station Name]],'GIS Exports'!$B:$B,'GIS Exports'!Y:Y) -> 1 Suburban: Mid-corridor | Y10: =_xlfn.XLOOKUP(Existing_PR_GIS[[#This Row],[Station Name]],'GIS Exports'!$B:$B,'GIS Exports'!Z:Z) -> 0 | Z10: =_xlfn.XLOOKUP(Existing_PR_GIS[[#This Row],[Station Name]],'GIS Exports'!$B:$B,'GIS Exports'!AA:AA) -> 1 Suburban: Mid-corridor | AA10: =_xlfn.XLOOKUP(Existing_PR_GIS[[#This Row],[Station Name]],'GIS Exports'!$B:$B,'GIS Exports'!AB:AB) -> 0 | AB10: 1 | AC10: 0 | AD10: 0 | AE10: 0 | AF10: 0 | AG10: 1 | AH10: 2 | AI10: 0 | AJ10: =SUM(Existing_PR_GIS[[#This Row],[Weighted Pop. Density]:[Weighted Transit Access Score]]) -> 4
A11: Daybreak Parkway Station | B11: =_xlfn.XLOOKUP(Existing_PR_GIS[[#This Row],[Station Name]],'GIS Exports'!$B:$B,'GIS Exports'!C:C) -> 3373 | C11: =_xlfn.XLOOKUP(Existing_PR_GIS[[#This Row],[Station Name]],'GIS Exports'!$B:$B,'GIS Exports'!D:D) -> 4294.626942 | D11: =_xlfn.XLOOKUP(Existing_PR_GIS[[#This Row],[Station Name]],'GIS Exports'!$B:$B,'GIS Exports'!E:E) -> 0.86 | E11: =_xlfn.XLOOKUP(Existing_PR_GIS[[#This Row],[Station Name]],'GIS Exports'!$B:$B,'GIS Exports'!F:F) -> high potential | F11: =_xlfn.XLOOKUP(Existing_PR_GIS[[#This Row],[Station Name]],'GIS Exports'!$B:$B,'GIS Exports'!G:G) -> High density housing, future development | G11: =_xlfn.XLOOKUP(Existing_PR_GIS[[#This Row],[Station Name]],'GIS Exports'!$B:$B,'GIS Exports'!H:H) -> 378 | H11: =_xlfn.XLOOKUP(Existing_PR_GIS[[#This Row],[Station Name]],'GIS Exports'!$B:$B,'GIS Exports'!I:I) -> 1001 | I11: =_xlfn.XLOOKUP(Existing_PR_GIS[[#This Row],[Station Name]],'GIS Exports'!$B:$B,'GIS Exports'!J:J) -> 3.079242 | J11: =_xlfn.XLOOKUP(Existing_PR_GIS[[#This Row],[Station Name]],'GIS Exports'!$B:$B,'GIS Exports'!K:K) -> 4294.626942 | K11: =_xlfn.XLOOKUP(Existing_PR_GIS[[#This Row],[Station Name]],'GIS Exports'!$B:$B,'GIS Exports'!L:L) -> 4961.346 | L11: =_xlfn.XLOOKUP(Existing_PR_GIS[[#This Row],[Station Name]],'GIS Exports'!$B:$B,'GIS Exports'!M:M) -> 4961.346 | M11: =_xlfn.XLOOKUP(Existing_PR_GIS[[#This Row],[Station Name]],'GIS Exports'!$B:$B,'GIS Exports'!N:N) -> 0.001995 | N11: =_xlfn.XLOOKUP(Existing_PR_GIS[[#This Row],[Station Name]],'GIS Exports'!$B:$B,'GIS Exports'!O:O) -> low | O11: =_xlfn.XLOOKUP(Existing_PR_GIS[[#This Row],[Station Name]],'GIS Exports'!$B:$B,'GIS Exports'!P:P) -> no | P11: =_xlfn.XLOOKUP(Existing_PR_GIS[[#This Row],[Station Name]],'GIS Exports'!$B:$B,'GIS Exports'!Q:Q) -> 0.010781 | Q11: =_xlfn.XLOOKUP(Existing_PR_GIS[[#This Row],[Station Name]],'GIS Exports'!$B:$B,'GIS Exports'!R:R) -> high | R11: =_xlfn.XLOOKUP(Existing_PR_GIS[[#This Row],[Station Name]],'GIS Exports'!$B:$B,'GIS Exports'!S:S) -> 0 | S11: =_xlfn.XLOOKUP(Existing_PR_GIS[[#This Row],[Station Name]],'GIS Exports'!$B:$B,'GIS Exports'!T:T) -> 83.096708 | T11: =_xlfn.XLOOKUP(Existing_PR_GIS[[#This Row],[Station Name]],'GIS Exports'!$B:$B,'GIS Exports'!U:U) -> 92.115408 | U11: =_xlfn.XLOOKUP(Existing_PR_GIS[[#This Row],[Station Name]],'GIS Exports'!$B:$B,'GIS Exports'!V:V) -> 7.692308 | V11: =_xlfn.XLOOKUP(Existing_PR_GIS[[#This Row],[Station Name]],'GIS Exports'!$B:$B,'GIS Exports'!W:W) -> y | W11: =_xlfn.XLOOKUP(Existing_PR_GIS[[#This Row],[Station Name]],'GIS Exports'!$B:$B,'GIS Exports'!X:X) -> 0 | X11: =_xlfn.XLOOKUP(Existing_PR_GIS[[#This Row],[Station Name]],'GIS Exports'!$B:$B,'GIS Exports'!Y:Y) -> 3 Suburban: Terminus | Y11: =_xlfn.XLOOKUP(Existing_PR_GIS[[#This Row],[Station Name]],'GIS Exports'!$B:$B,'GIS Exports'!Z:Z) -> 0 | Z11: =_xlfn.XLOOKUP(Existing_PR_GIS[[#This Row],[Station Name]],'GIS Exports'!$B:$B,'GIS Exports'!AA:AA) -> 5 TOD | AA11: =_xlfn.XLOOKUP(Existing_PR_GIS[[#This Row],[Station Name]],'GIS Exports'!$B:$B,'GIS Exports'!AB:AB) -> Could be TOD once more infill has occurred | AB11: 0.5 | AC11: 0 | AD11: 0 | AE11: 0 | AF11: 0 | AG11: 2 | AH11: 2 | AI11: 0 | AJ11: =SUM(Existing_PR_GIS[[#This Row],[Weighted Pop. Density]:[Weighted Transit Access Score]]) -> 4.5
A12: Draper Station | B12: =_xlfn.XLOOKUP(Existing_PR_GIS[[#This Row],[Station Name]],'GIS Exports'!$B:$B,'GIS Exports'!C:C) -> 769 | C12: =_xlfn.XLOOKUP(Existing_PR_GIS[[#This Row],[Station Name]],'GIS Exports'!$B:$B,'GIS Exports'!D:D) -> 979.1189203 | D12: =_xlfn.XLOOKUP(Existing_PR_GIS[[#This Row],[Station Name]],'GIS Exports'!$B:$B,'GIS Exports'!E:E) -> 0.48 | E12: =_xlfn.XLOOKUP(Existing_PR_GIS[[#This Row],[Station Name]],'GIS Exports'!$B:$B,'GIS Exports'!F:F) -> low | F12: =_xlfn.XLOOKUP(Existing_PR_GIS[[#This Row],[Station Name]],'GIS Exports'!$B:$B,'GIS Exports'!G:G) -> Large employers | G12: =_xlfn.XLOOKUP(Existing_PR_GIS[[#This Row],[Station Name]],'GIS Exports'!$B:$B,'GIS Exports'!H:H) -> 600 | H12: =_xlfn.XLOOKUP(Existing_PR_GIS[[#This Row],[Station Name]],'GIS Exports'!$B:$B,'GIS Exports'!I:I) -> 560 | I12: =_xlfn.XLOOKUP(Existing_PR_GIS[[#This Row],[Station Name]],'GIS Exports'!$B:$B,'GIS Exports'!J:J) -> 1.944444 | J12: =_xlfn.XLOOKUP(Existing_PR_GIS[[#This Row],[Station Name]],'GIS Exports'!$B:$B,'GIS Exports'!K:K) -> 979.1189203 | K12: =_xlfn.XLOOKUP(Existing_PR_GIS[[#This Row],[Station Name]],'GIS Exports'!$B:$B,'GIS Exports'!L:L) -> 7243.42 | L12: =_xlfn.XLOOKUP(Existing_PR_GIS[[#This Row],[Station Name]],'GIS Exports'!$B:$B,'GIS Exports'!M:M) -> 7243.42 | M12: =_xlfn.XLOOKUP(Existing_PR_GIS[[#This Row],[Station Name]],'GIS Exports'!$B:$B,'GIS Exports'!N:N) -> 0.022938 | N12: =_xlfn.XLOOKUP(Existing_PR_GIS[[#This Row],[Station Name]],'GIS Exports'!$B:$B,'GIS Exports'!O:O) -> medium | O12: =_xlfn.XLOOKUP(Existing_PR_GIS[[#This Row],[Station Name]],'GIS Exports'!$B:$B,'GIS Exports'!P:P) -> no | P12: =_xlfn.XLOOKUP(Existing_PR_GIS[[#This Row],[Station Name]],'GIS Exports'!$B:$B,'GIS Exports'!Q:Q) -> 0 | Q12: =_xlfn.XLOOKUP(Existing_PR_GIS[[#This Row],[Station Name]],'GIS Exports'!$B:$B,'GIS Exports'!R:R) -> high | R12: =_xlfn.XLOOKUP(Existing_PR_GIS[[#This Row],[Station Name]],'GIS Exports'!$B:$B,'GIS Exports'!S:S) -> 0 | S12: =_xlfn.XLOOKUP(Existing_PR_GIS[[#This Row],[Station Name]],'GIS Exports'!$B:$B,'GIS Exports'!T:T) -> 27.362724 | T12: =_xlfn.XLOOKUP(Existing_PR_GIS[[#This Row],[Station Name]],'GIS Exports'!$B:$B,'GIS Exports'!U:U) -> 30.365302 | U12: =_xlfn.XLOOKUP(Existing_PR_GIS[[#This Row],[Station Name]],'GIS Exports'!$B:$B,'GIS Exports'!V:V) -> 15.384615 | V12: =_xlfn.XLOOKUP(Existing_PR_GIS[[#This Row],[Station Name]],'GIS Exports'!$B:$B,'GIS Exports'!W:W) -> y | W12: =_xlfn.XLOOKUP(Existing_PR_GIS[[#This Row],[Station Name]],'GIS Exports'!$B:$B,'GIS Exports'!X:X) -> 0 | X12: =_xlfn.XLOOKUP(Existing_PR_GIS[[#This Row],[Station Name]],'GIS Exports'!$B:$B,'GIS Exports'!Y:Y) -> 1 Suburban: Mid-corridor | Y12: =_xlfn.XLOOKUP(Existing_PR_GIS[[#This Row],[Station Name]],'GIS Exports'!$B:$B,'GIS Exports'!Z:Z) -> 0 | Z12: =_xlfn.XLOOKUP(Existing_PR_GIS[[#This Row],[Station Name]],'GIS Exports'!$B:$B,'GIS Exports'!AA:AA) -> 1 Suburban: Mid-corridor | AA12: =_xlfn.XLOOKUP(Existing_PR_GIS[[#This Row],[Station Name]],'GIS Exports'!$B:$B,'GIS Exports'!AB:AB) -> 0 | AB12: 0 | AC12: 0.5 | AD12: 0 | AE12: 0 | AF12: 0 | AG12: 0 | AH12: 1 | AI12: 0 | AJ12: =SUM(Existing_PR_GIS[[#This Row],[Weighted Pop. Density]:[Weighted Transit Access Score]]) -> 1.5
A13: Draper Town Center Station | B13: =_xlfn.XLOOKUP(Existing_PR_GIS[[#This Row],[Station Name]],'GIS Exports'!$B:$B,'GIS Exports'!C:C) -> 2134 | C13: =_xlfn.XLOOKUP(Existing_PR_GIS[[#This Row],[Station Name]],'GIS Exports'!$B:$B,'GIS Exports'!D:D) -> 2717.086835 | D13: =_xlfn.XLOOKUP(Existing_PR_GIS[[#This Row],[Station Name]],'GIS Exports'!$B:$B,'GIS Exports'!E:E) -> 0.27 | E13: =_xlfn.XLOOKUP(Existing_PR_GIS[[#This Row],[Station Name]],'GIS Exports'!$B:$B,'GIS Exports'!F:F) -> low | F13: =_xlfn.XLOOKUP(Existing_PR_GIS[[#This Row],[Station Name]],'GIS Exports'!$B:$B,'GIS Exports'!G:G) -> Big box, some housing, lowish density | G13: =_xlfn.XLOOKUP(Existing_PR_GIS[[#This Row],[Station Name]],'GIS Exports'!$B:$B,'GIS Exports'!H:H) -> 438 | H13: =_xlfn.XLOOKUP(Existing_PR_GIS[[#This Row],[Station Name]],'GIS Exports'!$B:$B,'GIS Exports'!I:I) -> 460 | I13: =_xlfn.XLOOKUP(Existing_PR_GIS[[#This Row],[Station Name]],'GIS Exports'!$B:$B,'GIS Exports'!J:J) -> 3.889734 | J13: =_xlfn.XLOOKUP(Existing_PR_GIS[[#This Row],[Station Name]],'GIS Exports'!$B:$B,'GIS Exports'!K:K) -> 2717.086835 | K13: =_xlfn.XLOOKUP(Existing_PR_GIS[[#This Row],[Station Name]],'GIS Exports'!$B:$B,'GIS Exports'!L:L) -> 5065.683 | L13: =_xlfn.XLOOKUP(Existing_PR_GIS[[#This Row],[Station Name]],'GIS Exports'!$B:$B,'GIS Exports'!M:M) -> 5065.683 | M13: =_xlfn.XLOOKUP(Existing_PR_GIS[[#This Row],[Station Name]],'GIS Exports'!$B:$B,'GIS Exports'!N:N) -> 0.009601 | N13: =_xlfn.XLOOKUP(Existing_PR_GIS[[#This Row],[Station Name]],'GIS Exports'!$B:$B,'GIS Exports'!O:O) -> low | O13: =_xlfn.XLOOKUP(Existing_PR_GIS[[#This Row],[Station Name]],'GIS Exports'!$B:$B,'GIS Exports'!P:P) -> no | P13: =_xlfn.XLOOKUP(Existing_PR_GIS[[#This Row],[Station Name]],'GIS Exports'!$B:$B,'GIS Exports'!Q:Q) -> 0.000242 | Q13: =_xlfn.XLOOKUP(Existing_PR_GIS[[#This Row],[Station Name]],'GIS Exports'!$B:$B,'GIS Exports'!R:R) -> high | R13: =_xlfn.XLOOKUP(Existing_PR_GIS[[#This Row],[Station Name]],'GIS Exports'!$B:$B,'GIS Exports'!S:S) -> 0 | S13: =_xlfn.XLOOKUP(Existing_PR_GIS[[#This Row],[Station Name]],'GIS Exports'!$B:$B,'GIS Exports'!T:T) -> 73.582262 | T13: =_xlfn.XLOOKUP(Existing_PR_GIS[[#This Row],[Station Name]],'GIS Exports'!$B:$B,'GIS Exports'!U:U) -> 66.321493 | U13: =_xlfn.XLOOKUP(Existing_PR_GIS[[#This Row],[Station Name]],'GIS Exports'!$B:$B,'GIS Exports'!V:V) -> 15.384615 | V13: =_xlfn.XLOOKUP(Existing_PR_GIS[[#This Row],[Station Name]],'GIS Exports'!$B:$B,'GIS Exports'!W:W) -> y | W13: =_xlfn.XLOOKUP(Existing_PR_GIS[[#This Row],[Station Name]],'GIS Exports'!$B:$B,'GIS Exports'!X:X) -> 0 | X13: =_xlfn.XLOOKUP(Existing_PR_GIS[[#This Row],[Station Name]],'GIS Exports'!$B:$B,'GIS Exports'!Y:Y) -> 3 Suburban: Terminus | Y13: =_xlfn.XLOOKUP(Existing_PR_GIS[[#This Row],[Station Name]],'GIS Exports'!$B:$B,'GIS Exports'!Z:Z) -> 0 | Z13: =_xlfn.XLOOKUP(Existing_PR_GIS[[#This Row],[Station Name]],'GIS Exports'!$B:$B,'GIS Exports'!AA:AA) -> 3 Suburban: Terminus | AA13: =_xlfn.XLOOKUP(Existing_PR_GIS[[#This Row],[Station Name]],'GIS Exports'!$B:$B,'GIS Exports'!AB:AB) -> 0 | AB13: 0.5 | AC13: 0 | AD13: 0 | AE13: 0 | AF13: 0 | AG13: 1 | AH13: 1 | AI13: 0 | AJ13: =SUM(Existing_PR_GIS[[#This Row],[Weighted Pop. Density]:[Weighted Transit Access Score]]) -> 2.5
A14: Farmington Station | B14: =_xlfn.XLOOKUP(Existing_PR_GIS[[#This Row],[Station Name]],'GIS Exports'!$B:$B,'GIS Exports'!C:C) -> 1497 | C14: =_xlfn.XLOOKUP(Existing_PR_GIS[[#This Row],[Station Name]],'GIS Exports'!$B:$B,'GIS Exports'!D:D) -> 1906.035141 | D14: =_xlfn.XLOOKUP(Existing_PR_GIS[[#This Row],[Station Name]],'GIS Exports'!$B:$B,'GIS Exports'!E:E) -> 0.44 | E14: =_xlfn.XLOOKUP(Existing_PR_GIS[[#This Row],[Station Name]],'GIS Exports'!$B:$B,'GIS Exports'!F:F) -> mid | F14: =_xlfn.XLOOKUP(Existing_PR_GIS[[#This Row],[Station Name]],'GIS Exports'!$B:$B,'GIS Exports'!G:G) -> Big box, mall, apartments | G14: =_xlfn.XLOOKUP(Existing_PR_GIS[[#This Row],[Station Name]],'GIS Exports'!$B:$B,'GIS Exports'!H:H) -> 872 | H14: =_xlfn.XLOOKUP(Existing_PR_GIS[[#This Row],[Station Name]],'GIS Exports'!$B:$B,'GIS Exports'!I:I) -> 487 | I14: =_xlfn.XLOOKUP(Existing_PR_GIS[[#This Row],[Station Name]],'GIS Exports'!$B:$B,'GIS Exports'!J:J) -> 1.269287 | J14: =_xlfn.XLOOKUP(Existing_PR_GIS[[#This Row],[Station Name]],'GIS Exports'!$B:$B,'GIS Exports'!K:K) -> 1906.035141 | K14: =_xlfn.XLOOKUP(Existing_PR_GIS[[#This Row],[Station Name]],'GIS Exports'!$B:$B,'GIS Exports'!L:L) -> 7910.037 | L14: =_xlfn.XLOOKUP(Existing_PR_GIS[[#This Row],[Station Name]],'GIS Exports'!$B:$B,'GIS Exports'!M:M) -> 7910.037 | M14: =_xlfn.XLOOKUP(Existing_PR_GIS[[#This Row],[Station Name]],'GIS Exports'!$B:$B,'GIS Exports'!N:N) -> 0.002034 | N14: =_xlfn.XLOOKUP(Existing_PR_GIS[[#This Row],[Station Name]],'GIS Exports'!$B:$B,'GIS Exports'!O:O) -> low | O14: =_xlfn.XLOOKUP(Existing_PR_GIS[[#This Row],[Station Name]],'GIS Exports'!$B:$B,'GIS Exports'!P:P) -> no | P14: =_xlfn.XLOOKUP(Existing_PR_GIS[[#This Row],[Station Name]],'GIS Exports'!$B:$B,'GIS Exports'!Q:Q) -> 0.003135 | Q14: =_xlfn.XLOOKUP(Existing_PR_GIS[[#This Row],[Station Name]],'GIS Exports'!$B:$B,'GIS Exports'!R:R) -> high | R14: =_xlfn.XLOOKUP(Existing_PR_GIS[[#This Row],[Station Name]],'GIS Exports'!$B:$B,'GIS Exports'!S:S) -> 0 | S14: =_xlfn.XLOOKUP(Existing_PR_GIS[[#This Row],[Station Name]],'GIS Exports'!$B:$B,'GIS Exports'!T:T) -> 32.041121 | T14: =_xlfn.XLOOKUP(Existing_PR_GIS[[#This Row],[Station Name]],'GIS Exports'!$B:$B,'GIS Exports'!U:U) -> 42.53284 | U14: =_xlfn.XLOOKUP(Existing_PR_GIS[[#This Row],[Station Name]],'GIS Exports'!$B:$B,'GIS Exports'!V:V) -> 46.153846 | V14: =_xlfn.XLOOKUP(Existing_PR_GIS[[#This Row],[Station Name]],'GIS Exports'!$B:$B,'GIS Exports'!W:W) -> y | W14: =_xlfn.XLOOKUP(Existing_PR_GIS[[#This Row],[Station Name]],'GIS Exports'!$B:$B,'GIS Exports'!X:X) -> 0 | X14: =_xlfn.XLOOKUP(Existing_PR_GIS[[#This Row],[Station Name]],'GIS Exports'!$B:$B,'GIS Exports'!Y:Y) -> 1 Suburban: Mid-corridor | Y14: =_xlfn.XLOOKUP(Existing_PR_GIS[[#This Row],[Station Name]],'GIS Exports'!$B:$B,'GIS Exports'!Z:Z) -> 0 | Z14: =_xlfn.XLOOKUP(Existing_PR_GIS[[#This Row],[Station Name]],'GIS Exports'!$B:$B,'GIS Exports'!AA:AA) -> 1 Suburban: Mid-corridor | AA14: =_xlfn.XLOOKUP(Existing_PR_GIS[[#This Row],[Station Name]],'GIS Exports'!$B:$B,'GIS Exports'!AB:AB) -> 0 | AB14: 0 | AC14: 0.5 | AD14: 0 | AE14: 0 | AF14: 0 | AG14: 1 | AH14: 1 | AI14: 1 | AJ14: =SUM(Existing_PR_GIS[[#This Row],[Weighted Pop. Density]:[Weighted Transit Access Score]]) -> 3.5
A15: Fashion Place West Station | B15: =_xlfn.XLOOKUP(Existing_PR_GIS[[#This Row],[Station Name]],'GIS Exports'!$B:$B,'GIS Exports'!C:C) -> 2528 | C15: =_xlfn.XLOOKUP(Existing_PR_GIS[[#This Row],[Station Name]],'GIS Exports'!$B:$B,'GIS Exports'!D:D) -> 3218.742042 | D15: =_xlfn.XLOOKUP(Existing_PR_GIS[[#This Row],[Station Name]],'GIS Exports'!$B:$B,'GIS Exports'!E:E) -> 0.77 | E15: =_xlfn.XLOOKUP(Existing_PR_GIS[[#This Row],[Station Name]],'GIS Exports'!$B:$B,'GIS Exports'!F:F) -> low | F15: =_xlfn.XLOOKUP(Existing_PR_GIS[[#This Row],[Station Name]],'GIS Exports'!$B:$B,'GIS Exports'!G:G) -> Suburban single family houses, some retail | G15: =_xlfn.XLOOKUP(Existing_PR_GIS[[#This Row],[Station Name]],'GIS Exports'!$B:$B,'GIS Exports'!H:H) -> 316 | H15: =_xlfn.XLOOKUP(Existing_PR_GIS[[#This Row],[Station Name]],'GIS Exports'!$B:$B,'GIS Exports'!I:I) -> 657 | I15: =_xlfn.XLOOKUP(Existing_PR_GIS[[#This Row],[Station Name]],'GIS Exports'!$B:$B,'GIS Exports'!J:J) -> 2.700148 | J15: =_xlfn.XLOOKUP(Existing_PR_GIS[[#This Row],[Station Name]],'GIS Exports'!$B:$B,'GIS Exports'!K:K) -> 3218.742042 | K15: =_xlfn.XLOOKUP(Existing_PR_GIS[[#This Row],[Station Name]],'GIS Exports'!$B:$B,'GIS Exports'!L:L) -> 4345.225 | L15: =_xlfn.XLOOKUP(Existing_PR_GIS[[#This Row],[Station Name]],'GIS Exports'!$B:$B,'GIS Exports'!M:M) -> 4345.225 | M15: =_xlfn.XLOOKUP(Existing_PR_GIS[[#This Row],[Station Name]],'GIS Exports'!$B:$B,'GIS Exports'!N:N) -> 0.046772 | N15: =_xlfn.XLOOKUP(Existing_PR_GIS[[#This Row],[Station Name]],'GIS Exports'!$B:$B,'GIS Exports'!O:O) -> medium | O15: =_xlfn.XLOOKUP(Existing_PR_GIS[[#This Row],[Station Name]],'GIS Exports'!$B:$B,'GIS Exports'!P:P) -> no | P15: =_xlfn.XLOOKUP(Existing_PR_GIS[[#This Row],[Station Name]],'GIS Exports'!$B:$B,'GIS Exports'!Q:Q) -> 0.000667 | Q15: =_xlfn.XLOOKUP(Existing_PR_GIS[[#This Row],[Station Name]],'GIS Exports'!$B:$B,'GIS Exports'!R:R) -> high | R15: =_xlfn.XLOOKUP(Existing_PR_GIS[[#This Row],[Station Name]],'GIS Exports'!$B:$B,'GIS Exports'!S:S) -> 10 | S15: =_xlfn.XLOOKUP(Existing_PR_GIS[[#This Row],[Station Name]],'GIS Exports'!$B:$B,'GIS Exports'!T:T) -> 58.606831 | T15: =_xlfn.XLOOKUP(Existing_PR_GIS[[#This Row],[Station Name]],'GIS Exports'!$B:$B,'GIS Exports'!U:U) -> 87.939667 | U15: =_xlfn.XLOOKUP(Existing_PR_GIS[[#This Row],[Station Name]],'GIS Exports'!$B:$B,'GIS Exports'!V:V) -> 46.153846 | V15: =_xlfn.XLOOKUP(Existing_PR_GIS[[#This Row],[Station Name]],'GIS Exports'!$B:$B,'GIS Exports'!W:W) -> y | W15: =_xlfn.XLOOKUP(Existing_PR_GIS[[#This Row],[Station Name]],'GIS Exports'!$B:$B,'GIS Exports'!X:X) -> 0 | X15: =_xlfn.XLOOKUP(Existing_PR_GIS[[#This Row],[Station Name]],'GIS Exports'!$B:$B,'GIS Exports'!Y:Y) -> 1 Suburban: Mid-corridor | Y15: =_xlfn.XLOOKUP(Existing_PR_GIS[[#This Row],[Station Name]],'GIS Exports'!$B:$B,'GIS Exports'!Z:Z) -> 0 | Z15: =_xlfn.XLOOKUP(Existing_PR_GIS[[#This Row],[Station Name]],'GIS Exports'!$B:$B,'GIS Exports'!AA:AA) -> 1 Suburban: Mid-corridor | AA15: =_xlfn.XLOOKUP(Existing_PR_GIS[[#This Row],[Station Name]],'GIS Exports'!$B:$B,'GIS Exports'!AB:AB) -> 0 | AB15: 0.5 | AC15: 0 | AD15: 0 | AE15: 0 | AF15: 0 | AG15: 1 | AH15: 2 | AI15: 1 | AJ15: =SUM(Existing_PR_GIS[[#This Row],[Weighted Pop. Density]:[Weighted Transit Access Score]]) -> 4.5
A16: Historic Gardner Station | B16: =_xlfn.XLOOKUP(Existing_PR_GIS[[#This Row],[Station Name]],'GIS Exports'!$B:$B,'GIS Exports'!C:C) -> 3143 | C16: =_xlfn.XLOOKUP(Existing_PR_GIS[[#This Row],[Station Name]],'GIS Exports'!$B:$B,'GIS Exports'!D:D) -> 4001.782531 | D16: =_xlfn.XLOOKUP(Existing_PR_GIS[[#This Row],[Station Name]],'GIS Exports'!$B:$B,'GIS Exports'!E:E) -> 0.33 | E16: =_xlfn.XLOOKUP(Existing_PR_GIS[[#This Row],[Station Name]],'GIS Exports'!$B:$B,'GIS Exports'!F:F) -> mid | F16: =_xlfn.XLOOKUP(Existing_PR_GIS[[#This Row],[Station Name]],'GIS Exports'!$B:$B,'GIS Exports'!G:G) -> Open land, apartments | G16: =_xlfn.XLOOKUP(Existing_PR_GIS[[#This Row],[Station Name]],'GIS Exports'!$B:$B,'GIS Exports'!H:H) -> 130 | H16: =_xlfn.XLOOKUP(Existing_PR_GIS[[#This Row],[Station Name]],'GIS Exports'!$B:$B,'GIS Exports'!I:I) -> 131 | I16: =_xlfn.XLOOKUP(Existing_PR_GIS[[#This Row],[Station Name]],'GIS Exports'!$B:$B,'GIS Exports'!J:J) -> 3.053613 | J16: =_xlfn.XLOOKUP(Existing_PR_GIS[[#This Row],[Station Name]],'GIS Exports'!$B:$B,'GIS Exports'!K:K) -> 4001.782531 | K16: =_xlfn.XLOOKUP(Existing_PR_GIS[[#This Row],[Station Name]],'GIS Exports'!$B:$B,'GIS Exports'!L:L) -> 3159.277 | L16: =_xlfn.XLOOKUP(Existing_PR_GIS[[#This Row],[Station Name]],'GIS Exports'!$B:$B,'GIS Exports'!M:M) -> 3159.277 | M16: =_xlfn.XLOOKUP(Existing_PR_GIS[[#This Row],[Station Name]],'GIS Exports'!$B:$B,'GIS Exports'!N:N) -> 0.01869 | N16: =_xlfn.XLOOKUP(Existing_PR_GIS[[#This Row],[Station Name]],'GIS Exports'!$B:$B,'GIS Exports'!O:O) -> low | O16: =_xlfn.XLOOKUP(Existing_PR_GIS[[#This Row],[Station Name]],'GIS Exports'!$B:$B,'GIS Exports'!P:P) -> no | P16: =_xlfn.XLOOKUP(Existing_PR_GIS[[#This Row],[Station Name]],'GIS Exports'!$B:$B,'GIS Exports'!Q:Q) -> 0.004547 | Q16: =_xlfn.XLOOKUP(Existing_PR_GIS[[#This Row],[Station Name]],'GIS Exports'!$B:$B,'GIS Exports'!R:R) -> high | R16: =_xlfn.XLOOKUP(Existing_PR_GIS[[#This Row],[Station Name]],'GIS Exports'!$B:$B,'GIS Exports'!S:S) -> 20 | S16: =_xlfn.XLOOKUP(Existing_PR_GIS[[#This Row],[Station Name]],'GIS Exports'!$B:$B,'GIS Exports'!T:T) -> 41.096832 | T16: =_xlfn.XLOOKUP(Existing_PR_GIS[[#This Row],[Station Name]],'GIS Exports'!$B:$B,'GIS Exports'!U:U) -> 95.048505 | U16: =_xlfn.XLOOKUP(Existing_PR_GIS[[#This Row],[Station Name]],'GIS Exports'!$B:$B,'GIS Exports'!V:V) -> 15.384615 | V16: =_xlfn.XLOOKUP(Existing_PR_GIS[[#This Row],[Station Name]],'GIS Exports'!$B:$B,'GIS Exports'!W:W) -> y | W16: =_xlfn.XLOOKUP(Existing_PR_GIS[[#This Row],[Station Name]],'GIS Exports'!$B:$B,'GIS Exports'!X:X) -> 0 | X16: =_xlfn.XLOOKUP(Existing_PR_GIS[[#This Row],[Station Name]],'GIS Exports'!$B:$B,'GIS Exports'!Y:Y) -> 1 Suburban: Mid-corridor | Y16: =_xlfn.XLOOKUP(Existing_PR_GIS[[#This Row],[Station Name]],'GIS Exports'!$B:$B,'GIS Exports'!Z:Z) -> 0 | Z16: =_xlfn.XLOOKUP(Existing_PR_GIS[[#This Row],[Station Name]],'GIS Exports'!$B:$B,'GIS Exports'!AA:AA) -> 1 Suburban: Mid-corridor | AA16: =_xlfn.XLOOKUP(Existing_PR_GIS[[#This Row],[Station Name]],'GIS Exports'!$B:$B,'GIS Exports'!AB:AB) -> 0 | AB16: 0.5 | AC16: 0 | AD16: 0 | AE16: 0 | AF16: 0.5 | AG16: 1 | AH16: 2 | AI16: 0 | AJ16: =SUM(Existing_PR_GIS[[#This Row],[Weighted Pop. Density]:[Weighted Transit Access Score]]) -> 4
A17: Historic Sandy Station | B17: =_xlfn.XLOOKUP(Existing_PR_GIS[[#This Row],[Station Name]],'GIS Exports'!$B:$B,'GIS Exports'!C:C) -> 4037 | C17: =_xlfn.XLOOKUP(Existing_PR_GIS[[#This Row],[Station Name]],'GIS Exports'!$B:$B,'GIS Exports'!D:D) -> 5140.056022 | D17: =_xlfn.XLOOKUP(Existing_PR_GIS[[#This Row],[Station Name]],'GIS Exports'!$B:$B,'GIS Exports'!E:E) -> 0.73 | E17: =_xlfn.XLOOKUP(Existing_PR_GIS[[#This Row],[Station Name]],'GIS Exports'!$B:$B,'GIS Exports'!F:F) -> low | F17: =_xlfn.XLOOKUP(Existing_PR_GIS[[#This Row],[Station Name]],'GIS Exports'!$B:$B,'GIS Exports'!G:G) -> Suburban single family houses | G17: =_xlfn.XLOOKUP(Existing_PR_GIS[[#This Row],[Station Name]],'GIS Exports'!$B:$B,'GIS Exports'!H:H) -> 271 | H17: =_xlfn.XLOOKUP(Existing_PR_GIS[[#This Row],[Station Name]],'GIS Exports'!$B:$B,'GIS Exports'!I:I) -> 662 | I17: =_xlfn.XLOOKUP(Existing_PR_GIS[[#This Row],[Station Name]],'GIS Exports'!$B:$B,'GIS Exports'!J:J) -> 3.346307 | J17: =_xlfn.XLOOKUP(Existing_PR_GIS[[#This Row],[Station Name]],'GIS Exports'!$B:$B,'GIS Exports'!K:K) -> 5140.056022 | K17: =_xlfn.XLOOKUP(Existing_PR_GIS[[#This Row],[Station Name]],'GIS Exports'!$B:$B,'GIS Exports'!L:L) -> 5194.194 | L17: =_xlfn.XLOOKUP(Existing_PR_GIS[[#This Row],[Station Name]],'GIS Exports'!$B:$B,'GIS Exports'!M:M) -> 5194.194 | M17: =_xlfn.XLOOKUP(Existing_PR_GIS[[#This Row],[Station Name]],'GIS Exports'!$B:$B,'GIS Exports'!N:N) -> 0.035388 | N17: =_xlfn.XLOOKUP(Existing_PR_GIS[[#This Row],[Station Name]],'GIS Exports'!$B:$B,'GIS Exports'!O:O) -> low | O17: =_xlfn.XLOOKUP(Existing_PR_GIS[[#This Row],[Station Name]],'GIS Exports'!$B:$B,'GIS Exports'!P:P) -> yes | P17: =_xlfn.XLOOKUP(Existing_PR_GIS[[#This Row],[Station Name]],'GIS Exports'!$B:$B,'GIS Exports'!Q:Q) -> 0.038412 | Q17: =_xlfn.XLOOKUP(Existing_PR_GIS[[#This Row],[Station Name]],'GIS Exports'!$B:$B,'GIS Exports'!R:R) -> high | R17: =_xlfn.XLOOKUP(Existing_PR_GIS[[#This Row],[Station Name]],'GIS Exports'!$B:$B,'GIS Exports'!S:S) -> 25 | S17: =_xlfn.XLOOKUP(Existing_PR_GIS[[#This Row],[Station Name]],'GIS Exports'!$B:$B,'GIS Exports'!T:T) -> 92.585013 | T17: =_xlfn.XLOOKUP(Existing_PR_GIS[[#This Row],[Station Name]],'GIS Exports'!$B:$B,'GIS Exports'!U:U) -> 87.617455 | U17: =_xlfn.XLOOKUP(Existing_PR_GIS[[#This Row],[Station Name]],'GIS Exports'!$B:$B,'GIS Exports'!V:V) -> 30.769231 | V17: =_xlfn.XLOOKUP(Existing_PR_GIS[[#This Row],[Station Name]],'GIS Exports'!$B:$B,'GIS Exports'!W:W) -> y | W17: =_xlfn.XLOOKUP(Existing_PR_GIS[[#This Row],[Station Name]],'GIS Exports'!$B:$B,'GIS Exports'!X:X) -> 0 | X17: =_xlfn.XLOOKUP(Existing_PR_GIS[[#This Row],[Station Name]],'GIS Exports'!$B:$B,'GIS Exports'!Y:Y) -> 1 Suburban: Mid-corridor | Y17: =_xlfn.XLOOKUP(Existing_PR_GIS[[#This Row],[Station Name]],'GIS Exports'!$B:$B,'GIS Exports'!Z:Z) -> 0 | Z17: =_xlfn.XLOOKUP(Existing_PR_GIS[[#This Row],[Station Name]],'GIS Exports'!$B:$B,'GIS Exports'!AA:AA) -> 1 Suburban: Mid-corridor | AA17: =_xlfn.XLOOKUP(Existing_PR_GIS[[#This Row],[Station Name]],'GIS Exports'!$B:$B,'GIS Exports'!AB:AB) -> 0 | AB17: 1 | AC17: 0 | AD17: 0 | AE17: 0 | AF17: 0.5 | AG17: 2 | AH17: 2 | AI17: 1 | AJ17: =SUM(Existing_PR_GIS[[#This Row],[Weighted Pop. Density]:[Weighted Transit Access Score]]) -> 6.5
A18: Jordan Valley Station | B18: =_xlfn.XLOOKUP(Existing_PR_GIS[[#This Row],[Station Name]],'GIS Exports'!$B:$B,'GIS Exports'!C:C) -> 4299 | C18: =_xlfn.XLOOKUP(Existing_PR_GIS[[#This Row],[Station Name]],'GIS Exports'!$B:$B,'GIS Exports'!D:D) -> 5473.644003 | D18: =_xlfn.XLOOKUP(Existing_PR_GIS[[#This Row],[Station Name]],'GIS Exports'!$B:$B,'GIS Exports'!E:E) -> 0.21 | E18: =_xlfn.XLOOKUP(Existing_PR_GIS[[#This Row],[Station Name]],'GIS Exports'!$B:$B,'GIS Exports'!F:F) -> mid | F18: =_xlfn.XLOOKUP(Existing_PR_GIS[[#This Row],[Station Name]],'GIS Exports'!$B:$B,'GIS Exports'!G:G) -> Apartments, industry | G18: =_xlfn.XLOOKUP(Existing_PR_GIS[[#This Row],[Station Name]],'GIS Exports'!$B:$B,'GIS Exports'!H:H) -> 716 | H18: =_xlfn.XLOOKUP(Existing_PR_GIS[[#This Row],[Station Name]],'GIS Exports'!$B:$B,'GIS Exports'!I:I) -> 427 | I18: =_xlfn.XLOOKUP(Existing_PR_GIS[[#This Row],[Station Name]],'GIS Exports'!$B:$B,'GIS Exports'!J:J) -> 2.839851 | J18: =_xlfn.XLOOKUP(Existing_PR_GIS[[#This Row],[Station Name]],'GIS Exports'!$B:$B,'GIS Exports'!K:K) -> 5473.644003 | K18: =_xlfn.XLOOKUP(Existing_PR_GIS[[#This Row],[Station Name]],'GIS Exports'!$B:$B,'GIS Exports'!L:L) -> 3419.509 | L18: =_xlfn.XLOOKUP(Existing_PR_GIS[[#This Row],[Station Name]],'GIS Exports'!$B:$B,'GIS Exports'!M:M) -> 3419.509 | M18: =_xlfn.XLOOKUP(Existing_PR_GIS[[#This Row],[Station Name]],'GIS Exports'!$B:$B,'GIS Exports'!N:N) -> 0.024692 | N18: =_xlfn.XLOOKUP(Existing_PR_GIS[[#This Row],[Station Name]],'GIS Exports'!$B:$B,'GIS Exports'!O:O) -> low | O18: =_xlfn.XLOOKUP(Existing_PR_GIS[[#This Row],[Station Name]],'GIS Exports'!$B:$B,'GIS Exports'!P:P) -> yes | P18: =_xlfn.XLOOKUP(Existing_PR_GIS[[#This Row],[Station Name]],'GIS Exports'!$B:$B,'GIS Exports'!Q:Q) -> 0.016247 | Q18: =_xlfn.XLOOKUP(Existing_PR_GIS[[#This Row],[Station Name]],'GIS Exports'!$B:$B,'GIS Exports'!R:R) -> medium | R18: =_xlfn.XLOOKUP(Existing_PR_GIS[[#This Row],[Station Name]],'GIS Exports'!$B:$B,'GIS Exports'!S:S) -> 20 | S18: =_xlfn.XLOOKUP(Existing_PR_GIS[[#This Row],[Station Name]],'GIS Exports'!$B:$B,'GIS Exports'!T:T) -> 60.739967 | T18: =_xlfn.XLOOKUP(Existing_PR_GIS[[#This Row],[Station Name]],'GIS Exports'!$B:$B,'GIS Exports'!U:U) -> 83.757001 | U18: =_xlfn.XLOOKUP(Existing_PR_GIS[[#This Row],[Station Name]],'GIS Exports'!$B:$B,'GIS Exports'!V:V) -> 30.769231 | V18: =_xlfn.XLOOKUP(Existing_PR_GIS[[#This Row],[Station Name]],'GIS Exports'!$B:$B,'GIS Exports'!W:W) -> y | W18: =_xlfn.XLOOKUP(Existing_PR_GIS[[#This Row],[Station Name]],'GIS Exports'!$B:$B,'GIS Exports'!X:X) -> 0 | X18: =_xlfn.XLOOKUP(Existing_PR_GIS[[#This Row],[Station Name]],'GIS Exports'!$B:$B,'GIS Exports'!Y:Y) -> 1 Suburban: Mid-corridor | Y18: =_xlfn.XLOOKUP(Existing_PR_GIS[[#This Row],[Station Name]],'GIS Exports'!$B:$B,'GIS Exports'!Z:Z) -> 0 | Z18: =_xlfn.XLOOKUP(Existing_PR_GIS[[#This Row],[Station Name]],'GIS Exports'!$B:$B,'GIS Exports'!AA:AA) -> 5 TOD | AA18: =_xlfn.XLOOKUP(Existing_PR_GIS[[#This Row],[Station Name]],'GIS Exports'!$B:$B,'GIS Exports'!AB:AB) -> Medium potential | AB18: 1 | AC18: 0 | AD18: 0 | AE18: 0 | AF18: 0.5 | AG18: 1 | AH18: 2 | AI18: 1 | AJ18: =SUM(Existing_PR_GIS[[#This Row],[Weighted Pop. Density]:[Weighted Transit Access Score]]) -> 5.5
A19: Kimballs Lane Station | B19: =_xlfn.XLOOKUP(Existing_PR_GIS[[#This Row],[Station Name]],'GIS Exports'!$B:$B,'GIS Exports'!C:C) -> 2989 | C19: =_xlfn.XLOOKUP(Existing_PR_GIS[[#This Row],[Station Name]],'GIS Exports'!$B:$B,'GIS Exports'!D:D) -> 3805.7041 | D19: =_xlfn.XLOOKUP(Existing_PR_GIS[[#This Row],[Station Name]],'GIS Exports'!$B:$B,'GIS Exports'!E:E) -> 0.32 | E19: =_xlfn.XLOOKUP(Existing_PR_GIS[[#This Row],[Station Name]],'GIS Exports'!$B:$B,'GIS Exports'!F:F) -> low | F19: =_xlfn.XLOOKUP(Existing_PR_GIS[[#This Row],[Station Name]],'GIS Exports'!$B:$B,'GIS Exports'!G:G) -> Mid density houses | G19: =_xlfn.XLOOKUP(Existing_PR_GIS[[#This Row],[Station Name]],'GIS Exports'!$B:$B,'GIS Exports'!H:H) -> 315 | H19: =_xlfn.XLOOKUP(Existing_PR_GIS[[#This Row],[Station Name]],'GIS Exports'!$B:$B,'GIS Exports'!I:I) -> 125 | I19: =_xlfn.XLOOKUP(Existing_PR_GIS[[#This Row],[Station Name]],'GIS Exports'!$B:$B,'GIS Exports'!J:J) -> 1.240079 | J19: =_xlfn.XLOOKUP(Existing_PR_GIS[[#This Row],[Station Name]],'GIS Exports'!$B:$B,'GIS Exports'!K:K) -> 3805.7041 | K19: =_xlfn.XLOOKUP(Existing_PR_GIS[[#This Row],[Station Name]],'GIS Exports'!$B:$B,'GIS Exports'!L:L) -> 2964.107 | L19: =_xlfn.XLOOKUP(Existing_PR_GIS[[#This Row],[Station Name]],'GIS Exports'!$B:$B,'GIS Exports'!M:M) -> 2964.107 | M19: =_xlfn.XLOOKUP(Existing_PR_GIS[[#This Row],[Station Name]],'GIS Exports'!$B:$B,'GIS Exports'!N:N) -> 0.020532 | N19: =_xlfn.XLOOKUP(Existing_PR_GIS[[#This Row],[Station Name]],'GIS Exports'!$B:$B,'GIS Exports'!O:O) -> low | O19: =_xlfn.XLOOKUP(Existing_PR_GIS[[#This Row],[Station Name]],'GIS Exports'!$B:$B,'GIS Exports'!P:P) -> no | P19: =_xlfn.XLOOKUP(Existing_PR_GIS[[#This Row],[Station Name]],'GIS Exports'!$B:$B,'GIS Exports'!Q:Q) -> 0.010175 | Q19: =_xlfn.XLOOKUP(Existing_PR_GIS[[#This Row],[Station Name]],'GIS Exports'!$B:$B,'GIS Exports'!R:R) -> high | R19: =_xlfn.XLOOKUP(Existing_PR_GIS[[#This Row],[Station Name]],'GIS Exports'!$B:$B,'GIS Exports'!S:S) -> 0 | S19: =_xlfn.XLOOKUP(Existing_PR_GIS[[#This Row],[Station Name]],'GIS Exports'!$B:$B,'GIS Exports'!T:T) -> 76.013878 | T19: =_xlfn.XLOOKUP(Existing_PR_GIS[[#This Row],[Station Name]],'GIS Exports'!$B:$B,'GIS Exports'!U:U) -> 83.637459 | U19: =_xlfn.XLOOKUP(Existing_PR_GIS[[#This Row],[Station Name]],'GIS Exports'!$B:$B,'GIS Exports'!V:V) -> 7.692308 | V19: =_xlfn.XLOOKUP(Existing_PR_GIS[[#This Row],[Station Name]],'GIS Exports'!$B:$B,'GIS Exports'!W:W) -> y | W19: =_xlfn.XLOOKUP(Existing_PR_GIS[[#This Row],[Station Name]],'GIS Exports'!$B:$B,'GIS Exports'!X:X) -> 0 | X19: =_xlfn.XLOOKUP(Existing_PR_GIS[[#This Row],[Station Name]],'GIS Exports'!$B:$B,'GIS Exports'!Y:Y) -> 1 Suburban: Mid-corridor | Y19: =_xlfn.XLOOKUP(Existing_PR_GIS[[#This Row],[Station Name]],'GIS Exports'!$B:$B,'GIS Exports'!Z:Z) -> 0 | Z19: =_xlfn.XLOOKUP(Existing_PR_GIS[[#This Row],[Station Name]],'GIS Exports'!$B:$B,'GIS Exports'!AA:AA) -> 1 Suburban: Mid-corridor | AA19: =_xlfn.XLOOKUP(Existing_PR_GIS[[#This Row],[Station Name]],'GIS Exports'!$B:$B,'GIS Exports'!AB:AB) -> 0 | AB19: 0.5 | AC19: 0 | AD19: 0 | AE19: 0 | AF19: 0 | AG19: 1 | AH19: 2 | AI19: 0 | AJ19: =SUM(Existing_PR_GIS[[#This Row],[Weighted Pop. Density]:[Weighted Transit Access Score]]) -> 3.5
A20: Layton Station | B20: =_xlfn.XLOOKUP(Existing_PR_GIS[[#This Row],[Station Name]],'GIS Exports'!$B:$B,'GIS Exports'!C:C) -> 2513 | C20: =_xlfn.XLOOKUP(Existing_PR_GIS[[#This Row],[Station Name]],'GIS Exports'!$B:$B,'GIS Exports'!D:D) -> 3199.643494 | D20: =_xlfn.XLOOKUP(Existing_PR_GIS[[#This Row],[Station Name]],'GIS Exports'!$B:$B,'GIS Exports'!E:E) -> 0.91 | E20: =_xlfn.XLOOKUP(Existing_PR_GIS[[#This Row],[Station Name]],'GIS Exports'!$B:$B,'GIS Exports'!F:F) -> low | F20: =_xlfn.XLOOKUP(Existing_PR_GIS[[#This Row],[Station Name]],'GIS Exports'!$B:$B,'GIS Exports'!G:G) -> Some apartments | G20: =_xlfn.XLOOKUP(Existing_PR_GIS[[#This Row],[Station Name]],'GIS Exports'!$B:$B,'GIS Exports'!H:H) -> 418 | H20: =_xlfn.XLOOKUP(Existing_PR_GIS[[#This Row],[Station Name]],'GIS Exports'!$B:$B,'GIS Exports'!I:I) -> 655 | I20: =_xlfn.XLOOKUP(Existing_PR_GIS[[#This Row],[Station Name]],'GIS Exports'!$B:$B,'GIS Exports'!J:J) -> 1.721962 | J20: =_xlfn.XLOOKUP(Existing_PR_GIS[[#This Row],[Station Name]],'GIS Exports'!$B:$B,'GIS Exports'!K:K) -> 3199.643494 | K20: =_xlfn.XLOOKUP(Existing_PR_GIS[[#This Row],[Station Name]],'GIS Exports'!$B:$B,'GIS Exports'!L:L) -> 4200.974 | L20: =_xlfn.XLOOKUP(Existing_PR_GIS[[#This Row],[Station Name]],'GIS Exports'!$B:$B,'GIS Exports'!M:M) -> 4200.974 | M20: =_xlfn.XLOOKUP(Existing_PR_GIS[[#This Row],[Station Name]],'GIS Exports'!$B:$B,'GIS Exports'!N:N) -> 0.031945 | N20: =_xlfn.XLOOKUP(Existing_PR_GIS[[#This Row],[Station Name]],'GIS Exports'!$B:$B,'GIS Exports'!O:O) -> medium | O20: =_xlfn.XLOOKUP(Existing_PR_GIS[[#This Row],[Station Name]],'GIS Exports'!$B:$B,'GIS Exports'!P:P) -> yes | P20: =_xlfn.XLOOKUP(Existing_PR_GIS[[#This Row],[Station Name]],'GIS Exports'!$B:$B,'GIS Exports'!Q:Q) -> 0.016357 | Q20: =_xlfn.XLOOKUP(Existing_PR_GIS[[#This Row],[Station Name]],'GIS Exports'!$B:$B,'GIS Exports'!R:R) -> high-medium | R20: =_xlfn.XLOOKUP(Existing_PR_GIS[[#This Row],[Station Name]],'GIS Exports'!$B:$B,'GIS Exports'!S:S) -> 15 | S20: =_xlfn.XLOOKUP(Existing_PR_GIS[[#This Row],[Station Name]],'GIS Exports'!$B:$B,'GIS Exports'!T:T) -> 36.0104 | T20: =_xlfn.XLOOKUP(Existing_PR_GIS[[#This Row],[Station Name]],'GIS Exports'!$B:$B,'GIS Exports'!U:U) -> 95.274101 | U20: =_xlfn.XLOOKUP(Existing_PR_GIS[[#This Row],[Station Name]],'GIS Exports'!$B:$B,'GIS Exports'!V:V) -> 38.461538 | V20: =_xlfn.XLOOKUP(Existing_PR_GIS[[#This Row],[Station Name]],'GIS Exports'!$B:$B,'GIS Exports'!W:W) -> y | W20: =_xlfn.XLOOKUP(Existing_PR_GIS[[#This Row],[Station Name]],'GIS Exports'!$B:$B,'GIS Exports'!X:X) -> 0 | X20: =_xlfn.XLOOKUP(Existing_PR_GIS[[#This Row],[Station Name]],'GIS Exports'!$B:$B,'GIS Exports'!Y:Y) -> 1 Suburban: Mid-corridor | Y20: =_xlfn.XLOOKUP(Existing_PR_GIS[[#This Row],[Station Name]],'GIS Exports'!$B:$B,'GIS Exports'!Z:Z) -> 0 | Z20: =_xlfn.XLOOKUP(Existing_PR_GIS[[#This Row],[Station Name]],'GIS Exports'!$B:$B,'GIS Exports'!AA:AA) -> 1 Suburban: Mid-corridor | AA20: =_xlfn.XLOOKUP(Existing_PR_GIS[[#This Row],[Station Name]],'GIS Exports'!$B:$B,'GIS Exports'!AB:AB) -> 0 | AB20: 0.5 | AC20: 0 | AD20: 0 | AE20: 0 | AF20: 0 | AG20: 1 | AH20: 2 | AI20: 1 | AJ20: =SUM(Existing_PR_GIS[[#This Row],[Weighted Pop. Density]:[Weighted Transit Access Score]]) -> 4.5
A21: Lehi Station | B21: =_xlfn.XLOOKUP(Existing_PR_GIS[[#This Row],[Station Name]],'GIS Exports'!$B:$B,'GIS Exports'!C:C) -> 738 | C21: =_xlfn.XLOOKUP(Existing_PR_GIS[[#This Row],[Station Name]],'GIS Exports'!$B:$B,'GIS Exports'!D:D) -> 939.6485867 | D21: =_xlfn.XLOOKUP(Existing_PR_GIS[[#This Row],[Station Name]],'GIS Exports'!$B:$B,'GIS Exports'!E:E) -> 0.59 | E21: =_xlfn.XLOOKUP(Existing_PR_GIS[[#This Row],[Station Name]],'GIS Exports'!$B:$B,'GIS Exports'!F:F) -> mid | F21: =_xlfn.XLOOKUP(Existing_PR_GIS[[#This Row],[Station Name]],'GIS Exports'!$B:$B,'GIS Exports'!G:G) -> Large employers | G21: =_xlfn.XLOOKUP(Existing_PR_GIS[[#This Row],[Station Name]],'GIS Exports'!$B:$B,'GIS Exports'!H:H) -> 716 | H21: =_xlfn.XLOOKUP(Existing_PR_GIS[[#This Row],[Station Name]],'GIS Exports'!$B:$B,'GIS Exports'!I:I) -> 1226 | I21: =_xlfn.XLOOKUP(Existing_PR_GIS[[#This Row],[Station Name]],'GIS Exports'!$B:$B,'GIS Exports'!J:J) -> 2.902187 | J21: =_xlfn.XLOOKUP(Existing_PR_GIS[[#This Row],[Station Name]],'GIS Exports'!$B:$B,'GIS Exports'!K:K) -> 939.6485867 | K21: =_xlfn.XLOOKUP(Existing_PR_GIS[[#This Row],[Station Name]],'GIS Exports'!$B:$B,'GIS Exports'!L:L) -> 11147.19 | L21: =_xlfn.XLOOKUP(Existing_PR_GIS[[#This Row],[Station Name]],'GIS Exports'!$B:$B,'GIS Exports'!M:M) -> 11147.19 | M21: =_xlfn.XLOOKUP(Existing_PR_GIS[[#This Row],[Station Name]],'GIS Exports'!$B:$B,'GIS Exports'!N:N) -> 0.006157 | N21: =_xlfn.XLOOKUP(Existing_PR_GIS[[#This Row],[Station Name]],'GIS Exports'!$B:$B,'GIS Exports'!O:O) -> low | O21: =_xlfn.XLOOKUP(Existing_PR_GIS[[#This Row],[Station Name]],'GIS Exports'!$B:$B,'GIS Exports'!P:P) -> no | P21: =_xlfn.XLOOKUP(Existing_PR_GIS[[#This Row],[Station Name]],'GIS Exports'!$B:$B,'GIS Exports'!Q:Q) -> 0.000239 | Q21: =_xlfn.XLOOKUP(Existing_PR_GIS[[#This Row],[Station Name]],'GIS Exports'!$B:$B,'GIS Exports'!R:R) -> high | R21: =_xlfn.XLOOKUP(Existing_PR_GIS[[#This Row],[Station Name]],'GIS Exports'!$B:$B,'GIS Exports'!S:S) -> 5 | S21: =_xlfn.XLOOKUP(Existing_PR_GIS[[#This Row],[Station Name]],'GIS Exports'!$B:$B,'GIS Exports'!T:T) -> 62.712058 | T21: =_xlfn.XLOOKUP(Existing_PR_GIS[[#This Row],[Station Name]],'GIS Exports'!$B:$B,'GIS Exports'!U:U) -> 41.092876 | U21: =_xlfn.XLOOKUP(Existing_PR_GIS[[#This Row],[Station Name]],'GIS Exports'!$B:$B,'GIS Exports'!V:V) -> 38.461538 | V21: =_xlfn.XLOOKUP(Existing_PR_GIS[[#This Row],[Station Name]],'GIS Exports'!$B:$B,'GIS Exports'!W:W) -> y | W21: =_xlfn.XLOOKUP(Existing_PR_GIS[[#This Row],[Station Name]],'GIS Exports'!$B:$B,'GIS Exports'!X:X) -> 0 | X21: =_xlfn.XLOOKUP(Existing_PR_GIS[[#This Row],[Station Name]],'GIS Exports'!$B:$B,'GIS Exports'!Y:Y) -> 1 Suburban: Mid-corridor | Y21: =_xlfn.XLOOKUP(Existing_PR_GIS[[#This Row],[Station Name]],'GIS Exports'!$B:$B,'GIS Exports'!Z:Z) -> 0 | Z21: =_xlfn.XLOOKUP(Existing_PR_GIS[[#This Row],[Station Name]],'GIS Exports'!$B:$B,'GIS Exports'!AA:AA) -> 1 Suburban: Mid-corridor | AA21: =_xlfn.XLOOKUP(Existing_PR_GIS[[#This Row],[Station Name]],'GIS Exports'!$B:$B,'GIS Exports'!AB:AB) -> 0 | AB21: 0 | AC21: 0.5 | AD21: 0 | AE21: 0 | AF21: 0 | AG21: 1 | AH21: 1 | AI21: 1 | AJ21: =SUM(Existing_PR_GIS[[#This Row],[Weighted Pop. Density]:[Weighted Transit Access Score]]) -> 3.5
A22: Meadowbrook Station | B22: =_xlfn.XLOOKUP(Existing_PR_GIS[[#This Row],[Station Name]],'GIS Exports'!$B:$B,'GIS Exports'!C:C) -> 2194 | C22: =_xlfn.XLOOKUP(Existing_PR_GIS[[#This Row],[Station Name]],'GIS Exports'!$B:$B,'GIS Exports'!D:D) -> 2793.481029 | D22: =_xlfn.XLOOKUP(Existing_PR_GIS[[#This Row],[Station Name]],'GIS Exports'!$B:$B,'GIS Exports'!E:E) -> 0.34 | E22: =_xlfn.XLOOKUP(Existing_PR_GIS[[#This Row],[Station Name]],'GIS Exports'!$B:$B,'GIS Exports'!F:F) -> mid high | F22: =_xlfn.XLOOKUP(Existing_PR_GIS[[#This Row],[Station Name]],'GIS Exports'!$B:$B,'GIS Exports'!G:G) -> Apartments, retail | G22: =_xlfn.XLOOKUP(Existing_PR_GIS[[#This Row],[Station Name]],'GIS Exports'!$B:$B,'GIS Exports'!H:H) -> 505 | H22: =_xlfn.XLOOKUP(Existing_PR_GIS[[#This Row],[Station Name]],'GIS Exports'!$B:$B,'GIS Exports'!I:I) -> 656 | I22: =_xlfn.XLOOKUP(Existing_PR_GIS[[#This Row],[Station Name]],'GIS Exports'!$B:$B,'GIS Exports'!J:J) -> 3.820617 | J22: =_xlfn.XLOOKUP(Existing_PR_GIS[[#This Row],[Station Name]],'GIS Exports'!$B:$B,'GIS Exports'!K:K) -> 2793.481029 | K22: =_xlfn.XLOOKUP(Existing_PR_GIS[[#This Row],[Station Name]],'GIS Exports'!$B:$B,'GIS Exports'!L:L) -> 10531.24 | L22: =_xlfn.XLOOKUP(Existing_PR_GIS[[#This Row],[Station Name]],'GIS Exports'!$B:$B,'GIS Exports'!M:M) -> 10531.24 | M22: =_xlfn.XLOOKUP(Existing_PR_GIS[[#This Row],[Station Name]],'GIS Exports'!$B:$B,'GIS Exports'!N:N) -> 0.091483 | N22: =_xlfn.XLOOKUP(Existing_PR_GIS[[#This Row],[Station Name]],'GIS Exports'!$B:$B,'GIS Exports'!O:O) -> medium-high | O22: =_xlfn.XLOOKUP(Existing_PR_GIS[[#This Row],[Station Name]],'GIS Exports'!$B:$B,'GIS Exports'!P:P) -> yes | P22: =_xlfn.XLOOKUP(Existing_PR_GIS[[#This Row],[Station Name]],'GIS Exports'!$B:$B,'GIS Exports'!Q:Q) -> 0.067085 | Q22: =_xlfn.XLOOKUP(Existing_PR_GIS[[#This Row],[Station Name]],'GIS Exports'!$B:$B,'GIS Exports'!R:R) -> low | R22: =_xlfn.XLOOKUP(Existing_PR_GIS[[#This Row],[Station Name]],'GIS Exports'!$B:$B,'GIS Exports'!S:S) -> 40 | S22: =_xlfn.XLOOKUP(Existing_PR_GIS[[#This Row],[Station Name]],'GIS Exports'!$B:$B,'GIS Exports'!T:T) -> 76.546026 | T22: =_xlfn.XLOOKUP(Existing_PR_GIS[[#This Row],[Station Name]],'GIS Exports'!$B:$B,'GIS Exports'!U:U) -> 87.947918 | U22: =_xlfn.XLOOKUP(Existing_PR_GIS[[#This Row],[Station Name]],'GIS Exports'!$B:$B,'GIS Exports'!V:V) -> 30.769231 | V22: =_xlfn.XLOOKUP(Existing_PR_GIS[[#This Row],[Station Name]],'GIS Exports'!$B:$B,'GIS Exports'!W:W) -> y | W22: =_xlfn.XLOOKUP(Existing_PR_GIS[[#This Row],[Station Name]],'GIS Exports'!$B:$B,'GIS Exports'!X:X) -> 0 | X22: =_xlfn.XLOOKUP(Existing_PR_GIS[[#This Row],[Station Name]],'GIS Exports'!$B:$B,'GIS Exports'!Y:Y) -> 1 Suburban: Mid-corridor | Y22: =_xlfn.XLOOKUP(Existing_PR_GIS[[#This Row],[Station Name]],'GIS Exports'!$B:$B,'GIS Exports'!Z:Z) -> 0 | Z22: =_xlfn.XLOOKUP(Existing_PR_GIS[[#This Row],[Station Name]],'GIS Exports'!$B:$B,'GIS Exports'!AA:AA) -> 5 TOD | AA22: =_xlfn.XLOOKUP(Existing_PR_GIS[[#This Row],[Station Name]],'GIS Exports'!$B:$B,'GIS Exports'!AB:AB) -> maybe suburban transfer or medium potential | AB22: 0.5 | AC22: 0.5 | AD22: 0 | AE22: 0 | AF22: 0.5 | AG22: 1 | AH22: 2 | AI22: 1 | AJ22: =SUM(Existing_PR_GIS[[#This Row],[Weighted Pop. Density]:[Weighted Transit Access Score]]) -> 5.5
A23: Midvale Center Station | B23: =_xlfn.XLOOKUP(Existing_PR_GIS[[#This Row],[Station Name]],'GIS Exports'!$B:$B,'GIS Exports'!C:C) -> 4457 | C23: =_xlfn.XLOOKUP(Existing_PR_GIS[[#This Row],[Station Name]],'GIS Exports'!$B:$B,'GIS Exports'!D:D) -> 5674.815381 | D23: =_xlfn.XLOOKUP(Existing_PR_GIS[[#This Row],[Station Name]],'GIS Exports'!$B:$B,'GIS Exports'!E:E) -> 0.26 | E23: =_xlfn.XLOOKUP(Existing_PR_GIS[[#This Row],[Station Name]],'GIS Exports'!$B:$B,'GIS Exports'!F:F) -> low | F23: =_xlfn.XLOOKUP(Existing_PR_GIS[[#This Row],[Station Name]],'GIS Exports'!$B:$B,'GIS Exports'!G:G) -> Suburban single family houses, some retail | G23: =_xlfn.XLOOKUP(Existing_PR_GIS[[#This Row],[Station Name]],'GIS Exports'!$B:$B,'GIS Exports'!H:H) -> 334 | H23: =_xlfn.XLOOKUP(Existing_PR_GIS[[#This Row],[Station Name]],'GIS Exports'!$B:$B,'GIS Exports'!I:I) -> 491 | I23: =_xlfn.XLOOKUP(Existing_PR_GIS[[#This Row],[Station Name]],'GIS Exports'!$B:$B,'GIS Exports'!J:J) -> 5.654076 | J23: =_xlfn.XLOOKUP(Existing_PR_GIS[[#This Row],[Station Name]],'GIS Exports'!$B:$B,'GIS Exports'!K:K) -> 5674.815381 | K23: =_xlfn.XLOOKUP(Existing_PR_GIS[[#This Row],[Station Name]],'GIS Exports'!$B:$B,'GIS Exports'!L:L) -> 3215.248 | L23: =_xlfn.XLOOKUP(Existing_PR_GIS[[#This Row],[Station Name]],'GIS Exports'!$B:$B,'GIS Exports'!M:M) -> 3215.248 | M23: =_xlfn.XLOOKUP(Existing_PR_GIS[[#This Row],[Station Name]],'GIS Exports'!$B:$B,'GIS Exports'!N:N) -> 0.031774 | N23: =_xlfn.XLOOKUP(Existing_PR_GIS[[#This Row],[Station Name]],'GIS Exports'!$B:$B,'GIS Exports'!O:O) -> low | O23: =_xlfn.XLOOKUP(Existing_PR_GIS[[#This Row],[Station Name]],'GIS Exports'!$B:$B,'GIS Exports'!P:P) -> yes | P23: =_xlfn.XLOOKUP(Existing_PR_GIS[[#This Row],[Station Name]],'GIS Exports'!$B:$B,'GIS Exports'!Q:Q) -> 0.038123 | Q23: =_xlfn.XLOOKUP(Existing_PR_GIS[[#This Row],[Station Name]],'GIS Exports'!$B:$B,'GIS Exports'!R:R) -> medium | R23: =_xlfn.XLOOKUP(Existing_PR_GIS[[#This Row],[Station Name]],'GIS Exports'!$B:$B,'GIS Exports'!S:S) -> 20 | S23: =_xlfn.XLOOKUP(Existing_PR_GIS[[#This Row],[Station Name]],'GIS Exports'!$B:$B,'GIS Exports'!T:T) -> 89.183678 | T23: =_xlfn.XLOOKUP(Existing_PR_GIS[[#This Row],[Station Name]],'GIS Exports'!$B:$B,'GIS Exports'!U:U) -> 79.684189 | U23: =_xlfn.XLOOKUP(Existing_PR_GIS[[#This Row],[Station Name]],'GIS Exports'!$B:$B,'GIS Exports'!V:V) -> 46.153846 | V23: =_xlfn.XLOOKUP(Existing_PR_GIS[[#This Row],[Station Name]],'GIS Exports'!$B:$B,'GIS Exports'!W:W) -> y | W23: =_xlfn.XLOOKUP(Existing_PR_GIS[[#This Row],[Station Name]],'GIS Exports'!$B:$B,'GIS Exports'!X:X) -> 0 | X23: =_xlfn.XLOOKUP(Existing_PR_GIS[[#This Row],[Station Name]],'GIS Exports'!$B:$B,'GIS Exports'!Y:Y) -> 1 Suburban: Mid-corridor | Y23: =_xlfn.XLOOKUP(Existing_PR_GIS[[#This Row],[Station Name]],'GIS Exports'!$B:$B,'GIS Exports'!Z:Z) -> 0 | Z23: =_xlfn.XLOOKUP(Existing_PR_GIS[[#This Row],[Station Name]],'GIS Exports'!$B:$B,'GIS Exports'!AA:AA) -> 2 Suburban: Transfer Location | AA23: =_xlfn.XLOOKUP(Existing_PR_GIS[[#This Row],[Station Name]],'GIS Exports'!$B:$B,'GIS Exports'!AB:AB) -> 0 | AB23: 1 | AC23: 0 | AD23: 0 | AE23: 0 | AF23: 0.5 | AG23: 2 | AH23: 1 | AI23: 1 | AJ23: =SUM(Existing_PR_GIS[[#This Row],[Weighted Pop. Density]:[Weighted Transit Access Score]]) -> 5.5
A24: Midvale Fort Union Station | B24: =_xlfn.XLOOKUP(Existing_PR_GIS[[#This Row],[Station Name]],'GIS Exports'!$B:$B,'GIS Exports'!C:C) -> 2945 | C24: =_xlfn.XLOOKUP(Existing_PR_GIS[[#This Row],[Station Name]],'GIS Exports'!$B:$B,'GIS Exports'!D:D) -> 3749.681691 | D24: =_xlfn.XLOOKUP(Existing_PR_GIS[[#This Row],[Station Name]],'GIS Exports'!$B:$B,'GIS Exports'!E:E) -> 0.25 | E24: =_xlfn.XLOOKUP(Existing_PR_GIS[[#This Row],[Station Name]],'GIS Exports'!$B:$B,'GIS Exports'!F:F) -> mid high | F24: =_xlfn.XLOOKUP(Existing_PR_GIS[[#This Row],[Station Name]],'GIS Exports'!$B:$B,'GIS Exports'!G:G) -> Apartments, retail | G24: =_xlfn.XLOOKUP(Existing_PR_GIS[[#This Row],[Station Name]],'GIS Exports'!$B:$B,'GIS Exports'!H:H) -> 275 | H24: =_xlfn.XLOOKUP(Existing_PR_GIS[[#This Row],[Station Name]],'GIS Exports'!$B:$B,'GIS Exports'!I:I) -> 939 | I24: =_xlfn.XLOOKUP(Existing_PR_GIS[[#This Row],[Station Name]],'GIS Exports'!$B:$B,'GIS Exports'!J:J) -> 13.658182 | J24: =_xlfn.XLOOKUP(Existing_PR_GIS[[#This Row],[Station Name]],'GIS Exports'!$B:$B,'GIS Exports'!K:K) -> 3749.681691 | K24: =_xlfn.XLOOKUP(Existing_PR_GIS[[#This Row],[Station Name]],'GIS Exports'!$B:$B,'GIS Exports'!L:L) -> 6638.781 | L24: =_xlfn.XLOOKUP(Existing_PR_GIS[[#This Row],[Station Name]],'GIS Exports'!$B:$B,'GIS Exports'!M:M) -> 6638.781 | M24: =_xlfn.XLOOKUP(Existing_PR_GIS[[#This Row],[Station Name]],'GIS Exports'!$B:$B,'GIS Exports'!N:N) -> 0.090148 | N24: =_xlfn.XLOOKUP(Existing_PR_GIS[[#This Row],[Station Name]],'GIS Exports'!$B:$B,'GIS Exports'!O:O) -> medium | O24: =_xlfn.XLOOKUP(Existing_PR_GIS[[#This Row],[Station Name]],'GIS Exports'!$B:$B,'GIS Exports'!P:P) -> yes | P24: =_xlfn.XLOOKUP(Existing_PR_GIS[[#This Row],[Station Name]],'GIS Exports'!$B:$B,'GIS Exports'!Q:Q) -> 0.10592 | Q24: =_xlfn.XLOOKUP(Existing_PR_GIS[[#This Row],[Station Name]],'GIS Exports'!$B:$B,'GIS Exports'!R:R) -> medium | R24: =_xlfn.XLOOKUP(Existing_PR_GIS[[#This Row],[Station Name]],'GIS Exports'!$B:$B,'GIS Exports'!S:S) -> 35 | S24: =_xlfn.XLOOKUP(Existing_PR_GIS[[#This Row],[Station Name]],'GIS Exports'!$B:$B,'GIS Exports'!T:T) -> 55.71554 | T24: =_xlfn.XLOOKUP(Existing_PR_GIS[[#This Row],[Station Name]],'GIS Exports'!$B:$B,'GIS Exports'!U:U) -> 78.536013 | U24: =_xlfn.XLOOKUP(Existing_PR_GIS[[#This Row],[Station Name]],'GIS Exports'!$B:$B,'GIS Exports'!V:V) -> 23.076923 | V24: =_xlfn.XLOOKUP(Existing_PR_GIS[[#This Row],[Station Name]],'GIS Exports'!$B:$B,'GIS Exports'!W:W) -> y | W24: =_xlfn.XLOOKUP(Existing_PR_GIS[[#This Row],[Station Name]],'GIS Exports'!$B:$B,'GIS Exports'!X:X) -> 0 | X24: =_xlfn.XLOOKUP(Existing_PR_GIS[[#This Row],[Station Name]],'GIS Exports'!$B:$B,'GIS Exports'!Y:Y) -> 2 Suburban: Transfer Location | Y24: =_xlfn.XLOOKUP(Existing_PR_GIS[[#This Row],[Station Name]],'GIS Exports'!$B:$B,'GIS Exports'!Z:Z) -> 0 | Z24: =_xlfn.XLOOKUP(Existing_PR_GIS[[#This Row],[Station Name]],'GIS Exports'!$B:$B,'GIS Exports'!AA:AA) -> 2 Suburban: Transfer Location | AA24: =_xlfn.XLOOKUP(Existing_PR_GIS[[#This Row],[Station Name]],'GIS Exports'!$B:$B,'GIS Exports'!AB:AB) -> 0 | AB24: 0.5 | AC24: 0 | AD24: 0 | AE24: =IF($P24>=20%,1,IF(AND($P24>=11%,$P24<20%),0.5,0)) -> 0 | AF24: 0.5 | AG24: 1 | AH24: 1 | AI24: 1 | AJ24: =SUM(Existing_PR_GIS[[#This Row],[Weighted Pop. Density]:[Weighted Transit Access Score]]) -> 4
A25: Millcreek Station | B25: =_xlfn.XLOOKUP(Existing_PR_GIS[[#This Row],[Station Name]],'GIS Exports'!$B:$B,'GIS Exports'!C:C) -> 1850 | C25: =_xlfn.XLOOKUP(Existing_PR_GIS[[#This Row],[Station Name]],'GIS Exports'!$B:$B,'GIS Exports'!D:D) -> 2355.48765 | D25: =_xlfn.XLOOKUP(Existing_PR_GIS[[#This Row],[Station Name]],'GIS Exports'!$B:$B,'GIS Exports'!E:E) -> 1 | E25: =_xlfn.XLOOKUP(Existing_PR_GIS[[#This Row],[Station Name]],'GIS Exports'!$B:$B,'GIS Exports'!F:F) -> low | F25: =_xlfn.XLOOKUP(Existing_PR_GIS[[#This Row],[Station Name]],'GIS Exports'!$B:$B,'GIS Exports'!G:G) -> some retail | G25: =_xlfn.XLOOKUP(Existing_PR_GIS[[#This Row],[Station Name]],'GIS Exports'!$B:$B,'GIS Exports'!H:H) -> 106 | H25: =_xlfn.XLOOKUP(Existing_PR_GIS[[#This Row],[Station Name]],'GIS Exports'!$B:$B,'GIS Exports'!I:I) -> 1528 | I25: =_xlfn.XLOOKUP(Existing_PR_GIS[[#This Row],[Station Name]],'GIS Exports'!$B:$B,'GIS Exports'!J:J) -> 14.415094 | J25: =_xlfn.XLOOKUP(Existing_PR_GIS[[#This Row],[Station Name]],'GIS Exports'!$B:$B,'GIS Exports'!K:K) -> 2355.48765 | K25: =_xlfn.XLOOKUP(Existing_PR_GIS[[#This Row],[Station Name]],'GIS Exports'!$B:$B,'GIS Exports'!L:L) -> 12655.22 | L25: =_xlfn.XLOOKUP(Existing_PR_GIS[[#This Row],[Station Name]],'GIS Exports'!$B:$B,'GIS Exports'!M:M) -> 12655.22 | M25: =_xlfn.XLOOKUP(Existing_PR_GIS[[#This Row],[Station Name]],'GIS Exports'!$B:$B,'GIS Exports'!N:N) -> 0.053658 | N25: =_xlfn.XLOOKUP(Existing_PR_GIS[[#This Row],[Station Name]],'GIS Exports'!$B:$B,'GIS Exports'!O:O) -> medium | O25: =_xlfn.XLOOKUP(Existing_PR_GIS[[#This Row],[Station Name]],'GIS Exports'!$B:$B,'GIS Exports'!P:P) -> no | P25: =_xlfn.XLOOKUP(Existing_PR_GIS[[#This Row],[Station Name]],'GIS Exports'!$B:$B,'GIS Exports'!Q:Q) -> 0.033493 | Q25: =_xlfn.XLOOKUP(Existing_PR_GIS[[#This Row],[Station Name]],'GIS Exports'!$B:$B,'GIS Exports'!R:R) -> medium | R25: =_xlfn.XLOOKUP(Existing_PR_GIS[[#This Row],[Station Name]],'GIS Exports'!$B:$B,'GIS Exports'!S:S) -> 35 | S25: =_xlfn.XLOOKUP(Existing_PR_GIS[[#This Row],[Station Name]],'GIS Exports'!$B:$B,'GIS Exports'!T:T) -> 68.286478 | T25: =_xlfn.XLOOKUP(Existing_PR_GIS[[#This Row],[Station Name]],'GIS Exports'!$B:$B,'GIS Exports'!U:U) -> 83.634387 | U25: =_xlfn.XLOOKUP(Existing_PR_GIS[[#This Row],[Station Name]],'GIS Exports'!$B:$B,'GIS Exports'!V:V) -> 30.769231 | V25: =_xlfn.XLOOKUP(Existing_PR_GIS[[#This Row],[Station Name]],'GIS Exports'!$B:$B,'GIS Exports'!W:W) -> y | W25: =_xlfn.XLOOKUP(Existing_PR_GIS[[#This Row],[Station Name]],'GIS Exports'!$B:$B,'GIS Exports'!X:X) -> 0 | X25: =_xlfn.XLOOKUP(Existing_PR_GIS[[#This Row],[Station Name]],'GIS Exports'!$B:$B,'GIS Exports'!Y:Y) -> 2 Suburban: Transfer Location | Y25: =_xlfn.XLOOKUP(Existing_PR_GIS[[#This Row],[Station Name]],'GIS Exports'!$B:$B,'GIS Exports'!Z:Z) -> 0 | Z25: =_xlfn.XLOOKUP(Existing_PR_GIS[[#This Row],[Station Name]],'GIS Exports'!$B:$B,'GIS Exports'!AA:AA) -> 2 Suburban: Transfer Location | AA25: =_xlfn.XLOOKUP(Existing_PR_GIS[[#This Row],[Station Name]],'GIS Exports'!$B:$B,'GIS Exports'!AB:AB) -> 0 | AB25: 0 | AC25: 0.5 | AD25: 0 | AE25: 0 | AF25: 0.5 | AG25: 1 | AH25: 2 | AI25: 1 | AJ25: =SUM(Existing_PR_GIS[[#This Row],[Weighted Pop. Density]:[Weighted Transit Access Score]]) -> 5
A26: Murray Central Station2 | B26: =_xlfn.XLOOKUP(Existing_PR_GIS[[#This Row],[Station Name]],'GIS Exports'!$B:$B,'GIS Exports'!C:C) -> 1567 | C26: =_xlfn.XLOOKUP(Existing_PR_GIS[[#This Row],[Station Name]],'GIS Exports'!$B:$B,'GIS Exports'!D:D) -> 1995.161701 | D26: =_xlfn.XLOOKUP(Existing_PR_GIS[[#This Row],[Station Name]],'GIS Exports'!$B:$B,'GIS Exports'!E:E) -> 0.82 | E26: =_xlfn.XLOOKUP(Existing_PR_GIS[[#This Row],[Station Name]],'GIS Exports'!$B:$B,'GIS Exports'!F:F) -> low | F26: =_xlfn.XLOOKUP(Existing_PR_GIS[[#This Row],[Station Name]],'GIS Exports'!$B:$B,'GIS Exports'!G:G) -> Hospital | G26: =_xlfn.XLOOKUP(Existing_PR_GIS[[#This Row],[Station Name]],'GIS Exports'!$B:$B,'GIS Exports'!H:H) -> 338 | H26: =_xlfn.XLOOKUP(Existing_PR_GIS[[#This Row],[Station Name]],'GIS Exports'!$B:$B,'GIS Exports'!I:I) -> 4039 | I26: =_xlfn.XLOOKUP(Existing_PR_GIS[[#This Row],[Station Name]],'GIS Exports'!$B:$B,'GIS Exports'!J:J) -> 14.57281 | J26: =_xlfn.XLOOKUP(Existing_PR_GIS[[#This Row],[Station Name]],'GIS Exports'!$B:$B,'GIS Exports'!K:K) -> 1995.161701 | K26: =_xlfn.XLOOKUP(Existing_PR_GIS[[#This Row],[Station Name]],'GIS Exports'!$B:$B,'GIS Exports'!L:L) -> 18084.57 | L26: =_xlfn.XLOOKUP(Existing_PR_GIS[[#This Row],[Station Name]],'GIS Exports'!$B:$B,'GIS Exports'!M:M) -> 18084.57 | M26: =_xlfn.XLOOKUP(Existing_PR_GIS[[#This Row],[Station Name]],'GIS Exports'!$B:$B,'GIS Exports'!N:N) -> 0.009353 | N26: =_xlfn.XLOOKUP(Existing_PR_GIS[[#This Row],[Station Name]],'GIS Exports'!$B:$B,'GIS Exports'!O:O) -> low-medium | O26: =_xlfn.XLOOKUP(Existing_PR_GIS[[#This Row],[Station Name]],'GIS Exports'!$B:$B,'GIS Exports'!P:P) -> no | P26: =_xlfn.XLOOKUP(Existing_PR_GIS[[#This Row],[Station Name]],'GIS Exports'!$B:$B,'GIS Exports'!Q:Q) -> 0.049726 | Q26: =_xlfn.XLOOKUP(Existing_PR_GIS[[#This Row],[Station Name]],'GIS Exports'!$B:$B,'GIS Exports'!R:R) -> high-medium | R26: =_xlfn.XLOOKUP(Existing_PR_GIS[[#This Row],[Station Name]],'GIS Exports'!$B:$B,'GIS Exports'!S:S) -> 10 | S26: =_xlfn.XLOOKUP(Existing_PR_GIS[[#This Row],[Station Name]],'GIS Exports'!$B:$B,'GIS Exports'!T:T) -> 62.367835 | T26: =_xlfn.XLOOKUP(Existing_PR_GIS[[#This Row],[Station Name]],'GIS Exports'!$B:$B,'GIS Exports'!U:U) -> 78.989094 | U26: =_xlfn.XLOOKUP(Existing_PR_GIS[[#This Row],[Station Name]],'GIS Exports'!$B:$B,'GIS Exports'!V:V) -> 61.538462 | V26: =_xlfn.XLOOKUP(Existing_PR_GIS[[#This Row],[Station Name]],'GIS Exports'!$B:$B,'GIS Exports'!W:W) -> y | W26: =_xlfn.XLOOKUP(Existing_PR_GIS[[#This Row],[Station Name]],'GIS Exports'!$B:$B,'GIS Exports'!X:X) -> 0 | X26: =_xlfn.XLOOKUP(Existing_PR_GIS[[#This Row],[Station Name]],'GIS Exports'!$B:$B,'GIS Exports'!Y:Y) -> 2 Suburban: Transfer Location | Y26: =_xlfn.XLOOKUP(Existing_PR_GIS[[#This Row],[Station Name]],'GIS Exports'!$B:$B,'GIS Exports'!Z:Z) -> 0 | Z26: =_xlfn.XLOOKUP(Existing_PR_GIS[[#This Row],[Station Name]],'GIS Exports'!$B:$B,'GIS Exports'!AA:AA) -> 2 Suburban: Transfer Location | AA26: =_xlfn.XLOOKUP(Existing_PR_GIS[[#This Row],[Station Name]],'GIS Exports'!$B:$B,'GIS Exports'!AB:AB) -> 0 | AB26: 0 | AC26: 0.5 | AD26: 0 | AE26: 0 | AF26: 0 | AG26: 1 | AH26: 1 | AI26: 2 | AJ26: =SUM(Existing_PR_GIS[[#This Row],[Weighted Pop. Density]:[Weighted Transit Access Score]]) -> 4.5
A27: Murray North Station | B27: =_xlfn.XLOOKUP(Existing_PR_GIS[[#This Row],[Station Name]],'GIS Exports'!$B:$B,'GIS Exports'!C:C) -> 3828 | C27: =_xlfn.XLOOKUP(Existing_PR_GIS[[#This Row],[Station Name]],'GIS Exports'!$B:$B,'GIS Exports'!D:D) -> 4873.94958 | D27: =_xlfn.XLOOKUP(Existing_PR_GIS[[#This Row],[Station Name]],'GIS Exports'!$B:$B,'GIS Exports'!E:E) -> 0.56 | E27: =_xlfn.XLOOKUP(Existing_PR_GIS[[#This Row],[Station Name]],'GIS Exports'!$B:$B,'GIS Exports'!F:F) -> mid | F27: =_xlfn.XLOOKUP(Existing_PR_GIS[[#This Row],[Station Name]],'GIS Exports'!$B:$B,'GIS Exports'!G:G) -> Apartments, retail | G27: =_xlfn.XLOOKUP(Existing_PR_GIS[[#This Row],[Station Name]],'GIS Exports'!$B:$B,'GIS Exports'!H:H) -> 245 | H27: =_xlfn.XLOOKUP(Existing_PR_GIS[[#This Row],[Station Name]],'GIS Exports'!$B:$B,'GIS Exports'!I:I) -> 479 | I27: =_xlfn.XLOOKUP(Existing_PR_GIS[[#This Row],[Station Name]],'GIS Exports'!$B:$B,'GIS Exports'!J:J) -> 3.491254 | J27: =_xlfn.XLOOKUP(Existing_PR_GIS[[#This Row],[Station Name]],'GIS Exports'!$B:$B,'GIS Exports'!K:K) -> 4873.94958 | K27: =_xlfn.XLOOKUP(Existing_PR_GIS[[#This Row],[Station Name]],'GIS Exports'!$B:$B,'GIS Exports'!L:L) -> 8087.826 | L27: =_xlfn.XLOOKUP(Existing_PR_GIS[[#This Row],[Station Name]],'GIS Exports'!$B:$B,'GIS Exports'!M:M) -> 8087.826 | M27: =_xlfn.XLOOKUP(Existing_PR_GIS[[#This Row],[Station Name]],'GIS Exports'!$B:$B,'GIS Exports'!N:N) -> 0.067914 | N27: =_xlfn.XLOOKUP(Existing_PR_GIS[[#This Row],[Station Name]],'GIS Exports'!$B:$B,'GIS Exports'!O:O) -> medium | O27: =_xlfn.XLOOKUP(Existing_PR_GIS[[#This Row],[Station Name]],'GIS Exports'!$B:$B,'GIS Exports'!P:P) -> yes | P27: =_xlfn.XLOOKUP(Existing_PR_GIS[[#This Row],[Station Name]],'GIS Exports'!$B:$B,'GIS Exports'!Q:Q) -> 0.162363 | Q27: =_xlfn.XLOOKUP(Existing_PR_GIS[[#This Row],[Station Name]],'GIS Exports'!$B:$B,'GIS Exports'!R:R) -> low | R27: =_xlfn.XLOOKUP(Existing_PR_GIS[[#This Row],[Station Name]],'GIS Exports'!$B:$B,'GIS Exports'!S:S) -> 30 | S27: =_xlfn.XLOOKUP(Existing_PR_GIS[[#This Row],[Station Name]],'GIS Exports'!$B:$B,'GIS Exports'!T:T) -> 40.442072 | T27: =_xlfn.XLOOKUP(Existing_PR_GIS[[#This Row],[Station Name]],'GIS Exports'!$B:$B,'GIS Exports'!U:U) -> 74.443235 | U27: =_xlfn.XLOOKUP(Existing_PR_GIS[[#This Row],[Station Name]],'GIS Exports'!$B:$B,'GIS Exports'!V:V) -> 30.769231 | V27: =_xlfn.XLOOKUP(Existing_PR_GIS[[#This Row],[Station Name]],'GIS Exports'!$B:$B,'GIS Exports'!W:W) -> y | W27: =_xlfn.XLOOKUP(Existing_PR_GIS[[#This Row],[Station Name]],'GIS Exports'!$B:$B,'GIS Exports'!X:X) -> 0 | X27: =_xlfn.XLOOKUP(Existing_PR_GIS[[#This Row],[Station Name]],'GIS Exports'!$B:$B,'GIS Exports'!Y:Y) -> 1 Suburban: Mid-corridor | Y27: =_xlfn.XLOOKUP(Existing_PR_GIS[[#This Row],[Station Name]],'GIS Exports'!$B:$B,'GIS Exports'!Z:Z) -> 0 | Z27: =_xlfn.XLOOKUP(Existing_PR_GIS[[#This Row],[Station Name]],'GIS Exports'!$B:$B,'GIS Exports'!AA:AA) -> 2 Suburban: Transfer Location | AA27: =_xlfn.XLOOKUP(Existing_PR_GIS[[#This Row],[Station Name]],'GIS Exports'!$B:$B,'GIS Exports'!AB:AB) -> 0 | AB27: 0.5 | AC27: 0.5 | AD27: 0 | AE27: 0.5 | AF27: 0.5 | AG27: 1 | AH27: 1 | AI27: 1 | AJ27: =SUM(Existing_PR_GIS[[#This Row],[Weighted Pop. Density]:[Weighted Transit Access Score]]) -> 5
A28: Ogden Station and Transit Center | B28: =_xlfn.XLOOKUP(Existing_PR_GIS[[#This Row],[Station Name]],'GIS Exports'!$B:$B,'GIS Exports'!C:C) -> 1268 | C28: =_xlfn.XLOOKUP(Existing_PR_GIS[[#This Row],[Station Name]],'GIS Exports'!$B:$B,'GIS Exports'!D:D) -> 1614.463967 | D28: =_xlfn.XLOOKUP(Existing_PR_GIS[[#This Row],[Station Name]],'GIS Exports'!$B:$B,'GIS Exports'!E:E) -> 0.56 | E28: =_xlfn.XLOOKUP(Existing_PR_GIS[[#This Row],[Station Name]],'GIS Exports'!$B:$B,'GIS Exports'!F:F) -> mid | F28: =_xlfn.XLOOKUP(Existing_PR_GIS[[#This Row],[Station Name]],'GIS Exports'!$B:$B,'GIS Exports'!G:G) -> Some offices | G28: =_xlfn.XLOOKUP(Existing_PR_GIS[[#This Row],[Station Name]],'GIS Exports'!$B:$B,'GIS Exports'!H:H) -> 596 | H28: =_xlfn.XLOOKUP(Existing_PR_GIS[[#This Row],[Station Name]],'GIS Exports'!$B:$B,'GIS Exports'!I:I) -> 1813 | I28: =_xlfn.XLOOKUP(Existing_PR_GIS[[#This Row],[Station Name]],'GIS Exports'!$B:$B,'GIS Exports'!J:J) -> 5.432047 | J28: =_xlfn.XLOOKUP(Existing_PR_GIS[[#This Row],[Station Name]],'GIS Exports'!$B:$B,'GIS Exports'!K:K) -> 1614.463967 | K28: =_xlfn.XLOOKUP(Existing_PR_GIS[[#This Row],[Station Name]],'GIS Exports'!$B:$B,'GIS Exports'!L:L) -> 11136.3 | L28: =_xlfn.XLOOKUP(Existing_PR_GIS[[#This Row],[Station Name]],'GIS Exports'!$B:$B,'GIS Exports'!M:M) -> 11136.3 | M28: =_xlfn.XLOOKUP(Existing_PR_GIS[[#This Row],[Station Name]],'GIS Exports'!$B:$B,'GIS Exports'!N:N) -> 0.096776 | N28: =_xlfn.XLOOKUP(Existing_PR_GIS[[#This Row],[Station Name]],'GIS Exports'!$B:$B,'GIS Exports'!O:O) -> medium-high | O28: =_xlfn.XLOOKUP(Existing_PR_GIS[[#This Row],[Station Name]],'GIS Exports'!$B:$B,'GIS Exports'!P:P) -> no | P28: =_xlfn.XLOOKUP(Existing_PR_GIS[[#This Row],[Station Name]],'GIS Exports'!$B:$B,'GIS Exports'!Q:Q) -> 0.071271 | Q28: =_xlfn.XLOOKUP(Existing_PR_GIS[[#This Row],[Station Name]],'GIS Exports'!$B:$B,'GIS Exports'!R:R) -> low | R28: =_xlfn.XLOOKUP(Existing_PR_GIS[[#This Row],[Station Name]],'GIS Exports'!$B:$B,'GIS Exports'!S:S) -> 40 | S28: =_xlfn.XLOOKUP(Existing_PR_GIS[[#This Row],[Station Name]],'GIS Exports'!$B:$B,'GIS Exports'!T:T) -> 54.800457 | T28: =_xlfn.XLOOKUP(Existing_PR_GIS[[#This Row],[Station Name]],'GIS Exports'!$B:$B,'GIS Exports'!U:U) -> 68.657165 | U28: =_xlfn.XLOOKUP(Existing_PR_GIS[[#This Row],[Station Name]],'GIS Exports'!$B:$B,'GIS Exports'!V:V) -> 100 | V28: =_xlfn.XLOOKUP(Existing_PR_GIS[[#This Row],[Station Name]],'GIS Exports'!$B:$B,'GIS Exports'!W:W) -> y | W28: =_xlfn.XLOOKUP(Existing_PR_GIS[[#This Row],[Station Name]],'GIS Exports'!$B:$B,'GIS Exports'!X:X) -> 0 | X28: =_xlfn.XLOOKUP(Existing_PR_GIS[[#This Row],[Station Name]],'GIS Exports'!$B:$B,'GIS Exports'!Y:Y) -> 4 Emerging Urban | Y28: =_xlfn.XLOOKUP(Existing_PR_GIS[[#This Row],[Station Name]],'GIS Exports'!$B:$B,'GIS Exports'!Z:Z) -> 0 | Z28: =_xlfn.XLOOKUP(Existing_PR_GIS[[#This Row],[Station Name]],'GIS Exports'!$B:$B,'GIS Exports'!AA:AA) -> 4 Emerging Urban | AA28: =_xlfn.XLOOKUP(Existing_PR_GIS[[#This Row],[Station Name]],'GIS Exports'!$B:$B,'GIS Exports'!AB:AB) -> Urban downtown few blocks from station | AB28: 0 | AC28: 0.5 | AD28: 0 | AE28: 0 | AF28: 0.5 | AG28: 1 | AH28: 1 | AI28: 2 | AJ28: =SUM(Existing_PR_GIS[[#This Row],[Weighted Pop. Density]:[Weighted Transit Access Score]]) -> 5
A29: Orem Central Station | B29: =_xlfn.XLOOKUP(Existing_PR_GIS[[#This Row],[Station Name]],'GIS Exports'!$B:$B,'GIS Exports'!C:C) -> 3185 | C29: =_xlfn.XLOOKUP(Existing_PR_GIS[[#This Row],[Station Name]],'GIS Exports'!$B:$B,'GIS Exports'!D:D) -> 4055.258467 | D29: =_xlfn.XLOOKUP(Existing_PR_GIS[[#This Row],[Station Name]],'GIS Exports'!$B:$B,'GIS Exports'!E:E) -> 0.77 | E29: =_xlfn.XLOOKUP(Existing_PR_GIS[[#This Row],[Station Name]],'GIS Exports'!$B:$B,'GIS Exports'!F:F) -> mid high | F29: =_xlfn.XLOOKUP(Existing_PR_GIS[[#This Row],[Station Name]],'GIS Exports'!$B:$B,'GIS Exports'!G:G) -> Some apartments, university | G29: =_xlfn.XLOOKUP(Existing_PR_GIS[[#This Row],[Station Name]],'GIS Exports'!$B:$B,'GIS Exports'!H:H) -> 498 | H29: =_xlfn.XLOOKUP(Existing_PR_GIS[[#This Row],[Station Name]],'GIS Exports'!$B:$B,'GIS Exports'!I:I) -> 2054 | I29: =_xlfn.XLOOKUP(Existing_PR_GIS[[#This Row],[Station Name]],'GIS Exports'!$B:$B,'GIS Exports'!J:J) -> 5.356491 | J29: =_xlfn.XLOOKUP(Existing_PR_GIS[[#This Row],[Station Name]],'GIS Exports'!$B:$B,'GIS Exports'!K:K) -> 4055.258467 | K29: =_xlfn.XLOOKUP(Existing_PR_GIS[[#This Row],[Station Name]],'GIS Exports'!$B:$B,'GIS Exports'!L:L) -> 7502.544 | L29: =_xlfn.XLOOKUP(Existing_PR_GIS[[#This Row],[Station Name]],'GIS Exports'!$B:$B,'GIS Exports'!M:M) -> 7502.544 | M29: =_xlfn.XLOOKUP(Existing_PR_GIS[[#This Row],[Station Name]],'GIS Exports'!$B:$B,'GIS Exports'!N:N) -> 0.13162 | N29: =_xlfn.XLOOKUP(Existing_PR_GIS[[#This Row],[Station Name]],'GIS Exports'!$B:$B,'GIS Exports'!O:O) -> medium-high | O29: =_xlfn.XLOOKUP(Existing_PR_GIS[[#This Row],[Station Name]],'GIS Exports'!$B:$B,'GIS Exports'!P:P) -> yes | P29: =_xlfn.XLOOKUP(Existing_PR_GIS[[#This Row],[Station Name]],'GIS Exports'!$B:$B,'GIS Exports'!Q:Q) -> 0.001157 | Q29: =_xlfn.XLOOKUP(Existing_PR_GIS[[#This Row],[Station Name]],'GIS Exports'!$B:$B,'GIS Exports'!R:R) -> high | R29: =_xlfn.XLOOKUP(Existing_PR_GIS[[#This Row],[Station Name]],'GIS Exports'!$B:$B,'GIS Exports'!S:S) -> 20 | S29: =_xlfn.XLOOKUP(Existing_PR_GIS[[#This Row],[Station Name]],'GIS Exports'!$B:$B,'GIS Exports'!T:T) -> 62.588013 | T29: =_xlfn.XLOOKUP(Existing_PR_GIS[[#This Row],[Station Name]],'GIS Exports'!$B:$B,'GIS Exports'!U:U) -> 44.017191 | U29: =_xlfn.XLOOKUP(Existing_PR_GIS[[#This Row],[Station Name]],'GIS Exports'!$B:$B,'GIS Exports'!V:V) -> 46.153846 | V29: =_xlfn.XLOOKUP(Existing_PR_GIS[[#This Row],[Station Name]],'GIS Exports'!$B:$B,'GIS Exports'!W:W) -> y | W29: =_xlfn.XLOOKUP(Existing_PR_GIS[[#This Row],[Station Name]],'GIS Exports'!$B:$B,'GIS Exports'!X:X) -> 0 | X29: =_xlfn.XLOOKUP(Existing_PR_GIS[[#This Row],[Station Name]],'GIS Exports'!$B:$B,'GIS Exports'!Y:Y) -> 2 Suburban: Transfer Location | Y29: =_xlfn.XLOOKUP(Existing_PR_GIS[[#This Row],[Station Name]],'GIS Exports'!$B:$B,'GIS Exports'!Z:Z) -> 0 | Z29: =_xlfn.XLOOKUP(Existing_PR_GIS[[#This Row],[Station Name]],'GIS Exports'!$B:$B,'GIS Exports'!AA:AA) -> 5 TOD | AA29: =_xlfn.XLOOKUP(Existing_PR_GIS[[#This Row],[Station Name]],'GIS Exports'!$B:$B,'GIS Exports'!AB:AB) -> 0 | AB29: 0.5 | AC29: 0.5 | AD29: 0.5 | AE29: 0 | AF29: =IF($R29>=41,1,IF(AND($R29<41,$R29>=20),0.5,0)) -> 0.5 | AG29: 1 | AH29: 1 | AI29: 1 | AJ29: =SUM(Existing_PR_GIS[[#This Row],[Weighted Pop. Density]:[Weighted Transit Access Score]]) -> 5
A30: Provo Central Station | B30: =_xlfn.XLOOKUP(Existing_PR_GIS[[#This Row],[Station Name]],'GIS Exports'!$B:$B,'GIS Exports'!C:C) -> 4008 | C30: =_xlfn.XLOOKUP(Existing_PR_GIS[[#This Row],[Station Name]],'GIS Exports'!$B:$B,'GIS Exports'!D:D) -> 5103.132162 | D30: =_xlfn.XLOOKUP(Existing_PR_GIS[[#This Row],[Station Name]],'GIS Exports'!$B:$B,'GIS Exports'!E:E) -> 0.63 | E30: =_xlfn.XLOOKUP(Existing_PR_GIS[[#This Row],[Station Name]],'GIS Exports'!$B:$B,'GIS Exports'!F:F) -> mid | F30: =_xlfn.XLOOKUP(Existing_PR_GIS[[#This Row],[Station Name]],'GIS Exports'!$B:$B,'GIS Exports'!G:G) -> Some mix | G30: =_xlfn.XLOOKUP(Existing_PR_GIS[[#This Row],[Station Name]],'GIS Exports'!$B:$B,'GIS Exports'!H:H) -> 791 | H30: =_xlfn.XLOOKUP(Existing_PR_GIS[[#This Row],[Station Name]],'GIS Exports'!$B:$B,'GIS Exports'!I:I) -> 3434 | I30: =_xlfn.XLOOKUP(Existing_PR_GIS[[#This Row],[Station Name]],'GIS Exports'!$B:$B,'GIS Exports'!J:J) -> 6.891016 | J30: =_xlfn.XLOOKUP(Existing_PR_GIS[[#This Row],[Station Name]],'GIS Exports'!$B:$B,'GIS Exports'!K:K) -> 5103.132162 | K30: =_xlfn.XLOOKUP(Existing_PR_GIS[[#This Row],[Station Name]],'GIS Exports'!$B:$B,'GIS Exports'!L:L) -> 16886.76 | L30: =_xlfn.XLOOKUP(Existing_PR_GIS[[#This Row],[Station Name]],'GIS Exports'!$B:$B,'GIS Exports'!M:M) -> 16886.76 | M30: =_xlfn.XLOOKUP(Existing_PR_GIS[[#This Row],[Station Name]],'GIS Exports'!$B:$B,'GIS Exports'!N:N) -> 0.062232 | N30: =_xlfn.XLOOKUP(Existing_PR_GIS[[#This Row],[Station Name]],'GIS Exports'!$B:$B,'GIS Exports'!O:O) -> medium-high | O30: =_xlfn.XLOOKUP(Existing_PR_GIS[[#This Row],[Station Name]],'GIS Exports'!$B:$B,'GIS Exports'!P:P) -> no | P30: =_xlfn.XLOOKUP(Existing_PR_GIS[[#This Row],[Station Name]],'GIS Exports'!$B:$B,'GIS Exports'!Q:Q) -> 0.031111 | Q30: =_xlfn.XLOOKUP(Existing_PR_GIS[[#This Row],[Station Name]],'GIS Exports'!$B:$B,'GIS Exports'!R:R) -> high-medium | R30: =_xlfn.XLOOKUP(Existing_PR_GIS[[#This Row],[Station Name]],'GIS Exports'!$B:$B,'GIS Exports'!S:S) -> 30 | S30: =_xlfn.XLOOKUP(Existing_PR_GIS[[#This Row],[Station Name]],'GIS Exports'!$B:$B,'GIS Exports'!T:T) -> 79.102141 | T30: =_xlfn.XLOOKUP(Existing_PR_GIS[[#This Row],[Station Name]],'GIS Exports'!$B:$B,'GIS Exports'!U:U) -> 68.319263 | U30: =_xlfn.XLOOKUP(Existing_PR_GIS[[#This Row],[Station Name]],'GIS Exports'!$B:$B,'GIS Exports'!V:V) -> 61.538462 | V30: =_xlfn.XLOOKUP(Existing_PR_GIS[[#This Row],[Station Name]],'GIS Exports'!$B:$B,'GIS Exports'!W:W) -> y | W30: =_xlfn.XLOOKUP(Existing_PR_GIS[[#This Row],[Station Name]],'GIS Exports'!$B:$B,'GIS Exports'!X:X) -> 0 | X30: =_xlfn.XLOOKUP(Existing_PR_GIS[[#This Row],[Station Name]],'GIS Exports'!$B:$B,'GIS Exports'!Y:Y) -> 4 Emerging Urban | Y30: =_xlfn.XLOOKUP(Existing_PR_GIS[[#This Row],[Station Name]],'GIS Exports'!$B:$B,'GIS Exports'!Z:Z) -> 0 | Z30: =_xlfn.XLOOKUP(Existing_PR_GIS[[#This Row],[Station Name]],'GIS Exports'!$B:$B,'GIS Exports'!AA:AA) -> 4 Emerging Urban | AA30: =_xlfn.XLOOKUP(Existing_PR_GIS[[#This Row],[Station Name]],'GIS Exports'!$B:$B,'GIS Exports'!AB:AB) -> Urban downtown many blocks from station | AB30: 1 | AC30: 0.5 | AD30: 0 | AE30: 0 | AF30: 0.5 | AG30: 1 | AH30: 1 | AI30: 2 | AJ30: =SUM(Existing_PR_GIS[[#This Row],[Weighted Pop. Density]:[Weighted Transit Access Score]]) -> 6
A31: Roy Station | B31: =_xlfn.XLOOKUP(Existing_PR_GIS[[#This Row],[Station Name]],'GIS Exports'!$B:$B,'GIS Exports'!C:C) -> 2665 | C31: =_xlfn.XLOOKUP(Existing_PR_GIS[[#This Row],[Station Name]],'GIS Exports'!$B:$B,'GIS Exports'!D:D) -> 3393.175452 | D31: =_xlfn.XLOOKUP(Existing_PR_GIS[[#This Row],[Station Name]],'GIS Exports'!$B:$B,'GIS Exports'!E:E) -> 0.47 | E31: =_xlfn.XLOOKUP(Existing_PR_GIS[[#This Row],[Station Name]],'GIS Exports'!$B:$B,'GIS Exports'!F:F) -> very low | F31: =_xlfn.XLOOKUP(Existing_PR_GIS[[#This Row],[Station Name]],'GIS Exports'!$B:$B,'GIS Exports'!G:G) -> Suburban single family houses | G31: =_xlfn.XLOOKUP(Existing_PR_GIS[[#This Row],[Station Name]],'GIS Exports'!$B:$B,'GIS Exports'!H:H) -> 512 | H31: =_xlfn.XLOOKUP(Existing_PR_GIS[[#This Row],[Station Name]],'GIS Exports'!$B:$B,'GIS Exports'!I:I) -> 411 | I31: =_xlfn.XLOOKUP(Existing_PR_GIS[[#This Row],[Station Name]],'GIS Exports'!$B:$B,'GIS Exports'!J:J) -> 1.707945 | J31: =_xlfn.XLOOKUP(Existing_PR_GIS[[#This Row],[Station Name]],'GIS Exports'!$B:$B,'GIS Exports'!K:K) -> 3393.175452 | K31: =_xlfn.XLOOKUP(Existing_PR_GIS[[#This Row],[Station Name]],'GIS Exports'!$B:$B,'GIS Exports'!L:L) -> 1345.214 | L31: =_xlfn.XLOOKUP(Existing_PR_GIS[[#This Row],[Station Name]],'GIS Exports'!$B:$B,'GIS Exports'!M:M) -> 1345.214 | M31: =_xlfn.XLOOKUP(Existing_PR_GIS[[#This Row],[Station Name]],'GIS Exports'!$B:$B,'GIS Exports'!N:N) -> 0.012467 | N31: =_xlfn.XLOOKUP(Existing_PR_GIS[[#This Row],[Station Name]],'GIS Exports'!$B:$B,'GIS Exports'!O:O) -> low | O31: =_xlfn.XLOOKUP(Existing_PR_GIS[[#This Row],[Station Name]],'GIS Exports'!$B:$B,'GIS Exports'!P:P) -> no | P31: =_xlfn.XLOOKUP(Existing_PR_GIS[[#This Row],[Station Name]],'GIS Exports'!$B:$B,'GIS Exports'!Q:Q) -> 4e-05 | Q31: =_xlfn.XLOOKUP(Existing_PR_GIS[[#This Row],[Station Name]],'GIS Exports'!$B:$B,'GIS Exports'!R:R) -> high | R31: =_xlfn.XLOOKUP(Existing_PR_GIS[[#This Row],[Station Name]],'GIS Exports'!$B:$B,'GIS Exports'!S:S) -> 5 | S31: =_xlfn.XLOOKUP(Existing_PR_GIS[[#This Row],[Station Name]],'GIS Exports'!$B:$B,'GIS Exports'!T:T) -> 42.210417 | T31: =_xlfn.XLOOKUP(Existing_PR_GIS[[#This Row],[Station Name]],'GIS Exports'!$B:$B,'GIS Exports'!U:U) -> 46.742376 | U31: =_xlfn.XLOOKUP(Existing_PR_GIS[[#This Row],[Station Name]],'GIS Exports'!$B:$B,'GIS Exports'!V:V) -> 23.076923 | V31: =_xlfn.XLOOKUP(Existing_PR_GIS[[#This Row],[Station Name]],'GIS Exports'!$B:$B,'GIS Exports'!W:W) -> y | W31: =_xlfn.XLOOKUP(Existing_PR_GIS[[#This Row],[Station Name]],'GIS Exports'!$B:$B,'GIS Exports'!X:X) -> 0 | X31: =_xlfn.XLOOKUP(Existing_PR_GIS[[#This Row],[Station Name]],'GIS Exports'!$B:$B,'GIS Exports'!Y:Y) -> 1 Suburban: Mid-corridor | Y31: =_xlfn.XLOOKUP(Existing_PR_GIS[[#This Row],[Station Name]],'GIS Exports'!$B:$B,'GIS Exports'!Z:Z) -> 0 | Z31: =_xlfn.XLOOKUP(Existing_PR_GIS[[#This Row],[Station Name]],'GIS Exports'!$B:$B,'GIS Exports'!AA:AA) -> 1 Suburban: Mid-corridor | AA31: =_xlfn.XLOOKUP(Existing_PR_GIS[[#This Row],[Station Name]],'GIS Exports'!$B:$B,'GIS Exports'!AB:AB) -> 0 | AB31: 0.5 | AC31: 0 | AD31: 0 | AE31: 0 | AF31: 0 | AG31: 1 | AH31: 1 | AI31: 1 | AJ31: =SUM(Existing_PR_GIS[[#This Row],[Weighted Pop. Density]:[Weighted Transit Access Score]]) -> 3.5
A32: Salt Lake Central Station2 | B32: =_xlfn.XLOOKUP(Existing_PR_GIS[[#This Row],[Station Name]],'GIS Exports'!$B:$B,'GIS Exports'!C:C) -> 2695 | C32: =_xlfn.XLOOKUP(Existing_PR_GIS[[#This Row],[Station Name]],'GIS Exports'!$B:$B,'GIS Exports'!D:D) -> 3431.372549 | D32: =_xlfn.XLOOKUP(Existing_PR_GIS[[#This Row],[Station Name]],'GIS Exports'!$B:$B,'GIS Exports'!E:E) -> 1 | E32: =_xlfn.XLOOKUP(Existing_PR_GIS[[#This Row],[Station Name]],'GIS Exports'!$B:$B,'GIS Exports'!F:F) -> high | F32: =_xlfn.XLOOKUP(Existing_PR_GIS[[#This Row],[Station Name]],'GIS Exports'!$B:$B,'GIS Exports'!G:G) -> close-est to downtown | G32: =_xlfn.XLOOKUP(Existing_PR_GIS[[#This Row],[Station Name]],'GIS Exports'!$B:$B,'GIS Exports'!H:H) -> 23 | H32: =_xlfn.XLOOKUP(Existing_PR_GIS[[#This Row],[Station Name]],'GIS Exports'!$B:$B,'GIS Exports'!I:I) -> 2490 | I32: =_xlfn.XLOOKUP(Existing_PR_GIS[[#This Row],[Station Name]],'GIS Exports'!$B:$B,'GIS Exports'!J:J) -> 108.26087 | J32: =_xlfn.XLOOKUP(Existing_PR_GIS[[#This Row],[Station Name]],'GIS Exports'!$B:$B,'GIS Exports'!K:K) -> 3431.372549 | K32: =_xlfn.XLOOKUP(Existing_PR_GIS[[#This Row],[Station Name]],'GIS Exports'!$B:$B,'GIS Exports'!L:L) -> 20092.29 | L32: =_xlfn.XLOOKUP(Existing_PR_GIS[[#This Row],[Station Name]],'GIS Exports'!$B:$B,'GIS Exports'!M:M) -> 20092.29 | M32: =_xlfn.XLOOKUP(Existing_PR_GIS[[#This Row],[Station Name]],'GIS Exports'!$B:$B,'GIS Exports'!N:N) -> 0.077188 | N32: =_xlfn.XLOOKUP(Existing_PR_GIS[[#This Row],[Station Name]],'GIS Exports'!$B:$B,'GIS Exports'!O:O) -> medium-high | O32: =_xlfn.XLOOKUP(Existing_PR_GIS[[#This Row],[Station Name]],'GIS Exports'!$B:$B,'GIS Exports'!P:P) -> no | P32: =_xlfn.XLOOKUP(Existing_PR_GIS[[#This Row],[Station Name]],'GIS Exports'!$B:$B,'GIS Exports'!Q:Q) -> 0.07193 | Q32: =_xlfn.XLOOKUP(Existing_PR_GIS[[#This Row],[Station Name]],'GIS Exports'!$B:$B,'GIS Exports'!R:R) -> low | R32: =_xlfn.XLOOKUP(Existing_PR_GIS[[#This Row],[Station Name]],'GIS Exports'!$B:$B,'GIS Exports'!S:S) -> 20 | S32: =_xlfn.XLOOKUP(Existing_PR_GIS[[#This Row],[Station Name]],'GIS Exports'!$B:$B,'GIS Exports'!T:T) -> 71.924974 | T32: =_xlfn.XLOOKUP(Existing_PR_GIS[[#This Row],[Station Name]],'GIS Exports'!$B:$B,'GIS Exports'!U:U) -> 95.015214 | U32: =_xlfn.XLOOKUP(Existing_PR_GIS[[#This Row],[Station Name]],'GIS Exports'!$B:$B,'GIS Exports'!V:V) -> 61.538462 | V32: =_xlfn.XLOOKUP(Existing_PR_GIS[[#This Row],[Station Name]],'GIS Exports'!$B:$B,'GIS Exports'!W:W) -> y | W32: =_xlfn.XLOOKUP(Existing_PR_GIS[[#This Row],[Station Name]],'GIS Exports'!$B:$B,'GIS Exports'!X:X) -> 0 | X32: =_xlfn.XLOOKUP(Existing_PR_GIS[[#This Row],[Station Name]],'GIS Exports'!$B:$B,'GIS Exports'!Y:Y) -> 6 Urban | Y32: =_xlfn.XLOOKUP(Existing_PR_GIS[[#This Row],[Station Name]],'GIS Exports'!$B:$B,'GIS Exports'!Z:Z) -> 0 | Z32: =_xlfn.XLOOKUP(Existing_PR_GIS[[#This Row],[Station Name]],'GIS Exports'!$B:$B,'GIS Exports'!AA:AA) -> 6 Urban | AA32: =_xlfn.XLOOKUP(Existing_PR_GIS[[#This Row],[Station Name]],'GIS Exports'!$B:$B,'GIS Exports'!AB:AB) -> 0 | AB32: 0.5 | AC32: 0.5 | AD32: 0 | AE32: 0 | AF32: 0.5 | AG32: 1 | AH32: 2 | AI32: 2 | AJ32: =SUM(Existing_PR_GIS[[#This Row],[Weighted Pop. Density]:[Weighted Transit Access Score]]) -> 6.5
A33: Sandy Civic Center Station | B33: =_xlfn.XLOOKUP(Existing_PR_GIS[[#This Row],[Station Name]],'GIS Exports'!$B:$B,'GIS Exports'!C:C) -> 2762 | C33: =_xlfn.XLOOKUP(Existing_PR_GIS[[#This Row],[Station Name]],'GIS Exports'!$B:$B,'GIS Exports'!D:D) -> 3516.679399 | D33: =_xlfn.XLOOKUP(Existing_PR_GIS[[#This Row],[Station Name]],'GIS Exports'!$B:$B,'GIS Exports'!E:E) -> 0.08 | E33: =_xlfn.XLOOKUP(Existing_PR_GIS[[#This Row],[Station Name]],'GIS Exports'!$B:$B,'GIS Exports'!F:F) -> high potential | F33: =_xlfn.XLOOKUP(Existing_PR_GIS[[#This Row],[Station Name]],'GIS Exports'!$B:$B,'GIS Exports'!G:G) -> Apartments | G33: =_xlfn.XLOOKUP(Existing_PR_GIS[[#This Row],[Station Name]],'GIS Exports'!$B:$B,'GIS Exports'!H:H) -> 1192 | H33: =_xlfn.XLOOKUP(Existing_PR_GIS[[#This Row],[Station Name]],'GIS Exports'!$B:$B,'GIS Exports'!I:I) -> 325 | I33: =_xlfn.XLOOKUP(Existing_PR_GIS[[#This Row],[Station Name]],'GIS Exports'!$B:$B,'GIS Exports'!J:J) -> 3.408138 | J33: =_xlfn.XLOOKUP(Existing_PR_GIS[[#This Row],[Station Name]],'GIS Exports'!$B:$B,'GIS Exports'!K:K) -> 3516.679399 | K33: =_xlfn.XLOOKUP(Existing_PR_GIS[[#This Row],[Station Name]],'GIS Exports'!$B:$B,'GIS Exports'!L:L) -> 6670.794 | L33: =_xlfn.XLOOKUP(Existing_PR_GIS[[#This Row],[Station Name]],'GIS Exports'!$B:$B,'GIS Exports'!M:M) -> 6670.794 | M33: =_xlfn.XLOOKUP(Existing_PR_GIS[[#This Row],[Station Name]],'GIS Exports'!$B:$B,'GIS Exports'!N:N) -> 0.016202 | N33: =_xlfn.XLOOKUP(Existing_PR_GIS[[#This Row],[Station Name]],'GIS Exports'!$B:$B,'GIS Exports'!O:O) -> low | O33: =_xlfn.XLOOKUP(Existing_PR_GIS[[#This Row],[Station Name]],'GIS Exports'!$B:$B,'GIS Exports'!P:P) -> no | P33: =_xlfn.XLOOKUP(Existing_PR_GIS[[#This Row],[Station Name]],'GIS Exports'!$B:$B,'GIS Exports'!Q:Q) -> 0.005982 | Q33: =_xlfn.XLOOKUP(Existing_PR_GIS[[#This Row],[Station Name]],'GIS Exports'!$B:$B,'GIS Exports'!R:R) -> high | R33: =_xlfn.XLOOKUP(Existing_PR_GIS[[#This Row],[Station Name]],'GIS Exports'!$B:$B,'GIS Exports'!S:S) -> 0 | S33: =_xlfn.XLOOKUP(Existing_PR_GIS[[#This Row],[Station Name]],'GIS Exports'!$B:$B,'GIS Exports'!T:T) -> 70.887237 | T33: =_xlfn.XLOOKUP(Existing_PR_GIS[[#This Row],[Station Name]],'GIS Exports'!$B:$B,'GIS Exports'!U:U) -> 89.599054 | U33: =_xlfn.XLOOKUP(Existing_PR_GIS[[#This Row],[Station Name]],'GIS Exports'!$B:$B,'GIS Exports'!V:V) -> 30.769231 | V33: =_xlfn.XLOOKUP(Existing_PR_GIS[[#This Row],[Station Name]],'GIS Exports'!$B:$B,'GIS Exports'!W:W) -> y | W33: =_xlfn.XLOOKUP(Existing_PR_GIS[[#This Row],[Station Name]],'GIS Exports'!$B:$B,'GIS Exports'!X:X) -> 0 | X33: =_xlfn.XLOOKUP(Existing_PR_GIS[[#This Row],[Station Name]],'GIS Exports'!$B:$B,'GIS Exports'!Y:Y) -> 1 Suburban: Mid-corridor | Y33: =_xlfn.XLOOKUP(Existing_PR_GIS[[#This Row],[Station Name]],'GIS Exports'!$B:$B,'GIS Exports'!Z:Z) -> 0 | Z33: =_xlfn.XLOOKUP(Existing_PR_GIS[[#This Row],[Station Name]],'GIS Exports'!$B:$B,'GIS Exports'!AA:AA) -> 2 Suburban: Transfer Location | AA33: =_xlfn.XLOOKUP(Existing_PR_GIS[[#This Row],[Station Name]],'GIS Exports'!$B:$B,'GIS Exports'!AB:AB) -> With more mixed use development has high potential | AB33: 0.5 | AC33: 0 | AD33: 0 | AE33: 0 | AF33: 0 | AG33: 1 | AH33: 2 | AI33: 1 | AJ33: =SUM(Existing_PR_GIS[[#This Row],[Weighted Pop. Density]:[Weighted Transit Access Score]]) -> 4.5
A34: South Jordan Parkway Station | B34: =_xlfn.XLOOKUP(Existing_PR_GIS[[#This Row],[Station Name]],'GIS Exports'!$B:$B,'GIS Exports'!C:C) -> 2043 | C34: =_xlfn.XLOOKUP(Existing_PR_GIS[[#This Row],[Station Name]],'GIS Exports'!$B:$B,'GIS Exports'!D:D) -> 2601.222307 | D34: =_xlfn.XLOOKUP(Existing_PR_GIS[[#This Row],[Station Name]],'GIS Exports'!$B:$B,'GIS Exports'!E:E) -> 0.3 | E34: =_xlfn.XLOOKUP(Existing_PR_GIS[[#This Row],[Station Name]],'GIS Exports'!$B:$B,'GIS Exports'!F:F) -> mid | F34: =_xlfn.XLOOKUP(Existing_PR_GIS[[#This Row],[Station Name]],'GIS Exports'!$B:$B,'GIS Exports'!G:G) -> Potential apartments | G34: =_xlfn.XLOOKUP(Existing_PR_GIS[[#This Row],[Station Name]],'GIS Exports'!$B:$B,'GIS Exports'!H:H) -> 229 | H34: =_xlfn.XLOOKUP(Existing_PR_GIS[[#This Row],[Station Name]],'GIS Exports'!$B:$B,'GIS Exports'!I:I) -> 125 | I34: =_xlfn.XLOOKUP(Existing_PR_GIS[[#This Row],[Station Name]],'GIS Exports'!$B:$B,'GIS Exports'!J:J) -> 1.819505 | J34: =_xlfn.XLOOKUP(Existing_PR_GIS[[#This Row],[Station Name]],'GIS Exports'!$B:$B,'GIS Exports'!K:K) -> 2601.222307 | K34: =_xlfn.XLOOKUP(Existing_PR_GIS[[#This Row],[Station Name]],'GIS Exports'!$B:$B,'GIS Exports'!L:L) -> 285.3983 | L34: =_xlfn.XLOOKUP(Existing_PR_GIS[[#This Row],[Station Name]],'GIS Exports'!$B:$B,'GIS Exports'!M:M) -> 285.3983 | M34: =_xlfn.XLOOKUP(Existing_PR_GIS[[#This Row],[Station Name]],'GIS Exports'!$B:$B,'GIS Exports'!N:N) -> 0.003985 | N34: =_xlfn.XLOOKUP(Existing_PR_GIS[[#This Row],[Station Name]],'GIS Exports'!$B:$B,'GIS Exports'!O:O) -> low | O34: =_xlfn.XLOOKUP(Existing_PR_GIS[[#This Row],[Station Name]],'GIS Exports'!$B:$B,'GIS Exports'!P:P) -> no | P34: =_xlfn.XLOOKUP(Existing_PR_GIS[[#This Row],[Station Name]],'GIS Exports'!$B:$B,'GIS Exports'!Q:Q) -> 0.021805 | Q34: =_xlfn.XLOOKUP(Existing_PR_GIS[[#This Row],[Station Name]],'GIS Exports'!$B:$B,'GIS Exports'!R:R) -> high | R34: =_xlfn.XLOOKUP(Existing_PR_GIS[[#This Row],[Station Name]],'GIS Exports'!$B:$B,'GIS Exports'!S:S) -> 10 | S34: =_xlfn.XLOOKUP(Existing_PR_GIS[[#This Row],[Station Name]],'GIS Exports'!$B:$B,'GIS Exports'!T:T) -> 37.072562 | T34: =_xlfn.XLOOKUP(Existing_PR_GIS[[#This Row],[Station Name]],'GIS Exports'!$B:$B,'GIS Exports'!U:U) -> 60.998519 | U34: =_xlfn.XLOOKUP(Existing_PR_GIS[[#This Row],[Station Name]],'GIS Exports'!$B:$B,'GIS Exports'!V:V) -> 7.692308 | V34: =_xlfn.XLOOKUP(Existing_PR_GIS[[#This Row],[Station Name]],'GIS Exports'!$B:$B,'GIS Exports'!W:W) -> y | W34: =_xlfn.XLOOKUP(Existing_PR_GIS[[#This Row],[Station Name]],'GIS Exports'!$B:$B,'GIS Exports'!X:X) -> 0 | X34: =_xlfn.XLOOKUP(Existing_PR_GIS[[#This Row],[Station Name]],'GIS Exports'!$B:$B,'GIS Exports'!Y:Y) -> 1 Suburban: Mid-corridor | Y34: =_xlfn.XLOOKUP(Existing_PR_GIS[[#This Row],[Station Name]],'GIS Exports'!$B:$B,'GIS Exports'!Z:Z) -> 0 | Z34: =_xlfn.XLOOKUP(Existing_PR_GIS[[#This Row],[Station Name]],'GIS Exports'!$B:$B,'GIS Exports'!AA:AA) -> 1 Suburban: Mid-corridor | AA34: =_xlfn.XLOOKUP(Existing_PR_GIS[[#This Row],[Station Name]],'GIS Exports'!$B:$B,'GIS Exports'!AB:AB) -> 0 | AB34: 0.5 | AC34: 0 | AD34: 0 | AE34: 0 | AF34: 0 | AG34: 1 | AH34: 1 | AI34: 0 | AJ34: =SUM(Existing_PR_GIS[[#This Row],[Weighted Pop. Density]:[Weighted Transit Access Score]]) -> 2.5
A35: South Jordan Station | B35: =_xlfn.XLOOKUP(Existing_PR_GIS[[#This Row],[Station Name]],'GIS Exports'!$B:$B,'GIS Exports'!C:C) -> 1406 | C35: =_xlfn.XLOOKUP(Existing_PR_GIS[[#This Row],[Station Name]],'GIS Exports'!$B:$B,'GIS Exports'!D:D) -> 1790.170614 | D35: =_xlfn.XLOOKUP(Existing_PR_GIS[[#This Row],[Station Name]],'GIS Exports'!$B:$B,'GIS Exports'!E:E) -> 0.49 | E35: =_xlfn.XLOOKUP(Existing_PR_GIS[[#This Row],[Station Name]],'GIS Exports'!$B:$B,'GIS Exports'!F:F) -> mid | F35: =_xlfn.XLOOKUP(Existing_PR_GIS[[#This Row],[Station Name]],'GIS Exports'!$B:$B,'GIS Exports'!G:G) -> Employers | G35: =_xlfn.XLOOKUP(Existing_PR_GIS[[#This Row],[Station Name]],'GIS Exports'!$B:$B,'GIS Exports'!H:H) -> 562 | H35: =_xlfn.XLOOKUP(Existing_PR_GIS[[#This Row],[Station Name]],'GIS Exports'!$B:$B,'GIS Exports'!I:I) -> 668 | I35: =_xlfn.XLOOKUP(Existing_PR_GIS[[#This Row],[Station Name]],'GIS Exports'!$B:$B,'GIS Exports'!J:J) -> 2.425739 | J35: =_xlfn.XLOOKUP(Existing_PR_GIS[[#This Row],[Station Name]],'GIS Exports'!$B:$B,'GIS Exports'!K:K) -> 1790.170614 | K35: =_xlfn.XLOOKUP(Existing_PR_GIS[[#This Row],[Station Name]],'GIS Exports'!$B:$B,'GIS Exports'!L:L) -> 12523.01 | L35: =_xlfn.XLOOKUP(Existing_PR_GIS[[#This Row],[Station Name]],'GIS Exports'!$B:$B,'GIS Exports'!M:M) -> 12523.01 | M35: =_xlfn.XLOOKUP(Existing_PR_GIS[[#This Row],[Station Name]],'GIS Exports'!$B:$B,'GIS Exports'!N:N) -> 0.024208 | N35: =_xlfn.XLOOKUP(Existing_PR_GIS[[#This Row],[Station Name]],'GIS Exports'!$B:$B,'GIS Exports'!O:O) -> low | O35: =_xlfn.XLOOKUP(Existing_PR_GIS[[#This Row],[Station Name]],'GIS Exports'!$B:$B,'GIS Exports'!P:P) -> no | P35: =_xlfn.XLOOKUP(Existing_PR_GIS[[#This Row],[Station Name]],'GIS Exports'!$B:$B,'GIS Exports'!Q:Q) -> 0.0002 | Q35: =_xlfn.XLOOKUP(Existing_PR_GIS[[#This Row],[Station Name]],'GIS Exports'!$B:$B,'GIS Exports'!R:R) -> high | R35: =_xlfn.XLOOKUP(Existing_PR_GIS[[#This Row],[Station Name]],'GIS Exports'!$B:$B,'GIS Exports'!S:S) -> 0 | S35: =_xlfn.XLOOKUP(Existing_PR_GIS[[#This Row],[Station Name]],'GIS Exports'!$B:$B,'GIS Exports'!T:T) -> 23.995665 | T35: =_xlfn.XLOOKUP(Existing_PR_GIS[[#This Row],[Station Name]],'GIS Exports'!$B:$B,'GIS Exports'!U:U) -> 76.309085 | U35: =_xlfn.XLOOKUP(Existing_PR_GIS[[#This Row],[Station Name]],'GIS Exports'!$B:$B,'GIS Exports'!V:V) -> 38.461538 | V35: =_xlfn.XLOOKUP(Existing_PR_GIS[[#This Row],[Station Name]],'GIS Exports'!$B:$B,'GIS Exports'!W:W) -> y | W35: =_xlfn.XLOOKUP(Existing_PR_GIS[[#This Row],[Station Name]],'GIS Exports'!$B:$B,'GIS Exports'!X:X) -> 0 | X35: =_xlfn.XLOOKUP(Existing_PR_GIS[[#This Row],[Station Name]],'GIS Exports'!$B:$B,'GIS Exports'!Y:Y) -> 1 Suburban: Mid-corridor | Y35: =_xlfn.XLOOKUP(Existing_PR_GIS[[#This Row],[Station Name]],'GIS Exports'!$B:$B,'GIS Exports'!Z:Z) -> 0 | Z35: =_xlfn.XLOOKUP(Existing_PR_GIS[[#This Row],[Station Name]],'GIS Exports'!$B:$B,'GIS Exports'!AA:AA) -> 1 Suburban: Mid-corridor | AA35: =_xlfn.XLOOKUP(Existing_PR_GIS[[#This Row],[Station Name]],'GIS Exports'!$B:$B,'GIS Exports'!AB:AB) -> 0 | AB35: 0 | AC35: 0.5 | AD35: 0 | AE35: 0 | AF35: 0 | AG35: 0 | AH35: 1 | AI35: 1 | AJ35: =SUM(Existing_PR_GIS[[#This Row],[Weighted Pop. Density]:[Weighted Transit Access Score]]) -> 2.5
A36: West Jordan City Center Station | B36: =_xlfn.XLOOKUP(Existing_PR_GIS[[#This Row],[Station Name]],'GIS Exports'!$B:$B,'GIS Exports'!C:C) -> 3812 | C36: =_xlfn.XLOOKUP(Existing_PR_GIS[[#This Row],[Station Name]],'GIS Exports'!$B:$B,'GIS Exports'!D:D) -> 4853.577795 | D36: =_xlfn.XLOOKUP(Existing_PR_GIS[[#This Row],[Station Name]],'GIS Exports'!$B:$B,'GIS Exports'!E:E) -> 0.36 | E36: =_xlfn.XLOOKUP(Existing_PR_GIS[[#This Row],[Station Name]],'GIS Exports'!$B:$B,'GIS Exports'!F:F) -> low | F36: =_xlfn.XLOOKUP(Existing_PR_GIS[[#This Row],[Station Name]],'GIS Exports'!$B:$B,'GIS Exports'!G:G) -> Industry offices | G36: =_xlfn.XLOOKUP(Existing_PR_GIS[[#This Row],[Station Name]],'GIS Exports'!$B:$B,'GIS Exports'!H:H) -> 336 | H36: =_xlfn.XLOOKUP(Existing_PR_GIS[[#This Row],[Station Name]],'GIS Exports'!$B:$B,'GIS Exports'!I:I) -> 736 | I36: =_xlfn.XLOOKUP(Existing_PR_GIS[[#This Row],[Station Name]],'GIS Exports'!$B:$B,'GIS Exports'!J:J) -> 6.084656 | J36: =_xlfn.XLOOKUP(Existing_PR_GIS[[#This Row],[Station Name]],'GIS Exports'!$B:$B,'GIS Exports'!K:K) -> 4853.577795 | K36: =_xlfn.XLOOKUP(Existing_PR_GIS[[#This Row],[Station Name]],'GIS Exports'!$B:$B,'GIS Exports'!L:L) -> 4421.976 | L36: =_xlfn.XLOOKUP(Existing_PR_GIS[[#This Row],[Station Name]],'GIS Exports'!$B:$B,'GIS Exports'!M:M) -> 4421.976 | M36: =_xlfn.XLOOKUP(Existing_PR_GIS[[#This Row],[Station Name]],'GIS Exports'!$B:$B,'GIS Exports'!N:N) -> 0.035334 | N36: =_xlfn.XLOOKUP(Existing_PR_GIS[[#This Row],[Station Name]],'GIS Exports'!$B:$B,'GIS Exports'!O:O) -> low | O36: =_xlfn.XLOOKUP(Existing_PR_GIS[[#This Row],[Station Name]],'GIS Exports'!$B:$B,'GIS Exports'!P:P) -> yes | P36: =_xlfn.XLOOKUP(Existing_PR_GIS[[#This Row],[Station Name]],'GIS Exports'!$B:$B,'GIS Exports'!Q:Q) -> 0.00557 | Q36: =_xlfn.XLOOKUP(Existing_PR_GIS[[#This Row],[Station Name]],'GIS Exports'!$B:$B,'GIS Exports'!R:R) -> high | R36: =_xlfn.XLOOKUP(Existing_PR_GIS[[#This Row],[Station Name]],'GIS Exports'!$B:$B,'GIS Exports'!S:S) -> 40 | S36: =_xlfn.XLOOKUP(Existing_PR_GIS[[#This Row],[Station Name]],'GIS Exports'!$B:$B,'GIS Exports'!T:T) -> 38.732083 | T36: =_xlfn.XLOOKUP(Existing_PR_GIS[[#This Row],[Station Name]],'GIS Exports'!$B:$B,'GIS Exports'!U:U) -> 67.43118 | U36: =_xlfn.XLOOKUP(Existing_PR_GIS[[#This Row],[Station Name]],'GIS Exports'!$B:$B,'GIS Exports'!V:V) -> 23.076923 | V36: =_xlfn.XLOOKUP(Existing_PR_GIS[[#This Row],[Station Name]],'GIS Exports'!$B:$B,'GIS Exports'!W:W) -> y | W36: =_xlfn.XLOOKUP(Existing_PR_GIS[[#This Row],[Station Name]],'GIS Exports'!$B:$B,'GIS Exports'!X:X) -> 0 | X36: =_xlfn.XLOOKUP(Existing_PR_GIS[[#This Row],[Station Name]],'GIS Exports'!$B:$B,'GIS Exports'!Y:Y) -> 2 Suburban: Transfer Location | Y36: =_xlfn.XLOOKUP(Existing_PR_GIS[[#This Row],[Station Name]],'GIS Exports'!$B:$B,'GIS Exports'!Z:Z) -> 0 | Z36: =_xlfn.XLOOKUP(Existing_PR_GIS[[#This Row],[Station Name]],'GIS Exports'!$B:$B,'GIS Exports'!AA:AA) -> 2 Suburban: Transfer Location | AA36: =_xlfn.XLOOKUP(Existing_PR_GIS[[#This Row],[Station Name]],'GIS Exports'!$B:$B,'GIS Exports'!AB:AB) -> 0 | AB36: 0.5 | AC36: 0 | AD36: 0 | AE36: 0 | AF36: 0.5 | AG36: 1 | AH36: 1 | AI36: 1 | AJ36: =SUM(Existing_PR_GIS[[#This Row],[Weighted Pop. Density]:[Weighted Transit Access Score]]) -> 4
A37: West Valley Central Station | B37: =_xlfn.XLOOKUP(Existing_PR_GIS[[#This Row],[Station Name]],'GIS Exports'!$B:$B,'GIS Exports'!C:C) -> 5083 | C37: =_xlfn.XLOOKUP(Existing_PR_GIS[[#This Row],[Station Name]],'GIS Exports'!$B:$B,'GIS Exports'!D:D) -> 6471.861472 | D37: =_xlfn.XLOOKUP(Existing_PR_GIS[[#This Row],[Station Name]],'GIS Exports'!$B:$B,'GIS Exports'!E:E) -> 0.74 | E37: =_xlfn.XLOOKUP(Existing_PR_GIS[[#This Row],[Station Name]],'GIS Exports'!$B:$B,'GIS Exports'!F:F) -> mid | F37: =_xlfn.XLOOKUP(Existing_PR_GIS[[#This Row],[Station Name]],'GIS Exports'!$B:$B,'GIS Exports'!G:G) -> Offices, mall, some apartments | G37: =_xlfn.XLOOKUP(Existing_PR_GIS[[#This Row],[Station Name]],'GIS Exports'!$B:$B,'GIS Exports'!H:H) -> 168 | H37: =_xlfn.XLOOKUP(Existing_PR_GIS[[#This Row],[Station Name]],'GIS Exports'!$B:$B,'GIS Exports'!I:I) -> 2476 | I37: =_xlfn.XLOOKUP(Existing_PR_GIS[[#This Row],[Station Name]],'GIS Exports'!$B:$B,'GIS Exports'!J:J) -> 19.916345 | J37: =_xlfn.XLOOKUP(Existing_PR_GIS[[#This Row],[Station Name]],'GIS Exports'!$B:$B,'GIS Exports'!K:K) -> 6471.861472 | K37: =_xlfn.XLOOKUP(Existing_PR_GIS[[#This Row],[Station Name]],'GIS Exports'!$B:$B,'GIS Exports'!L:L) -> 5413.344 | L37: =_xlfn.XLOOKUP(Existing_PR_GIS[[#This Row],[Station Name]],'GIS Exports'!$B:$B,'GIS Exports'!M:M) -> 5413.344 | M37: =_xlfn.XLOOKUP(Existing_PR_GIS[[#This Row],[Station Name]],'GIS Exports'!$B:$B,'GIS Exports'!N:N) -> 0.096077 | N37: =_xlfn.XLOOKUP(Existing_PR_GIS[[#This Row],[Station Name]],'GIS Exports'!$B:$B,'GIS Exports'!O:O) -> medium | O37: =_xlfn.XLOOKUP(Existing_PR_GIS[[#This Row],[Station Name]],'GIS Exports'!$B:$B,'GIS Exports'!P:P) -> yes | P37: =_xlfn.XLOOKUP(Existing_PR_GIS[[#This Row],[Station Name]],'GIS Exports'!$B:$B,'GIS Exports'!Q:Q) -> 0.055244 | Q37: =_xlfn.XLOOKUP(Existing_PR_GIS[[#This Row],[Station Name]],'GIS Exports'!$B:$B,'GIS Exports'!R:R) -> medium | R37: =_xlfn.XLOOKUP(Existing_PR_GIS[[#This Row],[Station Name]],'GIS Exports'!$B:$B,'GIS Exports'!S:S) -> 40 | S37: =_xlfn.XLOOKUP(Existing_PR_GIS[[#This Row],[Station Name]],'GIS Exports'!$B:$B,'GIS Exports'!T:T) -> 91.88513 | T37: =_xlfn.XLOOKUP(Existing_PR_GIS[[#This Row],[Station Name]],'GIS Exports'!$B:$B,'GIS Exports'!U:U) -> 89.126304 | U37: =_xlfn.XLOOKUP(Existing_PR_GIS[[#This Row],[Station Name]],'GIS Exports'!$B:$B,'GIS Exports'!V:V) -> 76.923077 | V37: =_xlfn.XLOOKUP(Existing_PR_GIS[[#This Row],[Station Name]],'GIS Exports'!$B:$B,'GIS Exports'!W:W) -> y | W37: =_xlfn.XLOOKUP(Existing_PR_GIS[[#This Row],[Station Name]],'GIS Exports'!$B:$B,'GIS Exports'!X:X) -> 0 | X37: =_xlfn.XLOOKUP(Existing_PR_GIS[[#This Row],[Station Name]],'GIS Exports'!$B:$B,'GIS Exports'!Y:Y) -> 3 Suburban: Terminus | Y37: =_xlfn.XLOOKUP(Existing_PR_GIS[[#This Row],[Station Name]],'GIS Exports'!$B:$B,'GIS Exports'!Z:Z) -> 0 | Z37: =_xlfn.XLOOKUP(Existing_PR_GIS[[#This Row],[Station Name]],'GIS Exports'!$B:$B,'GIS Exports'!AA:AA) -> 5 TOD | AA37: =_xlfn.XLOOKUP(Existing_PR_GIS[[#This Row],[Station Name]],'GIS Exports'!$B:$B,'GIS Exports'!AB:AB) -> Mainly mall and small residential | AB37: 1 | AC37: 0 | AD37: 0 | AE37: 0 | AF37: 0.5 | AG37: 2 | AH37: 2 | AI37: 2 | AJ37: =SUM(Existing_PR_GIS[[#This Row],[Weighted Pop. Density]:[Weighted Transit Access Score]]) -> 7.5
A38: Woods Cross Station | B38: =_xlfn.XLOOKUP(Existing_PR_GIS[[#This Row],[Station Name]],'GIS Exports'!$B:$B,'GIS Exports'!C:C) -> 2053 | C38: =_xlfn.XLOOKUP(Existing_PR_GIS[[#This Row],[Station Name]],'GIS Exports'!$B:$B,'GIS Exports'!D:D) -> 2613.954673 | D38: =_xlfn.XLOOKUP(Existing_PR_GIS[[#This Row],[Station Name]],'GIS Exports'!$B:$B,'GIS Exports'!E:E) -> 0.5 | E38: =_xlfn.XLOOKUP(Existing_PR_GIS[[#This Row],[Station Name]],'GIS Exports'!$B:$B,'GIS Exports'!F:F) -> very low | F38: =_xlfn.XLOOKUP(Existing_PR_GIS[[#This Row],[Station Name]],'GIS Exports'!$B:$B,'GIS Exports'!G:G) -> Suburban single family houses | G38: =_xlfn.XLOOKUP(Existing_PR_GIS[[#This Row],[Station Name]],'GIS Exports'!$B:$B,'GIS Exports'!H:H) -> 419 | H38: =_xlfn.XLOOKUP(Existing_PR_GIS[[#This Row],[Station Name]],'GIS Exports'!$B:$B,'GIS Exports'!I:I) -> 473 | I38: =_xlfn.XLOOKUP(Existing_PR_GIS[[#This Row],[Station Name]],'GIS Exports'!$B:$B,'GIS Exports'!J:J) -> 2.257757 | J38: =_xlfn.XLOOKUP(Existing_PR_GIS[[#This Row],[Station Name]],'GIS Exports'!$B:$B,'GIS Exports'!K:K) -> 2613.954673 | K38: =_xlfn.XLOOKUP(Existing_PR_GIS[[#This Row],[Station Name]],'GIS Exports'!$B:$B,'GIS Exports'!L:L) -> 3293.135 | L38: =_xlfn.XLOOKUP(Existing_PR_GIS[[#This Row],[Station Name]],'GIS Exports'!$B:$B,'GIS Exports'!M:M) -> 3293.135 | M38: =_xlfn.XLOOKUP(Existing_PR_GIS[[#This Row],[Station Name]],'GIS Exports'!$B:$B,'GIS Exports'!N:N) -> 0.086972 | N38: =_xlfn.XLOOKUP(Existing_PR_GIS[[#This Row],[Station Name]],'GIS Exports'!$B:$B,'GIS Exports'!O:O) -> medium | O38: =_xlfn.XLOOKUP(Existing_PR_GIS[[#This Row],[Station Name]],'GIS Exports'!$B:$B,'GIS Exports'!P:P) -> no | P38: =_xlfn.XLOOKUP(Existing_PR_GIS[[#This Row],[Station Name]],'GIS Exports'!$B:$B,'GIS Exports'!Q:Q) -> 0.01533 | Q38: =_xlfn.XLOOKUP(Existing_PR_GIS[[#This Row],[Station Name]],'GIS Exports'!$B:$B,'GIS Exports'!R:R) -> high | R38: =_xlfn.XLOOKUP(Existing_PR_GIS[[#This Row],[Station Name]],'GIS Exports'!$B:$B,'GIS Exports'!S:S) -> 10 | S38: =_xlfn.XLOOKUP(Existing_PR_GIS[[#This Row],[Station Name]],'GIS Exports'!$B:$B,'GIS Exports'!T:T) -> 30.312588 | T38: =_xlfn.XLOOKUP(Existing_PR_GIS[[#This Row],[Station Name]],'GIS Exports'!$B:$B,'GIS Exports'!U:U) -> 74.32526 | U38: =_xlfn.XLOOKUP(Existing_PR_GIS[[#This Row],[Station Name]],'GIS Exports'!$B:$B,'GIS Exports'!V:V) -> 7.692308 | V38: =_xlfn.XLOOKUP(Existing_PR_GIS[[#This Row],[Station Name]],'GIS Exports'!$B:$B,'GIS Exports'!W:W) -> y | W38: =_xlfn.XLOOKUP(Existing_PR_GIS[[#This Row],[Station Name]],'GIS Exports'!$B:$B,'GIS Exports'!X:X) -> 0 | X38: =_xlfn.XLOOKUP(Existing_PR_GIS[[#This Row],[Station Name]],'GIS Exports'!$B:$B,'GIS Exports'!Y:Y) -> 1 Suburban: Mid-corridor | Y38: =_xlfn.XLOOKUP(Existing_PR_GIS[[#This Row],[Station Name]],'GIS Exports'!$B:$B,'GIS Exports'!Z:Z) -> 0 | Z38: =_xlfn.XLOOKUP(Existing_PR_GIS[[#This Row],[Station Name]],'GIS Exports'!$B:$B,'GIS Exports'!AA:AA) -> 1 Suburban: Mid-corridor | AA38: =_xlfn.XLOOKUP(Existing_PR_GIS[[#This Row],[Station Name]],'GIS Exports'!$B:$B,'GIS Exports'!AB:AB) -> 0 | AB38: 0.5 | AC38: 0 | AD38: 0 | AE38: 0 | AF38: 0 | AG38: 1 | AH38: 1 | AI38: 0 | AJ38: =SUM(Existing_PR_GIS[[#This Row],[Weighted Pop. Density]:[Weighted Transit Access Score]]) -> 2.5
A41: NOTE: Manually add existing stations in Column A, data auto populates, if new data columns are added to GIS export tab, then this tab columns and formulas need to be updated as well to insure correct column is being referenced

Sheet Planning Data
A1: Station Name | B1: Land use context notes | C1: Projected Boardings | D1: Boardings/parked car | E1: Pop Density | F1: Employment Density (sq mile) | G1: Job Density | H1: Percent Poverty | I1: Low Income Percentage | J1: EFA | K1: No vehicle households percentage | L1: Vehicle Ownership | M1: TDI | N1: Walk Score | O1: Bike Score | P1: Transit Access Score | Q1: PandR | R1: Option Buttom Existing | S1: Assigned Typology | T1: Column3 | U1: Reassigned Typologies | V1: Typology notes | W1: Weighted Pop. Density | X1: Weighted Job Density | Y1: Weighted Income % | Z1: Weighted Vehicle Ownership | AA1: Weighted TDI | AB1: Weighted Walk Score | AC1: Weighted Bike Score | AD1: Weighted Transit Access Score | AE1: Total
A2: Planning Station | C2: ='P&R Planning Tool'!C15 -> 600 | D2: ='P&R Planning Tool'!C18 -> 0 | S2: ='P&R Planning Tool'!E9 -> 1 Suburban: Mid-corridor | T2: =_xlfn.XLOOKUP(Existing_PR_GIS8[[#This Row],[Station Name]],'GIS Exports'!$B:$B,'GIS Exports'!Z:Z) ->  | U2: =_xlfn.XLOOKUP(Existing_PR_GIS8[[#This Row],[Station Name]],'GIS Exports'!$B:$B,'GIS Exports'!AA:AA) ->  | V2: =_xlfn.XLOOKUP(Existing_PR_GIS8[[#This Row],[Station Name]],'GIS Exports'!$B:$B,'GIS Exports'!AB:AB) ->  | W2: =IF('P&R Planning Tool'!E15='Reference data'!A19,1,IF('P&R Planning Tool'!E15='Reference data'!A18,0.5,0)) -> 0.5 | X2: =IF('P&R Planning Tool'!E18='Reference data'!A24,1,IF('P&R Planning Tool'!E18='Reference data'!A23,0.5,0)) -> 0.5 | Y2: =IF('P&R Planning Tool'!G12='Reference data'!A29,1,IF('P&R Planning Tool'!G12='Reference data'!A28,0.5,0)) -> 0.5 | Z2: =IF('P&R Planning Tool'!G15='Reference data'!A34,1,IF('P&R Planning Tool'!G15='Reference data'!A33,0.5,0)) -> 0.5 | AA2: =IF('P&R Planning Tool'!G18='Reference data'!A39,1,IF('P&R Planning Tool'!G18='Reference data'!A38,0.5,0)) -> 0.5 | AB2: =IF('P&R Planning Tool'!I12='Reference data'!A44,2,IF('P&R Planning Tool'!I12='Reference data'!A43,1,0)) -> 1 | AC2: =IF('P&R Planning Tool'!I15='Reference data'!A49,2,IF('P&R Planning Tool'!I15='Reference data'!A48,1,0)) -> 2 | AD2: =IF('P&R Planning Tool'!I18='Reference data'!A54,2,IF('P&R Planning Tool'!I18='Reference data'!A53,1,0)) -> 1 | AE2: =SUM(Existing_PR_GIS8[[#This Row],[Weighted Pop. Density]:[Weighted Transit Access Score]]) -> 6.5

Sheet Reference data
A1: Reference Data
A3: Typologies
A4: 1 Suburban: Mid-corridor
A5: 2 Suburban: Transfer Location
A6: 3 Suburban: Terminus
A7: 4 Emerging Urban
A8: 5 TOD
A9: 6 Urban
A11: Land Use Context*
A16: Population Density*
A17: Low - Under 2500/sq mi
A18: Medium - 2,500 – 5,000/sq mi
A19: High - Above 5,000/sq mi
A21: Job Density (Jobs/sq mi)*
A22: Low - 0 - 10 / sq mile
A23: Medium - 50 - 250 / sq mile
A24: High - Over 250 / sq mile
A26: Low Income %*
A27: Low
A28: Medium
A29: High
A31: No Vehicle Ownership %*
A32: Low - 0 - 10%
A33: Medium - 11% - 30%
A34: High - Above 30%
A36: Transit Dependency Index*
A37: Low - Below 10%
A38: Medium - 10 - 30%
A39: High - Above 40%
A41: Walk Score*
A42: Low - Below 30
A43: Medium - 30 - 80
A44: High - Above 80
A46: Bike Score*
A47: Low - Below 30
A48: Medium - 30 - 80
A49: High - Above 80
A51: Transit Access Score*
A52: Low - Below 20
A53: Medium - 20 - 40
A54: High - Above 40

Sheet Documentation
A1: Data and calculation descriptions
A3: Walk, Bike and Transit Access scores
A4: The walk, bike, and transit access scores were generated relative to all other existing Park and Ride station
A5: The walk scores were determined by generating 15 minute walksheds starting at the P&R station. The walkshed areas were compared to each other and the largest walkshed by area was scored 100 and the smallest walkshed was scored 0. Because these scores are relative to the other walksheds this data can be easily replaced with another method of measuring walkability, so long as the final walk score is ranked relative to all other stations.
A6: The bike scores were determined by generating 15 minute bikesheds starting at the P&R station. The bikeshed areas were compared to each other and the largest bikeshed by area was scored 100 and the smallest bikeshed was scored 0. Because these scores are relative to the other bikesheds this data can be easily replaced with another method of measuring bikeability, so long as the final walk score is ranked relative to all other stations.
A7: The transit access score were determined by the number of transit lines that connect to a given P&R station. The station that had the most different transit (FrontRunner, TRAX, and bus) lines scored 100, the station with the least lines (one) scored 0. Because these scores are relative to the transit access at all the other stations this methodology can be easily replaced with another way of measuring the transit access at each station, so long as the final scores are ranked relative to the other stations.
A9: Thresholds
A10: The thresholds for low (red), medium (yellow), high (green) were calculated to be the breaking point of thirds. All of stations regardless of typology were used to calculate the breaking points for the lower, middle, and upper third. For population density the breaking points are currently 4,211 and 2,704. This means that stations that have a population density above 4,211 rank highly on population density, stations with population density between 4,211 and 2,704 ranked medium, and stations with population density below 2,704 ranked low. These breaking point for rankings of each demographic would need to be updated whenever the demographic data is updated.
A12: Data Dictionary
A13: Data Entry Label | B13: Data Description | C13: Calculation | D13: Source
A14: Station Name | B14: Name given to park & ride transit station by UTA | C14: From UTA | D14: UTA 2023
A15: Population (1/2 mile radius) | B15: The calculated census population within a half mile radius of the P&R station | C15: Summarize within in ArcGIS of Census population data | D15: American Community Survey
A16: Parking Utilization | B16: The percent of parking spaces that are occupied in a designated P&R parking area during a peak period of estimated use. Data collected from UTA and should be easily updated when UTA has updated Park & Ride data. | C16: From UTA | D16: UTA 2023
A17: Land use context notes | B17: Notes taken about the existing conditions surrounding the P&R station | C17: Notes | D17: Staff
A18: Current Parking Spaces | B18: The number of designated P&R parking stalls. Data collected from UTA and should be easily updatable if conditions change. | C18: Average utilization (as a percent) mulitplied by number of parking spaces | D18: UTA 2023
A19: Current Boardings | B19: Total average weekday boardings (including all modes) for a P&R station, data retrieved from UTA open data portal 'UTA Stops and Most Recent Ridership' and boardings summed for stops within immediate proximity of each other (for instance Salt Lake Central Station has multiple stops associated). Data can be updated with total of 'avgboard' for each P&R station. | C19: Total boardings in immidiate proximity of station | D19: UTA 2023
A20: Boardings/parked car | B20: The average weekday boardings associated with a P&R station divided by the average number of vehicles parked in designated P&R stalls during a peak period of estimated use. This metric provides the average weekday boardings per the average number of cars in the peak period. A high number indicates that many people are boarding transit at this station without parking at the station, this would indicate that the parking supply is less impactful on the station ridership. | C20: Average weekday boardings divided by average number of parked cars | D20: Calculation
A21: Pop Density | B21: The population within a half mile radius converted to people per square mile to measure population density | C21: Using summarize within in ArcGIS to get census population within a half mile radius of the P&R station divided by half mile radius area | D21: American Community Survey
A22: Employment Density (per sq mile) | B22: The number of jobs within a half mile radius of the P&R station and reported in a density format of jobs per square mile. | C22: Employment density was calculated from a half mile buffer around P&R stations and using apportion polygon tool in ArcGIS to calculate the employment within the half mile buffer from TAZ 2024 job projections. | D22: American Community Survey
A23: Percent Poverty | B23: The percent of the population surrounding the station that are below the federal poverty line | C23: Poverty percentage was calculated using apportion polygon of a half mile buffer around P&R stations and poverty percentage of surrounding census blockgroup polygons | D23: American Community Survey
A24: EFA | B24: If the station is located within an Equity focus area | C24: If station is within the boundary of an EFA then classified as yes | D24: WFRC
A25: No vehicle households percentage | B25: Percentage of households near the station that have no vehicle | C25: No vehicle household percentage was calculated using apportion polygon of a half mile buffer around P&R stations and percentage of total households that are 0 vehicle households of surrounding census blockgroup polygons | D25: American Community Survey
A26: TDI | B26: Transit Dependency Index score | C26: Average transit dependency index percentage of the census block groups surrounding the station | D26: American Community Survey
A27: Walk Score | B27: The walk scores were determined by generating 15 minute walksheds starting at the P&R station. The walkshed areas were compared to each other and the largest walkshed by area was scored 100 and the smallest walkshed was scored 0. Because these scores are relative to the other walksheds this data can be easily replaced with another method of measuring walkability, so long as the final walk score is ranked relative to all other stations. | C27: Relative ranking of stations on a scale of 0 to 100, 0 being the worst and 100 being the best | D27: GIS Walkshed analysis using network analyst tools
A28: Bike Score | B28: The bike scores were determined by generating 15 minute bikesheds starting at the P&R station. The bikeshed areas were compared to each other and the largest bikeshed by area was scored 100 and the smallest bikeshed was scored 0. Because these scores are relative to the other bikesheds this data can be easily replaced with another method of measuring bikeability, so long as the final walk score is ranked relative to all other stations. | C28: Relative ranking of stations on a scale of 0 to 100, 0 being the worst and 100 being the best | D28: GIS Bikeshed analysis using network analyst tools
A29: Transit Access Score | B29: The transit access score were determined by the number of transit lines that connect to a given P&R station. The station that had the most different transit (FrontRunner, TRAX, and bus) lines scored 100, the station with the least lines (one) scored 0. Because these scores are relative to the transit access at all the other stations this methodology can be easily replaced with another way of measuring the transit access at each station, so long as the final scores are ranked relative to the other stations. | C29: Relative ranking of stations on a scale of 0 to 100, 0 being the worst and 100 being the best | D29: UTA 2023
A30: PandR | B30: Yes (Y) if the station is currently identifed as a P&R | C30: Y if Park & Ride station | D30: UTA 2023
A31: Option Buttom Existing | B31: Internal calculation used by excel | C31: Calculation | D31: Calculation
A32: Reassigned Typologies | B32: The typology assigned to the P&R as determined by Fehr and Peers staff consulting the data provided | C32: Assessed available data | D32: Staff
A33: Typology notes | B33: For taking notes on the station and it's assigned typology | C33: Notes | D33: Staff
